Organisation Name,Organisation Code,Unique Ref No,Effective Date,Directorate where expenditure incurred, Supplier Name ,Payment Date,Net Amount,Purpose of Spend,"Procurement Classification
(Higher Level)",Procurement Classification (Lower Level),CAPITAL / REVENUE
Walsall Council,http://opendatacommunities.org/id/metropolitan-district-council/walsall ,WC133-1,31.12.2021,"ECONOMY, ENVIRONMENT & COMMUNITIES",247 CARS (WILLENHALL) LIMITED,01/12/2021,784.08,6313-Grants to Other Orgs,SUPPLIES & SERVICES,GRANTS (EXP) & SUBSCRIPTIONS,REVENUE
Walsall Council,http://opendatacommunities.org/id/metropolitan-district-council/walsall ,WC133-2,31.12.2021,"ECONOMY, ENVIRONMENT & COMMUNITIES",247 CARS (WILLENHALL) LIMITED,08/12/2021,899.91,6313-Grants to Other Orgs,SUPPLIES & SERVICES,GRANTS (EXP) & SUBSCRIPTIONS,REVENUE
Walsall Council,http://opendatacommunities.org/id/metropolitan-district-council/walsall ,WC133-3,31.12.2021,CHILDRENS,247 CARS (WILLENHALL) LIMITED,06/12/2021,"1,083.00",6241-Hire of Vehicle with Driver,TRANSPORT,DIRECT TRANSPORT COSTS,REVENUE
Walsall Council,http://opendatacommunities.org/id/metropolitan-district-council/walsall ,WC133-4,31.12.2021,CHILDRENS,247 CARS (WILLENHALL) LIMITED,06/12/2021,"1,662.50",6241-Hire of Vehicle with Driver,TRANSPORT,DIRECT TRANSPORT COSTS,REVENUE
Walsall Council,http://opendatacommunities.org/id/metropolitan-district-council/walsall ,WC133-5,31.12.2021,CHILDRENS,247 CARS (WILLENHALL) LIMITED,06/12/2021,997.50,6241-Hire of Vehicle with Driver,TRANSPORT,DIRECT TRANSPORT COSTS,REVENUE
Walsall Council,http://opendatacommunities.org/id/metropolitan-district-council/walsall ,WC133-6,31.12.2021,CHILDRENS,247 CARS (WILLENHALL) LIMITED,06/12/2021,370.00,6241-Hire of Vehicle with Driver,TRANSPORT,DIRECT TRANSPORT COSTS,REVENUE
Walsall Council,http://opendatacommunities.org/id/metropolitan-district-council/walsall ,WC133-7,31.12.2021,CHILDRENS,247 CARS (WILLENHALL) LIMITED,06/12/2021,370.00,6241-Hire of Vehicle with Driver,TRANSPORT,DIRECT TRANSPORT COSTS,REVENUE
Walsall Council,http://opendatacommunities.org/id/metropolitan-district-council/walsall ,WC133-8,31.12.2021,CHILDRENS,247 CARS (WILLENHALL) LIMITED,06/12/2021,370.00,6241-Hire of Vehicle with Driver,TRANSPORT,DIRECT TRANSPORT COSTS,REVENUE
Walsall Council,http://opendatacommunities.org/id/metropolitan-district-council/walsall ,WC133-9,31.12.2021,CHILDRENS,247 CARS (WILLENHALL) LIMITED,06/12/2021,370.00,6241-Hire of Vehicle with Driver,TRANSPORT,DIRECT TRANSPORT COSTS,REVENUE
Walsall Council,http://opendatacommunities.org/id/metropolitan-district-council/walsall ,WC133-10,31.12.2021,CHILDRENS,247 CARS (WILLENHALL) LIMITED,06/12/2021,"1,035.00",6241-Hire of Vehicle with Driver,TRANSPORT,DIRECT TRANSPORT COSTS,REVENUE
Walsall Council,http://opendatacommunities.org/id/metropolitan-district-council/walsall ,WC133-11,31.12.2021,CHILDRENS,247 CARS (WILLENHALL) LIMITED,06/12/2021,"1,994.55",6241-Hire of Vehicle with Driver,TRANSPORT,DIRECT TRANSPORT COSTS,REVENUE
Walsall Council,http://opendatacommunities.org/id/metropolitan-district-council/walsall ,WC133-12,31.12.2021,CHILDRENS,247 CARS (WILLENHALL) LIMITED,06/12/2021,"1,425.00",6241-Hire of Vehicle with Driver,TRANSPORT,DIRECT TRANSPORT COSTS,REVENUE
Walsall Council,http://opendatacommunities.org/id/metropolitan-district-council/walsall ,WC133-13,31.12.2021,CHILDRENS,247 CARS (WILLENHALL) LIMITED,06/12/2021,370.00,6241-Hire of Vehicle with Driver,TRANSPORT,DIRECT TRANSPORT COSTS,REVENUE
Walsall Council,http://opendatacommunities.org/id/metropolitan-district-council/walsall ,WC133-14,31.12.2021,CHILDRENS,247 CARS (WILLENHALL) LIMITED,06/12/2021,"1,096.20",6241-Hire of Vehicle with Driver,TRANSPORT,DIRECT TRANSPORT COSTS,REVENUE
Walsall Council,http://opendatacommunities.org/id/metropolitan-district-council/walsall ,WC133-15,31.12.2021,CHILDRENS,247 CARS (WILLENHALL) LIMITED,06/12/2021,882.00,6241-Hire of Vehicle with Driver,TRANSPORT,DIRECT TRANSPORT COSTS,REVENUE
Walsall Council,http://opendatacommunities.org/id/metropolitan-district-council/walsall ,WC133-16,31.12.2021,RESOURCES AND TRANSFORMATION,3 SPIRIT UK TRAINING & CONSULTANCY,30/12/2021,700.00,6625-Consultant Fees,SUPPLIES & SERVICES,SERVICES,REVENUE
Walsall Council,http://opendatacommunities.org/id/metropolitan-district-council/walsall ,WC133-17,31.12.2021,RESOURCES AND TRANSFORMATION,3 SPIRIT UK TRAINING & CONSULTANCY,07/12/2021,700.00,6625-Consultant Fees,SUPPLIES & SERVICES,SERVICES,REVENUE
Walsall Council,http://opendatacommunities.org/id/metropolitan-district-council/walsall ,WC133-18,31.12.2021,RESOURCES AND TRANSFORMATION,3 SPIRIT UK TRAINING & CONSULTANCY,08/12/2021,725.00,6625-Consultant Fees,SUPPLIES & SERVICES,SERVICES,REVENUE
Walsall Council,http://opendatacommunities.org/id/metropolitan-district-council/walsall ,WC133-19,31.12.2021,RESOURCES AND TRANSFORMATION,3 SPIRIT UK TRAINING & CONSULTANCY,15/12/2021,725.00,6625-Consultant Fees,SUPPLIES & SERVICES,SERVICES,REVENUE
Walsall Council,http://opendatacommunities.org/id/metropolitan-district-council/walsall ,WC133-20,31.12.2021,RESOURCES AND TRANSFORMATION,3 SPIRIT UK TRAINING & CONSULTANCY,15/12/2021,700.00,6625-Consultant Fees,SUPPLIES & SERVICES,SERVICES,REVENUE
Walsall Council,http://opendatacommunities.org/id/metropolitan-district-council/walsall ,WC133-21,31.12.2021,ADULT SOCIAL CARE,5 CARE SERVICES LTD,07/12/2021,311.40,6541-Domiciliary Care,THIRD PARTY PAYMENTS,PRIVATE CONTRACTOR,REVENUE
Walsall Council,http://opendatacommunities.org/id/metropolitan-district-council/walsall ,WC133-22,31.12.2021,ADULT SOCIAL CARE,5 CARE SERVICES LTD,07/12/2021,326.97,6541-Domiciliary Care,THIRD PARTY PAYMENTS,PRIVATE CONTRACTOR,REVENUE
Walsall Council,http://opendatacommunities.org/id/metropolitan-district-council/walsall ,WC133-23,31.12.2021,ADULT SOCIAL CARE,5 CARE SERVICES LTD,07/12/2021,268.68,6541-Domiciliary Care,THIRD PARTY PAYMENTS,PRIVATE CONTRACTOR,REVENUE
Walsall Council,http://opendatacommunities.org/id/metropolitan-district-council/walsall ,WC133-24,31.12.2021,ADULT SOCIAL CARE,5 CARE SERVICES LTD,07/12/2021,490.49,6541-Domiciliary Care,THIRD PARTY PAYMENTS,PRIVATE CONTRACTOR,REVENUE
Walsall Council,http://opendatacommunities.org/id/metropolitan-district-council/walsall ,WC133-25,31.12.2021,ADULT SOCIAL CARE,5 CARE SERVICES LTD,07/12/2021,490.49,6541-Domiciliary Care,THIRD PARTY PAYMENTS,PRIVATE CONTRACTOR,REVENUE
Walsall Council,http://opendatacommunities.org/id/metropolitan-district-council/walsall ,WC133-26,31.12.2021,ADULT SOCIAL CARE,5 CARE SERVICES LTD,07/12/2021,544.95,6541-Domiciliary Care,THIRD PARTY PAYMENTS,PRIVATE CONTRACTOR,REVENUE
Walsall Council,http://opendatacommunities.org/id/metropolitan-district-council/walsall ,WC133-27,31.12.2021,ADULT SOCIAL CARE,5 CARE SERVICES LTD,07/12/2021,677.37,6541-Domiciliary Care,THIRD PARTY PAYMENTS,PRIVATE CONTRACTOR,REVENUE
Walsall Council,http://opendatacommunities.org/id/metropolitan-district-council/walsall ,WC133-28,31.12.2021,ADULT SOCIAL CARE,5 CARE SERVICES LTD,07/12/2021,326.97,6541-Domiciliary Care,THIRD PARTY PAYMENTS,PRIVATE CONTRACTOR,REVENUE
Walsall Council,http://opendatacommunities.org/id/metropolitan-district-council/walsall ,WC133-29,31.12.2021,ADULT SOCIAL CARE,5 CARE SERVICES LTD,07/12/2021,"1,198.89",6541-Domiciliary Care,THIRD PARTY PAYMENTS,PRIVATE CONTRACTOR,REVENUE
Walsall Council,http://opendatacommunities.org/id/metropolitan-district-council/walsall ,WC133-30,31.12.2021,ADULT SOCIAL CARE,5 CARE SERVICES LTD,07/12/2021,490.49,6541-Domiciliary Care,THIRD PARTY PAYMENTS,PRIVATE CONTRACTOR,REVENUE
Walsall Council,http://opendatacommunities.org/id/metropolitan-district-council/walsall ,WC133-31,31.12.2021,ADULT SOCIAL CARE,5 CARE SERVICES LTD,07/12/2021,591.66,6541-Domiciliary Care,THIRD PARTY PAYMENTS,PRIVATE CONTRACTOR,REVENUE
Walsall Council,http://opendatacommunities.org/id/metropolitan-district-council/walsall ,WC133-32,31.12.2021,ADULT SOCIAL CARE,5 CARE SERVICES LTD,07/12/2021,"-2,047.88",6541-Domiciliary Care,THIRD PARTY PAYMENTS,PRIVATE CONTRACTOR,REVENUE
Walsall Council,http://opendatacommunities.org/id/metropolitan-district-council/walsall ,WC133-33,31.12.2021,ADULT SOCIAL CARE,5 CARE SERVICES LTD,07/12/2021,560.52,6541-Domiciliary Care,THIRD PARTY PAYMENTS,PRIVATE CONTRACTOR,REVENUE
Walsall Council,http://opendatacommunities.org/id/metropolitan-district-council/walsall ,WC133-34,31.12.2021,ADULT SOCIAL CARE,5 CARE SERVICES LTD,07/12/2021,599.48,6541-Domiciliary Care,THIRD PARTY PAYMENTS,PRIVATE CONTRACTOR,REVENUE
Walsall Council,http://opendatacommunities.org/id/metropolitan-district-council/walsall ,WC133-35,31.12.2021,ADULT SOCIAL CARE,5 CARE SERVICES LTD,07/12/2021,705.84,6541-Domiciliary Care,THIRD PARTY PAYMENTS,PRIVATE CONTRACTOR,REVENUE
Walsall Council,http://opendatacommunities.org/id/metropolitan-district-council/walsall ,WC133-36,31.12.2021,ADULT SOCIAL CARE,5 CARE SERVICES LTD,07/12/2021,490.49,6541-Domiciliary Care,THIRD PARTY PAYMENTS,PRIVATE CONTRACTOR,REVENUE
Walsall Council,http://opendatacommunities.org/id/metropolitan-district-council/walsall ,WC133-37,31.12.2021,ADULT SOCIAL CARE,5 CARE SERVICES LTD,07/12/2021,544.95,6541-Domiciliary Care,THIRD PARTY PAYMENTS,PRIVATE CONTRACTOR,REVENUE
Walsall Council,http://opendatacommunities.org/id/metropolitan-district-council/walsall ,WC133-38,31.12.2021,ADULT SOCIAL CARE,5 CARE SERVICES LTD,07/12/2021,"1,307.88",6541-Domiciliary Care,THIRD PARTY PAYMENTS,PRIVATE CONTRACTOR,REVENUE
Walsall Council,http://opendatacommunities.org/id/metropolitan-district-council/walsall ,WC133-39,31.12.2021,ADULT SOCIAL CARE,5 CARE SERVICES LTD,07/12/2021,654.01,6541-Domiciliary Care,THIRD PARTY PAYMENTS,PRIVATE CONTRACTOR,REVENUE
Walsall Council,http://opendatacommunities.org/id/metropolitan-district-council/walsall ,WC133-40,31.12.2021,ADULT SOCIAL CARE,5 CARE SERVICES LTD,07/12/2021,327.04,6541-Domiciliary Care,THIRD PARTY PAYMENTS,PRIVATE CONTRACTOR,REVENUE
Walsall Council,http://opendatacommunities.org/id/metropolitan-district-council/walsall ,WC133-41,31.12.2021,ADULT SOCIAL CARE,5 CARE SERVICES LTD,07/12/2021,490.49,6541-Domiciliary Care,THIRD PARTY PAYMENTS,PRIVATE CONTRACTOR,REVENUE
Walsall Council,http://opendatacommunities.org/id/metropolitan-district-council/walsall ,WC133-42,31.12.2021,ADULT SOCIAL CARE,5 CARE SERVICES LTD,07/12/2021,591.66,6541-Domiciliary Care,THIRD PARTY PAYMENTS,PRIVATE CONTRACTOR,REVENUE
Walsall Council,http://opendatacommunities.org/id/metropolitan-district-council/walsall ,WC133-43,31.12.2021,ADULT SOCIAL CARE,5 CARE SERVICES LTD,07/12/2021,311.40,6541-Domiciliary Care,THIRD PARTY PAYMENTS,PRIVATE CONTRACTOR,REVENUE
Walsall Council,http://opendatacommunities.org/id/metropolitan-district-council/walsall ,WC133-44,31.12.2021,ADULT SOCIAL CARE,5 CARE SERVICES LTD,07/12/2021,326.97,6541-Domiciliary Care,THIRD PARTY PAYMENTS,PRIVATE CONTRACTOR,REVENUE
Walsall Council,http://opendatacommunities.org/id/metropolitan-district-council/walsall ,WC133-45,31.12.2021,ADULT SOCIAL CARE,5 CARE SERVICES LTD,07/12/2021,654.01,6541-Domiciliary Care,THIRD PARTY PAYMENTS,PRIVATE CONTRACTOR,REVENUE
Walsall Council,http://opendatacommunities.org/id/metropolitan-district-council/walsall ,WC133-46,31.12.2021,ADULT SOCIAL CARE,5 CARE SERVICES LTD,07/12/2021,"1,198.89",6541-Domiciliary Care,THIRD PARTY PAYMENTS,PRIVATE CONTRACTOR,REVENUE
Walsall Council,http://opendatacommunities.org/id/metropolitan-district-council/walsall ,WC133-47,31.12.2021,ADULT SOCIAL CARE,5 CARE SERVICES LTD,07/12/2021,"1,121.04",6541-Domiciliary Care,THIRD PARTY PAYMENTS,PRIVATE CONTRACTOR,REVENUE
Walsall Council,http://opendatacommunities.org/id/metropolitan-district-council/walsall ,WC133-48,31.12.2021,ADULT SOCIAL CARE,5 CARE SERVICES LTD,07/12/2021,490.49,6541-Domiciliary Care,THIRD PARTY PAYMENTS,PRIVATE CONTRACTOR,REVENUE
Walsall Council,http://opendatacommunities.org/id/metropolitan-district-council/walsall ,WC133-49,31.12.2021,ADULT SOCIAL CARE,5 CARE SERVICES LTD,07/12/2021,490.49,6541-Domiciliary Care,THIRD PARTY PAYMENTS,PRIVATE CONTRACTOR,REVENUE
Walsall Council,http://opendatacommunities.org/id/metropolitan-district-council/walsall ,WC133-50,31.12.2021,ADULT SOCIAL CARE,5 CARE SERVICES LTD,07/12/2021,268.68,6541-Domiciliary Care,THIRD PARTY PAYMENTS,PRIVATE CONTRACTOR,REVENUE
Walsall Council,http://opendatacommunities.org/id/metropolitan-district-council/walsall ,WC133-51,31.12.2021,ADULT SOCIAL CARE,5 CARE SERVICES LTD,07/12/2021,490.49,6541-Domiciliary Care,THIRD PARTY PAYMENTS,PRIVATE CONTRACTOR,REVENUE
Walsall Council,http://opendatacommunities.org/id/metropolitan-district-council/walsall ,WC133-52,31.12.2021,ADULT SOCIAL CARE,5 CARE SERVICES LTD,07/12/2021,327.04,6541-Domiciliary Care,THIRD PARTY PAYMENTS,PRIVATE CONTRACTOR,REVENUE
Walsall Council,http://opendatacommunities.org/id/metropolitan-district-council/walsall ,WC133-53,31.12.2021,ADULT SOCIAL CARE,5 CARE SERVICES LTD,07/12/2021,654.01,6541-Domiciliary Care,THIRD PARTY PAYMENTS,PRIVATE CONTRACTOR,REVENUE
Walsall Council,http://opendatacommunities.org/id/metropolitan-district-council/walsall ,WC133-54,31.12.2021,ADULT SOCIAL CARE,5 CARE SERVICES LTD,07/12/2021,326.97,6541-Domiciliary Care,THIRD PARTY PAYMENTS,PRIVATE CONTRACTOR,REVENUE
Walsall Council,http://opendatacommunities.org/id/metropolitan-district-council/walsall ,WC133-55,31.12.2021,ADULT SOCIAL CARE,5 CARE SERVICES LTD,07/12/2021,560.52,6541-Domiciliary Care,THIRD PARTY PAYMENTS,PRIVATE CONTRACTOR,REVENUE
Walsall Council,http://opendatacommunities.org/id/metropolitan-district-council/walsall ,WC133-56,31.12.2021,ADULT SOCIAL CARE,5 CARE SERVICES LTD,07/12/2021,490.49,6541-Domiciliary Care,THIRD PARTY PAYMENTS,PRIVATE CONTRACTOR,REVENUE
Walsall Council,http://opendatacommunities.org/id/metropolitan-district-council/walsall ,WC133-57,31.12.2021,ADULT SOCIAL CARE,5 CARE SERVICES LTD,07/12/2021,544.95,6541-Domiciliary Care,THIRD PARTY PAYMENTS,PRIVATE CONTRACTOR,REVENUE
Walsall Council,http://opendatacommunities.org/id/metropolitan-district-council/walsall ,WC133-58,31.12.2021,ADULT SOCIAL CARE,5 CARE SERVICES LTD,07/12/2021,599.48,6541-Domiciliary Care,THIRD PARTY PAYMENTS,PRIVATE CONTRACTOR,REVENUE
Walsall Council,http://opendatacommunities.org/id/metropolitan-district-council/walsall ,WC133-59,31.12.2021,ADULT SOCIAL CARE,5 CARE SERVICES LTD,07/12/2021,705.84,6541-Domiciliary Care,THIRD PARTY PAYMENTS,PRIVATE CONTRACTOR,REVENUE
Walsall Council,http://opendatacommunities.org/id/metropolitan-district-council/walsall ,WC133-60,31.12.2021,ADULT SOCIAL CARE,5 CARE SERVICES LTD,16/12/2021,455.65,6541-Domiciliary Care,THIRD PARTY PAYMENTS,PRIVATE CONTRACTOR,REVENUE
Walsall Council,http://opendatacommunities.org/id/metropolitan-district-council/walsall ,WC133-61,31.12.2021,ADULT SOCIAL CARE,5 CARE SERVICES LTD,16/12/2021,"1,961.96",6541-Domiciliary Care,THIRD PARTY PAYMENTS,PRIVATE CONTRACTOR,REVENUE
Walsall Council,http://opendatacommunities.org/id/metropolitan-district-council/walsall ,WC133-62,31.12.2021,ADULT SOCIAL CARE,5 CARE SERVICES LTD,16/12/2021,525.75,6541-Domiciliary Care,THIRD PARTY PAYMENTS,PRIVATE CONTRACTOR,REVENUE
Walsall Council,http://opendatacommunities.org/id/metropolitan-district-council/walsall ,WC133-63,31.12.2021,ADULT SOCIAL CARE,5 CARE SERVICES LTD,16/12/2021,264.86,6541-Domiciliary Care,THIRD PARTY PAYMENTS,PRIVATE CONTRACTOR,REVENUE
Walsall Council,http://opendatacommunities.org/id/metropolitan-district-council/walsall ,WC133-64,31.12.2021,ADULT SOCIAL CARE,5 CARE SERVICES LTD,21/12/2021,654.01,6541-Domiciliary Care,THIRD PARTY PAYMENTS,PRIVATE CONTRACTOR,REVENUE
Walsall Council,http://opendatacommunities.org/id/metropolitan-district-council/walsall ,WC133-65,31.12.2021,ADULT SOCIAL CARE,5 CARE SERVICES LTD,21/12/2021,490.49,6541-Domiciliary Care,THIRD PARTY PAYMENTS,PRIVATE CONTRACTOR,REVENUE
Walsall Council,http://opendatacommunities.org/id/metropolitan-district-council/walsall ,WC133-66,31.12.2021,ADULT SOCIAL CARE,5 CARE SERVICES LTD,21/12/2021,591.66,6541-Domiciliary Care,THIRD PARTY PAYMENTS,PRIVATE CONTRACTOR,REVENUE
Walsall Council,http://opendatacommunities.org/id/metropolitan-district-council/walsall ,WC133-67,31.12.2021,ADULT SOCIAL CARE,5 CARE SERVICES LTD,21/12/2021,490.49,6541-Domiciliary Care,THIRD PARTY PAYMENTS,PRIVATE CONTRACTOR,REVENUE
Walsall Council,http://opendatacommunities.org/id/metropolitan-district-council/walsall ,WC133-68,31.12.2021,ADULT SOCIAL CARE,5 CARE SERVICES LTD,21/12/2021,268.68,6541-Domiciliary Care,THIRD PARTY PAYMENTS,PRIVATE CONTRACTOR,REVENUE
Walsall Council,http://opendatacommunities.org/id/metropolitan-district-council/walsall ,WC133-69,31.12.2021,ADULT SOCIAL CARE,5 CARE SERVICES LTD,21/12/2021,654.01,6541-Domiciliary Care,THIRD PARTY PAYMENTS,PRIVATE CONTRACTOR,REVENUE
Walsall Council,http://opendatacommunities.org/id/metropolitan-district-council/walsall ,WC133-70,31.12.2021,ADULT SOCIAL CARE,5 CARE SERVICES LTD,21/12/2021,326.97,6541-Domiciliary Care,THIRD PARTY PAYMENTS,PRIVATE CONTRACTOR,REVENUE
Walsall Council,http://opendatacommunities.org/id/metropolitan-district-council/walsall ,WC133-71,31.12.2021,ADULT SOCIAL CARE,5 CARE SERVICES LTD,21/12/2021,490.49,6541-Domiciliary Care,THIRD PARTY PAYMENTS,PRIVATE CONTRACTOR,REVENUE
Walsall Council,http://opendatacommunities.org/id/metropolitan-district-council/walsall ,WC133-72,31.12.2021,ADULT SOCIAL CARE,5 CARE SERVICES LTD,21/12/2021,544.95,6541-Domiciliary Care,THIRD PARTY PAYMENTS,PRIVATE CONTRACTOR,REVENUE
Walsall Council,http://opendatacommunities.org/id/metropolitan-district-council/walsall ,WC133-73,31.12.2021,ADULT SOCIAL CARE,5 CARE SERVICES LTD,21/12/2021,934.20,6541-Domiciliary Care,THIRD PARTY PAYMENTS,PRIVATE CONTRACTOR,REVENUE
Walsall Council,http://opendatacommunities.org/id/metropolitan-district-council/walsall ,WC133-74,31.12.2021,ADULT SOCIAL CARE,5 CARE SERVICES LTD,21/12/2021,"1,198.89",6541-Domiciliary Care,THIRD PARTY PAYMENTS,PRIVATE CONTRACTOR,REVENUE
Walsall Council,http://opendatacommunities.org/id/metropolitan-district-council/walsall ,WC133-75,31.12.2021,ADULT SOCIAL CARE,5 CARE SERVICES LTD,21/12/2021,599.48,6541-Domiciliary Care,THIRD PARTY PAYMENTS,PRIVATE CONTRACTOR,REVENUE
Walsall Council,http://opendatacommunities.org/id/metropolitan-district-council/walsall ,WC133-76,31.12.2021,ADULT SOCIAL CARE,5 CARE SERVICES LTD,21/12/2021,705.84,6541-Domiciliary Care,THIRD PARTY PAYMENTS,PRIVATE CONTRACTOR,REVENUE
Walsall Council,http://opendatacommunities.org/id/metropolitan-district-council/walsall ,WC133-77,31.12.2021,ADULT SOCIAL CARE,5 CARE SERVICES LTD,21/12/2021,490.49,6541-Domiciliary Care,THIRD PARTY PAYMENTS,PRIVATE CONTRACTOR,REVENUE
Walsall Council,http://opendatacommunities.org/id/metropolitan-district-council/walsall ,WC133-78,31.12.2021,ADULT SOCIAL CARE,5 CARE SERVICES LTD,21/12/2021,327.04,6541-Domiciliary Care,THIRD PARTY PAYMENTS,PRIVATE CONTRACTOR,REVENUE
Walsall Council,http://opendatacommunities.org/id/metropolitan-district-council/walsall ,WC133-79,31.12.2021,ADULT SOCIAL CARE,5 CARE SERVICES LTD,21/12/2021,560.52,6541-Domiciliary Care,THIRD PARTY PAYMENTS,PRIVATE CONTRACTOR,REVENUE
Walsall Council,http://opendatacommunities.org/id/metropolitan-district-council/walsall ,WC133-80,31.12.2021,ADULT SOCIAL CARE,5 CARE SERVICES LTD,21/12/2021,311.40,6541-Domiciliary Care,THIRD PARTY PAYMENTS,PRIVATE CONTRACTOR,REVENUE
Walsall Council,http://opendatacommunities.org/id/metropolitan-district-council/walsall ,WC133-81,31.12.2021,ADULT SOCIAL CARE,5 CARE SERVICES LTD,21/12/2021,326.97,6541-Domiciliary Care,THIRD PARTY PAYMENTS,PRIVATE CONTRACTOR,REVENUE
Walsall Council,http://opendatacommunities.org/id/metropolitan-district-council/walsall ,WC133-82,31.12.2021,ADULT SOCIAL CARE,5 CARE SERVICES LTD,21/12/2021,490.49,6541-Domiciliary Care,THIRD PARTY PAYMENTS,PRIVATE CONTRACTOR,REVENUE
Walsall Council,http://opendatacommunities.org/id/metropolitan-district-council/walsall ,WC133-83,31.12.2021,ADULT SOCIAL CARE,5 CARE SERVICES LTD,21/12/2021,268.68,6541-Domiciliary Care,THIRD PARTY PAYMENTS,PRIVATE CONTRACTOR,REVENUE
Walsall Council,http://opendatacommunities.org/id/metropolitan-district-council/walsall ,WC133-84,31.12.2021,ADULT SOCIAL CARE,5 CARE SERVICES LTD,21/12/2021,654.01,6541-Domiciliary Care,THIRD PARTY PAYMENTS,PRIVATE CONTRACTOR,REVENUE
Walsall Council,http://opendatacommunities.org/id/metropolitan-district-council/walsall ,WC133-85,31.12.2021,ADULT SOCIAL CARE,5 CARE SERVICES LTD,21/12/2021,490.49,6541-Domiciliary Care,THIRD PARTY PAYMENTS,PRIVATE CONTRACTOR,REVENUE
Walsall Council,http://opendatacommunities.org/id/metropolitan-district-council/walsall ,WC133-86,31.12.2021,ADULT SOCIAL CARE,5 CARE SERVICES LTD,21/12/2021,591.66,6541-Domiciliary Care,THIRD PARTY PAYMENTS,PRIVATE CONTRACTOR,REVENUE
Walsall Council,http://opendatacommunities.org/id/metropolitan-district-council/walsall ,WC133-87,31.12.2021,ADULT SOCIAL CARE,5 CARE SERVICES LTD,21/12/2021,490.49,6541-Domiciliary Care,THIRD PARTY PAYMENTS,PRIVATE CONTRACTOR,REVENUE
Walsall Council,http://opendatacommunities.org/id/metropolitan-district-council/walsall ,WC133-88,31.12.2021,ADULT SOCIAL CARE,5 CARE SERVICES LTD,21/12/2021,544.95,6541-Domiciliary Care,THIRD PARTY PAYMENTS,PRIVATE CONTRACTOR,REVENUE
Walsall Council,http://opendatacommunities.org/id/metropolitan-district-council/walsall ,WC133-89,31.12.2021,ADULT SOCIAL CARE,5 CARE SERVICES LTD,21/12/2021,311.40,6541-Domiciliary Care,THIRD PARTY PAYMENTS,PRIVATE CONTRACTOR,REVENUE
Walsall Council,http://opendatacommunities.org/id/metropolitan-district-council/walsall ,WC133-90,31.12.2021,ADULT SOCIAL CARE,5 CARE SERVICES LTD,21/12/2021,326.97,6541-Domiciliary Care,THIRD PARTY PAYMENTS,PRIVATE CONTRACTOR,REVENUE
Walsall Council,http://opendatacommunities.org/id/metropolitan-district-council/walsall ,WC133-91,31.12.2021,ADULT SOCIAL CARE,5 CARE SERVICES LTD,21/12/2021,490.49,6541-Domiciliary Care,THIRD PARTY PAYMENTS,PRIVATE CONTRACTOR,REVENUE
Walsall Council,http://opendatacommunities.org/id/metropolitan-district-council/walsall ,WC133-92,31.12.2021,ADULT SOCIAL CARE,5 CARE SERVICES LTD,21/12/2021,490.49,6541-Domiciliary Care,THIRD PARTY PAYMENTS,PRIVATE CONTRACTOR,REVENUE
Walsall Council,http://opendatacommunities.org/id/metropolitan-district-council/walsall ,WC133-93,31.12.2021,ADULT SOCIAL CARE,5 CARE SERVICES LTD,21/12/2021,"1,198.89",6541-Domiciliary Care,THIRD PARTY PAYMENTS,PRIVATE CONTRACTOR,REVENUE
Walsall Council,http://opendatacommunities.org/id/metropolitan-district-council/walsall ,WC133-94,31.12.2021,ADULT SOCIAL CARE,5 CARE SERVICES LTD,21/12/2021,560.52,6541-Domiciliary Care,THIRD PARTY PAYMENTS,PRIVATE CONTRACTOR,REVENUE
Walsall Council,http://opendatacommunities.org/id/metropolitan-district-council/walsall ,WC133-95,31.12.2021,ADULT SOCIAL CARE,5 CARE SERVICES LTD,21/12/2021,654.01,6541-Domiciliary Care,THIRD PARTY PAYMENTS,PRIVATE CONTRACTOR,REVENUE
Walsall Council,http://opendatacommunities.org/id/metropolitan-district-council/walsall ,WC133-96,31.12.2021,ADULT SOCIAL CARE,5 CARE SERVICES LTD,21/12/2021,326.97,6541-Domiciliary Care,THIRD PARTY PAYMENTS,PRIVATE CONTRACTOR,REVENUE
Walsall Council,http://opendatacommunities.org/id/metropolitan-district-council/walsall ,WC133-97,31.12.2021,ADULT SOCIAL CARE,5 CARE SERVICES LTD,21/12/2021,599.48,6541-Domiciliary Care,THIRD PARTY PAYMENTS,PRIVATE CONTRACTOR,REVENUE
Walsall Council,http://opendatacommunities.org/id/metropolitan-district-council/walsall ,WC133-98,31.12.2021,ADULT SOCIAL CARE,5 CARE SERVICES LTD,21/12/2021,"1,121.04",6541-Domiciliary Care,THIRD PARTY PAYMENTS,PRIVATE CONTRACTOR,REVENUE
Walsall Council,http://opendatacommunities.org/id/metropolitan-district-council/walsall ,WC133-99,31.12.2021,ADULT SOCIAL CARE,5 CARE SERVICES LTD,21/12/2021,705.84,6541-Domiciliary Care,THIRD PARTY PAYMENTS,PRIVATE CONTRACTOR,REVENUE
Walsall Council,http://opendatacommunities.org/id/metropolitan-district-council/walsall ,WC133-100,31.12.2021,ADULT SOCIAL CARE,5 CARE SERVICES LTD,21/12/2021,490.49,6541-Domiciliary Care,THIRD PARTY PAYMENTS,PRIVATE CONTRACTOR,REVENUE
Walsall Council,http://opendatacommunities.org/id/metropolitan-district-council/walsall ,WC133-101,31.12.2021,ADULT SOCIAL CARE,5 CARE SERVICES LTD,21/12/2021,327.04,6541-Domiciliary Care,THIRD PARTY PAYMENTS,PRIVATE CONTRACTOR,REVENUE
Walsall Council,http://opendatacommunities.org/id/metropolitan-district-council/walsall ,WC133-102,31.12.2021,CHILDRENS,5 CARE SERVICES LTD,09/12/2021,255.20,6220-Professional Fees & Services,SUPPLIES & SERVICES,SERVICES,REVENUE
Walsall Council,http://opendatacommunities.org/id/metropolitan-district-council/walsall ,WC133-103,31.12.2021,CHILDRENS,5 CARE SERVICES LTD,16/12/2021,255.20,6220-Professional Fees & Services,SUPPLIES & SERVICES,SERVICES,REVENUE
Walsall Council,http://opendatacommunities.org/id/metropolitan-district-council/walsall ,WC133-104,31.12.2021,CHILDRENS CAPITAL,A & S LANDSCAPE LTD,02/12/2021,"10,903.50",7155-Purchase of Furniture & Equipment,CAPITAL,"VEHICLES,PLANT,EQUIPMENT & MACHINERY",CAPITAL
Walsall Council,http://opendatacommunities.org/id/metropolitan-district-council/walsall ,WC133-105,31.12.2021,RESOURCES AND TRANSFORMATION,A D T FIRE AND SECURITY PLC,08/12/2021,259.00,6310-Repair & Maintenance of Furniture & Equipment,SUPPLIES & SERVICES,EQUIPMENT FURNITURE & MATERIALS,REVENUE
Walsall Council,http://opendatacommunities.org/id/metropolitan-district-council/walsall ,WC133-106,31.12.2021,RESOURCES AND TRANSFORMATION,A D T FIRE AND SECURITY PLC,21/12/2021,311.29,6310-Repair & Maintenance of Furniture & Equipment,SUPPLIES & SERVICES,EQUIPMENT FURNITURE & MATERIALS,REVENUE
Walsall Council,http://opendatacommunities.org/id/metropolitan-district-council/walsall ,WC133-107,31.12.2021,CHILDRENS,A D T FIRE AND SECURITY PLC,21/12/2021,905.97,6223-Repair & Maintenance of Furniture & Equipment,SUPPLIES & SERVICES,EQUIPMENT FURNITURE & MATERIALS,REVENUE
Walsall Council,http://opendatacommunities.org/id/metropolitan-district-council/walsall ,WC133-108,31.12.2021,RESOURCES AND TRANSFORMATION,A D T FIRE AND SECURITY PLC,21/12/2021,538.48,6310-Repair & Maintenance of Furniture & Equipment,SUPPLIES & SERVICES,EQUIPMENT FURNITURE & MATERIALS,REVENUE
Walsall Council,http://opendatacommunities.org/id/metropolitan-district-council/walsall ,WC133-109,31.12.2021,"ECONOMY, ENVIRONMENT & COMMUNITIES",A F BLAKEMORE & SON LTD,08/12/2021,252.82,6413-Food & Drink Supplies,SUPPLIES & SERVICES,CATERING,REVENUE
Walsall Council,http://opendatacommunities.org/id/metropolitan-district-council/walsall ,WC133-110,31.12.2021,"ECONOMY, ENVIRONMENT & COMMUNITIES",A F BLAKEMORE & SON LTD,08/12/2021,486.01,6413-Food & Drink Supplies,SUPPLIES & SERVICES,CATERING,REVENUE
Walsall Council,http://opendatacommunities.org/id/metropolitan-district-council/walsall ,WC133-111,31.12.2021,"ECONOMY, ENVIRONMENT & COMMUNITIES",A F BLAKEMORE & SON LTD,14/12/2021,312.78,6413-Food & Drink Supplies,SUPPLIES & SERVICES,CATERING,REVENUE
Walsall Council,http://opendatacommunities.org/id/metropolitan-district-council/walsall ,WC133-112,31.12.2021,"ECONOMY, ENVIRONMENT & COMMUNITIES",A F BLAKEMORE & SON LTD,14/12/2021,"1,228.83",6413-Food & Drink Supplies,SUPPLIES & SERVICES,CATERING,REVENUE
Walsall Council,http://opendatacommunities.org/id/metropolitan-district-council/walsall ,WC133-113,31.12.2021,"ECONOMY, ENVIRONMENT & COMMUNITIES",A F BLAKEMORE & SON LTD,01/12/2021,461.50,6413-Food & Drink Supplies,SUPPLIES & SERVICES,CATERING,REVENUE
Walsall Council,http://opendatacommunities.org/id/metropolitan-district-council/walsall ,WC133-114,31.12.2021,"ECONOMY, ENVIRONMENT & COMMUNITIES",A F BLAKEMORE & SON LTD,03/12/2021,559.48,6413-Food & Drink Supplies,SUPPLIES & SERVICES,CATERING,REVENUE
Walsall Council,http://opendatacommunities.org/id/metropolitan-district-council/walsall ,WC133-115,31.12.2021,"ECONOMY, ENVIRONMENT & COMMUNITIES",A F BLAKEMORE & SON LTD,09/12/2021,338.83,6413-Food & Drink Supplies,SUPPLIES & SERVICES,CATERING,REVENUE
Walsall Council,http://opendatacommunities.org/id/metropolitan-district-council/walsall ,WC133-116,31.12.2021,CHILDRENS CAPITAL,A P BEEVOR,02/12/2021,"3,270.00",7155-Site Works Contractors,CAPITAL,"NEW CONSTRUCTION,CONVERSION & RENOVATION",CAPITAL
Walsall Council,http://opendatacommunities.org/id/metropolitan-district-council/walsall ,WC133-117,31.12.2021,RESOURCES AND TRANSFORMATION,AAINA COMMUNITY HUB,08/12/2021,300.00,6610-Hire of Room,SUPPLIES & SERVICES,SERVICES,REVENUE
Walsall Council,http://opendatacommunities.org/id/metropolitan-district-council/walsall ,WC133-118,31.12.2021,CHILDRENS,AAINA COMMUNITY HUB,08/12/2021,"5,000.00",6314-Grants to Other Orgs,SUPPLIES & SERVICES,GRANTS (EXP) & SUBSCRIPTIONS,REVENUE
Walsall Council,http://opendatacommunities.org/id/metropolitan-district-council/walsall ,WC133-119,31.12.2021,"ECONOMY, ENVIRONMENT & COMMUNITIES",AAINA COMMUNITY HUB,10/12/2021,"3,000.00",6430-Grants to Other Orgs,SUPPLIES & SERVICES,GRANTS (EXP) & SUBSCRIPTIONS,REVENUE
Walsall Council,http://opendatacommunities.org/id/metropolitan-district-council/walsall ,WC133-120,31.12.2021,"ECONOMY, ENVIRONMENT & COMMUNITIES",AAINA COMMUNITY HUB,08/12/2021,-994.97,6313-Grants to Other Orgs,SUPPLIES & SERVICES,GRANTS (EXP) & SUBSCRIPTIONS,REVENUE
Walsall Council,http://opendatacommunities.org/id/metropolitan-district-council/walsall ,WC133-121,31.12.2021,"ECONOMY, ENVIRONMENT & COMMUNITIES",AAINA COMMUNITY HUB,08/12/2021,944.97,6313-Grants to Other Orgs,SUPPLIES & SERVICES,GRANTS (EXP) & SUBSCRIPTIONS,REVENUE
Walsall Council,http://opendatacommunities.org/id/metropolitan-district-council/walsall ,WC133-122,31.12.2021,"ECONOMY, ENVIRONMENT & COMMUNITIES",AAINA COMMUNITY HUB,08/12/2021,994.97,6313-Grants to Other Orgs,SUPPLIES & SERVICES,GRANTS (EXP) & SUBSCRIPTIONS,REVENUE
Walsall Council,http://opendatacommunities.org/id/metropolitan-district-council/walsall ,WC133-123,31.12.2021,ADULT SOCIAL CARE,ABBEY COURT NURSING & RESIDEN,21/12/2021,"2,571.08",6541-Residential EMI,THIRD PARTY PAYMENTS,PRIVATE CONTRACTOR,REVENUE
Walsall Council,http://opendatacommunities.org/id/metropolitan-district-council/walsall ,WC133-124,31.12.2021,ADULT SOCIAL CARE,ABBEY COURT NURSING & RESIDEN,21/12/2021,"2,064.44",6541-Residential,THIRD PARTY PAYMENTS,PRIVATE CONTRACTOR,REVENUE
Walsall Council,http://opendatacommunities.org/id/metropolitan-district-council/walsall ,WC133-125,31.12.2021,ADULT SOCIAL CARE,ABBEY COURT NURSING & RESIDEN,21/12/2021,"2,331.08",6541-Residential EMI,THIRD PARTY PAYMENTS,PRIVATE CONTRACTOR,REVENUE
Walsall Council,http://opendatacommunities.org/id/metropolitan-district-council/walsall ,WC133-126,31.12.2021,ADULT SOCIAL CARE,ABBEY COURT NURSING & RESIDEN,21/12/2021,"1,814.97",6541-Nursing,THIRD PARTY PAYMENTS,PRIVATE CONTRACTOR,REVENUE
Walsall Council,http://opendatacommunities.org/id/metropolitan-district-council/walsall ,WC133-127,31.12.2021,ADULT SOCIAL CARE,ABBEY HEALTHCARE HOMES LTD,21/12/2021,"3,551.56",6541-Residential,THIRD PARTY PAYMENTS,PRIVATE CONTRACTOR,REVENUE
Walsall Council,http://opendatacommunities.org/id/metropolitan-district-council/walsall ,WC133-128,31.12.2021,ADULT SOCIAL CARE,ABBEY HEALTHCARE HOMES LTD,21/12/2021,"3,133.76",6541-Residential,THIRD PARTY PAYMENTS,PRIVATE CONTRACTOR,REVENUE
Walsall Council,http://opendatacommunities.org/id/metropolitan-district-council/walsall ,WC133-129,31.12.2021,ADULT SOCIAL CARE,ABBEY HEALTHCARE HOMES LTD,21/12/2021,"2,396.36",6541-Residential,THIRD PARTY PAYMENTS,PRIVATE CONTRACTOR,REVENUE
Walsall Council,http://opendatacommunities.org/id/metropolitan-district-council/walsall ,WC133-130,31.12.2021,ADULT SOCIAL CARE,ABBEY HEALTHCARE HOMES LTD,21/12/2021,"3,133.76",6541-Residential,THIRD PARTY PAYMENTS,PRIVATE CONTRACTOR,REVENUE
Walsall Council,http://opendatacommunities.org/id/metropolitan-district-council/walsall ,WC133-131,31.12.2021,ADULT SOCIAL CARE,REDACTED,08/12/2021,"2,665.60",6541-Direct Payment,THIRD PARTY PAYMENTS,PRIVATE CONTRACTOR,REVENUE
Walsall Council,http://opendatacommunities.org/id/metropolitan-district-council/walsall ,WC133-132,31.12.2021,CHILDRENS,ABLEWELL CARS,06/12/2021,858.60,6241-Hire of Vehicle with Driver,TRANSPORT,DIRECT TRANSPORT COSTS,REVENUE
Walsall Council,http://opendatacommunities.org/id/metropolitan-district-council/walsall ,WC133-133,31.12.2021,CHILDRENS,ABLEWELL CARS,06/12/2021,"1,482.00",6241-Hire of Vehicle with Driver,TRANSPORT,DIRECT TRANSPORT COSTS,REVENUE
Walsall Council,http://opendatacommunities.org/id/metropolitan-district-council/walsall ,WC133-134,31.12.2021,CHILDRENS,ABLEWELL CARS,06/12/2021,"1,248.00",6241-Hire of Vehicle with Driver,TRANSPORT,DIRECT TRANSPORT COSTS,REVENUE
Walsall Council,http://opendatacommunities.org/id/metropolitan-district-council/walsall ,WC133-135,31.12.2021,CHILDRENS,ABLEWELL CARS,06/12/2021,675.00,6241-Hire of Vehicle with Driver,TRANSPORT,DIRECT TRANSPORT COSTS,REVENUE
Walsall Council,http://opendatacommunities.org/id/metropolitan-district-council/walsall ,WC133-136,31.12.2021,CHILDRENS,ABLEWELL CARS,06/12/2021,992.70,6241-Hire of Vehicle with Driver,TRANSPORT,DIRECT TRANSPORT COSTS,REVENUE
Walsall Council,http://opendatacommunities.org/id/metropolitan-district-council/walsall ,WC133-137,31.12.2021,CHILDRENS,ABLEWELL CARS,06/12/2021,"2,190.00",6241-Hire of Vehicle with Driver,TRANSPORT,DIRECT TRANSPORT COSTS,REVENUE
Walsall Council,http://opendatacommunities.org/id/metropolitan-district-council/walsall ,WC133-138,31.12.2021,CHILDRENS,ABS TAXIS (ALDRIDGE),06/12/2021,"1,269.80",6241-Hire of Vehicle with Driver,TRANSPORT,DIRECT TRANSPORT COSTS,REVENUE
Walsall Council,http://opendatacommunities.org/id/metropolitan-district-council/walsall ,WC133-139,31.12.2021,"ECONOMY, ENVIRONMENT & COMMUNITIES",AC OPTICS LTD,20/12/2021,-710.66,6313-Grants to Other Orgs,SUPPLIES & SERVICES,GRANTS (EXP) & SUBSCRIPTIONS,REVENUE
Walsall Council,http://opendatacommunities.org/id/metropolitan-district-council/walsall ,WC133-140,31.12.2021,"ECONOMY, ENVIRONMENT & COMMUNITIES",AC OPTICS LTD,20/12/2021,710.66,6313-Grants to Other Orgs,SUPPLIES & SERVICES,GRANTS (EXP) & SUBSCRIPTIONS,REVENUE
Walsall Council,http://opendatacommunities.org/id/metropolitan-district-council/walsall ,WC133-141,31.12.2021,"ECONOMY, ENVIRONMENT & COMMUNITIES",AC OPTICS LTD,20/12/2021,710.66,6313-Grants to Other Orgs,SUPPLIES & SERVICES,GRANTS (EXP) & SUBSCRIPTIONS,REVENUE
Walsall Council,http://opendatacommunities.org/id/metropolitan-district-council/walsall ,WC133-142,31.12.2021,"ECONOMY, ENVIRONMENT & COMMUNITIES",AC OPTICS LTD,13/12/2021,710.64,6313-Grants to Other Orgs,SUPPLIES & SERVICES,GRANTS (EXP) & SUBSCRIPTIONS,REVENUE
Walsall Council,http://opendatacommunities.org/id/metropolitan-district-council/walsall ,WC133-143,31.12.2021,CHILDRENS,ACCALIA CARE SERVICES LTD,23/12/2021,"15,000.00",6223-External Residential Care-Oth Agency Provision,THIRD PARTY PAYMENTS,PRIVATE CONTRACTOR,REVENUE
Walsall Council,http://opendatacommunities.org/id/metropolitan-district-council/walsall ,WC133-144,31.12.2021,ADULT SOCIAL CARE,ACCESS UK LTD T/A HCSS EDUCATINO LTD,22/12/2021,"18,315.00",6551-Repair & Maintenance of Furniture & Equipment,SUPPLIES & SERVICES,EQUIPMENT FURNITURE & MATERIALS,REVENUE
Walsall Council,http://opendatacommunities.org/id/metropolitan-district-council/walsall ,WC133-145,31.12.2021,ADULT SOCIAL CARE,ACCESS UK LTD T/A HCSS EDUCATINO LTD,22/12/2021,"18,315.00",6551-Repair & Maintenance of Furniture & Equipment,SUPPLIES & SERVICES,EQUIPMENT FURNITURE & MATERIALS,REVENUE
Walsall Council,http://opendatacommunities.org/id/metropolitan-district-council/walsall ,WC133-146,31.12.2021,ADULT SOCIAL CARE,ACCESS UK LTD T/A HCSS EDUCATINO LTD,22/12/2021,"-18,315.00",6551-Repair & Maintenance of Furniture & Equipment,SUPPLIES & SERVICES,EQUIPMENT FURNITURE & MATERIALS,REVENUE
Walsall Council,http://opendatacommunities.org/id/metropolitan-district-council/walsall ,WC133-147,31.12.2021,ADULT SOCIAL CARE,ACCESS UK LTD T/A HCSS EDUCATINO LTD,22/12/2021,"18,315.00",6551-Repair & Maintenance of Furniture & Equipment,SUPPLIES & SERVICES,EQUIPMENT FURNITURE & MATERIALS,REVENUE
Walsall Council,http://opendatacommunities.org/id/metropolitan-district-council/walsall ,WC133-148,31.12.2021,ADULT SOCIAL CARE,ACCESS UK LTD T/A HCSS EDUCATINO LTD,10/12/2021,"18,315.00",6551-Repair & Maintenance of Furniture & Equipment,SUPPLIES & SERVICES,EQUIPMENT FURNITURE & MATERIALS,REVENUE
Walsall Council,http://opendatacommunities.org/id/metropolitan-district-council/walsall ,WC133-149,31.12.2021,ADULT SOCIAL CARE,ACCOMPLISH GROUP LTD,21/12/2021,"7,881.48",6541-Residential,THIRD PARTY PAYMENTS,PRIVATE CONTRACTOR,REVENUE
Walsall Council,http://opendatacommunities.org/id/metropolitan-district-council/walsall ,WC133-150,31.12.2021,ADULT SOCIAL CARE,ACCORD HOUSING ASSOCIATION LIMITED - HOBS MEADOW,21/12/2021,"4,706.24",6541-Residential,THIRD PARTY PAYMENTS,PRIVATE CONTRACTOR,REVENUE
Walsall Council,http://opendatacommunities.org/id/metropolitan-district-council/walsall ,WC133-151,31.12.2021,ADULT SOCIAL CARE,ACCORD HOUSING ASSOCIATION LIMITED - HOBS MEADOW,21/12/2021,"4,706.24",6541-Residential,THIRD PARTY PAYMENTS,PRIVATE CONTRACTOR,REVENUE
Walsall Council,http://opendatacommunities.org/id/metropolitan-district-council/walsall ,WC133-152,31.12.2021,ADULT SOCIAL CARE,ACCORD HOUSING ASSOCIATION LIMITED - HOBS MEADOW,21/12/2021,"4,706.24",6541-Residential,THIRD PARTY PAYMENTS,PRIVATE CONTRACTOR,REVENUE
Walsall Council,http://opendatacommunities.org/id/metropolitan-district-council/walsall ,WC133-153,31.12.2021,ADULT SOCIAL CARE,ACCORD HOUSING ASSOCIATION LIMITED - HOBS MEADOW,21/12/2021,"4,706.24",6541-Residential,THIRD PARTY PAYMENTS,PRIVATE CONTRACTOR,REVENUE
Walsall Council,http://opendatacommunities.org/id/metropolitan-district-council/walsall ,WC133-154,31.12.2021,CHILDRENS,ACE CARS & MINIBUSES LTD,06/12/2021,"1,652.00",6241-Hire of Vehicle with Driver,TRANSPORT,DIRECT TRANSPORT COSTS,REVENUE
Walsall Council,http://opendatacommunities.org/id/metropolitan-district-council/walsall ,WC133-155,31.12.2021,CHILDRENS,ACE CARS & MINIBUSES LTD,06/12/2021,"1,596.00",6241-Hire of Vehicle with Driver,TRANSPORT,DIRECT TRANSPORT COSTS,REVENUE
Walsall Council,http://opendatacommunities.org/id/metropolitan-district-council/walsall ,WC133-156,31.12.2021,CHILDRENS,ACE CARS & MINIBUSES LTD,06/12/2021,"1,498.00",6241-Hire of Vehicle with Driver,TRANSPORT,DIRECT TRANSPORT COSTS,REVENUE
Walsall Council,http://opendatacommunities.org/id/metropolitan-district-council/walsall ,WC133-157,31.12.2021,CHILDRENS,ACE CARS & MINIBUSES LTD,06/12/2021,"1,498.00",6241-Hire of Vehicle with Driver,TRANSPORT,DIRECT TRANSPORT COSTS,REVENUE
Walsall Council,http://opendatacommunities.org/id/metropolitan-district-council/walsall ,WC133-158,31.12.2021,CHILDRENS,ACE CARS & MINIBUSES LTD,06/12/2021,"1,596.00",6241-Hire of Vehicle with Driver,TRANSPORT,DIRECT TRANSPORT COSTS,REVENUE
Walsall Council,http://opendatacommunities.org/id/metropolitan-district-council/walsall ,WC133-159,31.12.2021,CHILDRENS,ACE CARS & MINIBUSES LTD,06/12/2021,"1,673.00",6241-Hire of Vehicle with Driver,TRANSPORT,DIRECT TRANSPORT COSTS,REVENUE
Walsall Council,http://opendatacommunities.org/id/metropolitan-district-council/walsall ,WC133-160,31.12.2021,CHILDRENS,ACE CARS & MINIBUSES LTD,06/12/2021,"1,596.00",6241-Hire of Vehicle with Driver,TRANSPORT,DIRECT TRANSPORT COSTS,REVENUE
Walsall Council,http://opendatacommunities.org/id/metropolitan-district-council/walsall ,WC133-161,31.12.2021,CHILDRENS,ACE CARS & MINIBUSES LTD,06/12/2021,"2,041.50",6241-Hire of Vehicle with Driver,TRANSPORT,DIRECT TRANSPORT COSTS,REVENUE
Walsall Council,http://opendatacommunities.org/id/metropolitan-district-council/walsall ,WC133-162,31.12.2021,CHILDRENS,ACE CARS & MINIBUSES LTD,06/12/2021,"2,041.50",6241-Hire of Vehicle with Driver,TRANSPORT,DIRECT TRANSPORT COSTS,REVENUE
Walsall Council,http://opendatacommunities.org/id/metropolitan-district-council/walsall ,WC133-163,31.12.2021,CHILDRENS,ACE CARS & MINIBUSES LTD,06/12/2021,"2,041.50",6241-Hire of Vehicle with Driver,TRANSPORT,DIRECT TRANSPORT COSTS,REVENUE
Walsall Council,http://opendatacommunities.org/id/metropolitan-district-council/walsall ,WC133-164,31.12.2021,CHILDRENS,ACE CARS & MINIBUSES LTD,06/12/2021,"2,832.00",6241-Hire of Vehicle with Driver,TRANSPORT,DIRECT TRANSPORT COSTS,REVENUE
Walsall Council,http://opendatacommunities.org/id/metropolitan-district-council/walsall ,WC133-165,31.12.2021,CHILDRENS,ACE CARS & MINIBUSES LTD,06/12/2021,"2,461.48",6241-Hire of Vehicle with Driver,TRANSPORT,DIRECT TRANSPORT COSTS,REVENUE
Walsall Council,http://opendatacommunities.org/id/metropolitan-district-council/walsall ,WC133-166,31.12.2021,CHILDRENS,ACE CARS & MINIBUSES LTD,06/12/2021,"1,998.92",6241-Hire of Vehicle with Driver,TRANSPORT,DIRECT TRANSPORT COSTS,REVENUE
Walsall Council,http://opendatacommunities.org/id/metropolitan-district-council/walsall ,WC133-167,31.12.2021,CHILDRENS,ACE CARS & MINIBUSES LTD,06/12/2021,"1,652.00",6241-Hire of Vehicle with Driver,TRANSPORT,DIRECT TRANSPORT COSTS,REVENUE
Walsall Council,http://opendatacommunities.org/id/metropolitan-district-council/walsall ,WC133-168,31.12.2021,CHILDRENS,ACE CARS & MINIBUSES LTD,06/12/2021,"1,596.00",6241-Hire of Vehicle with Driver,TRANSPORT,DIRECT TRANSPORT COSTS,REVENUE
Walsall Council,http://opendatacommunities.org/id/metropolitan-district-council/walsall ,WC133-169,31.12.2021,CHILDRENS,ACE CARS & MINIBUSES LTD,06/12/2021,"1,673.00",6241-Hire of Vehicle with Driver,TRANSPORT,DIRECT TRANSPORT COSTS,REVENUE
Walsall Council,http://opendatacommunities.org/id/metropolitan-district-council/walsall ,WC133-170,31.12.2021,CHILDRENS,ACE CARS & MINIBUSES LTD,06/12/2021,"1,498.00",6241-Hire of Vehicle with Driver,TRANSPORT,DIRECT TRANSPORT COSTS,REVENUE
Walsall Council,http://opendatacommunities.org/id/metropolitan-district-council/walsall ,WC133-171,31.12.2021,CHILDRENS,ACE CARS & MINIBUSES LTD,06/12/2021,"1,498.00",6241-Hire of Vehicle with Driver,TRANSPORT,DIRECT TRANSPORT COSTS,REVENUE
Walsall Council,http://opendatacommunities.org/id/metropolitan-district-council/walsall ,WC133-172,31.12.2021,CHILDRENS,ACE CARS & MINIBUSES LTD,06/12/2021,"1,652.00",6241-Hire of Vehicle with Driver,TRANSPORT,DIRECT TRANSPORT COSTS,REVENUE
Walsall Council,http://opendatacommunities.org/id/metropolitan-district-council/walsall ,WC133-173,31.12.2021,CHILDRENS,ACE CARS & MINIBUSES LTD,06/12/2021,"1,673.00",6241-Hire of Vehicle with Driver,TRANSPORT,DIRECT TRANSPORT COSTS,REVENUE
Walsall Council,http://opendatacommunities.org/id/metropolitan-district-council/walsall ,WC133-174,31.12.2021,CHILDRENS,ACE CARS & MINIBUSES LTD,06/12/2021,"2,041.50",6241-Hire of Vehicle with Driver,TRANSPORT,DIRECT TRANSPORT COSTS,REVENUE
Walsall Council,http://opendatacommunities.org/id/metropolitan-district-council/walsall ,WC133-175,31.12.2021,CHILDRENS,ACE CARS & MINIBUSES LTD,06/12/2021,"3,130.30",6241-Hire of Vehicle with Driver,TRANSPORT,DIRECT TRANSPORT COSTS,REVENUE
Walsall Council,http://opendatacommunities.org/id/metropolitan-district-council/walsall ,WC133-176,31.12.2021,CHILDRENS,ACE CARS & MINIBUSES LTD,06/12/2021,"1,498.00",6241-Hire of Vehicle with Driver,TRANSPORT,DIRECT TRANSPORT COSTS,REVENUE
Walsall Council,http://opendatacommunities.org/id/metropolitan-district-council/walsall ,WC133-177,31.12.2021,CHILDRENS,ACE CARS & MINIBUSES LTD,06/12/2021,"1,652.00",6241-Hire of Vehicle with Driver,TRANSPORT,DIRECT TRANSPORT COSTS,REVENUE
Walsall Council,http://opendatacommunities.org/id/metropolitan-district-council/walsall ,WC133-178,31.12.2021,CHILDRENS,ACE CARS & MINIBUSES LTD,06/12/2021,"1,498.00",6241-Hire of Vehicle with Driver,TRANSPORT,DIRECT TRANSPORT COSTS,REVENUE
Walsall Council,http://opendatacommunities.org/id/metropolitan-district-council/walsall ,WC133-179,31.12.2021,CHILDRENS,ACE CARS & MINIBUSES LTD,06/12/2021,"1,498.00",6241-Hire of Vehicle with Driver,TRANSPORT,DIRECT TRANSPORT COSTS,REVENUE
Walsall Council,http://opendatacommunities.org/id/metropolitan-district-council/walsall ,WC133-180,31.12.2021,CHILDRENS,ACE CARS & MINIBUSES LTD,06/12/2021,"1,673.00",6241-Hire of Vehicle with Driver,TRANSPORT,DIRECT TRANSPORT COSTS,REVENUE
Walsall Council,http://opendatacommunities.org/id/metropolitan-district-council/walsall ,WC133-181,31.12.2021,CHILDRENS,ACE CARS & MINIBUSES LTD,06/12/2021,"1,673.00",6241-Hire of Vehicle with Driver,TRANSPORT,DIRECT TRANSPORT COSTS,REVENUE
Walsall Council,http://opendatacommunities.org/id/metropolitan-district-council/walsall ,WC133-182,31.12.2021,CHILDRENS,ACE CARS & MINIBUSES LTD,06/12/2021,"1,673.00",6241-Hire of Vehicle with Driver,TRANSPORT,DIRECT TRANSPORT COSTS,REVENUE
Walsall Council,http://opendatacommunities.org/id/metropolitan-district-council/walsall ,WC133-183,31.12.2021,CHILDRENS,ACE CARS & MINIBUSES LTD,06/12/2021,"2,041.50",6241-Hire of Vehicle with Driver,TRANSPORT,DIRECT TRANSPORT COSTS,REVENUE
Walsall Council,http://opendatacommunities.org/id/metropolitan-district-council/walsall ,WC133-184,31.12.2021,CHILDRENS,ACE CARS & MINIBUSES LTD,06/12/2021,"2,041.50",6241-Hire of Vehicle with Driver,TRANSPORT,DIRECT TRANSPORT COSTS,REVENUE
Walsall Council,http://opendatacommunities.org/id/metropolitan-district-council/walsall ,WC133-185,31.12.2021,CHILDRENS,ACE CARS & MINIBUSES LTD,06/12/2021,"1,866.00",6241-Hire of Vehicle with Driver,TRANSPORT,DIRECT TRANSPORT COSTS,REVENUE
Walsall Council,http://opendatacommunities.org/id/metropolitan-district-council/walsall ,WC133-186,31.12.2021,CHILDRENS,ACE CARS & MINIBUSES LTD,06/12/2021,"1,498.00",6241-Hire of Vehicle with Driver,TRANSPORT,DIRECT TRANSPORT COSTS,REVENUE
Walsall Council,http://opendatacommunities.org/id/metropolitan-district-council/walsall ,WC133-187,31.12.2021,CHILDRENS,ACE CARS & MINIBUSES LTD,06/12/2021,"6,277.60",6241-Hire of Vehicle with Driver,TRANSPORT,DIRECT TRANSPORT COSTS,REVENUE
Walsall Council,http://opendatacommunities.org/id/metropolitan-district-council/walsall ,WC133-188,31.12.2021,CHILDRENS,ACE CARS & MINIBUSES LTD,06/12/2021,"1,498.00",6241-Hire of Vehicle with Driver,TRANSPORT,DIRECT TRANSPORT COSTS,REVENUE
Walsall Council,http://opendatacommunities.org/id/metropolitan-district-council/walsall ,WC133-189,31.12.2021,CHILDRENS,ACE CARS & MINIBUSES LTD,06/12/2021,"2,041.50",6241-Hire of Vehicle with Driver,TRANSPORT,DIRECT TRANSPORT COSTS,REVENUE
Walsall Council,http://opendatacommunities.org/id/metropolitan-district-council/walsall ,WC133-190,31.12.2021,CHILDRENS,ACE COACHING LIMITED,06/12/2021,"1,304.00",6213-Professional Fees & Services,SUPPLIES & SERVICES,SERVICES,REVENUE
Walsall Council,http://opendatacommunities.org/id/metropolitan-district-council/walsall ,WC133-191,31.12.2021,CHILDRENS,ACE COACHING LIMITED,22/12/2021,326.00,6213-Professional Fees & Services,SUPPLIES & SERVICES,SERVICES,REVENUE
Walsall Council,http://opendatacommunities.org/id/metropolitan-district-council/walsall ,WC133-192,31.12.2021,ADULT SOCIAL CARE,ACEPAY LTD (COTTAGE NUR HOME),21/12/2021,"2,419.96",6541-Nursing,THIRD PARTY PAYMENTS,PRIVATE CONTRACTOR,REVENUE
Walsall Council,http://opendatacommunities.org/id/metropolitan-district-council/walsall ,WC133-193,31.12.2021,ADULT SOCIAL CARE,ACEPAY LTD (COTTAGE NUR HOME),21/12/2021,"2,419.96",6541-Nursing,THIRD PARTY PAYMENTS,PRIVATE CONTRACTOR,REVENUE
Walsall Council,http://opendatacommunities.org/id/metropolitan-district-council/walsall ,WC133-194,31.12.2021,ADULT SOCIAL CARE,ACEPAY LTD (COTTAGE NUR HOME),21/12/2021,"2,419.96",6541-Nursing,THIRD PARTY PAYMENTS,PRIVATE CONTRACTOR,REVENUE
Walsall Council,http://opendatacommunities.org/id/metropolitan-district-council/walsall ,WC133-195,31.12.2021,ADULT SOCIAL CARE,ACEPAY LTD (COTTAGE NUR HOME),21/12/2021,"2,331.08",6541-Residential EMI,THIRD PARTY PAYMENTS,PRIVATE CONTRACTOR,REVENUE
Walsall Council,http://opendatacommunities.org/id/metropolitan-district-council/walsall ,WC133-196,31.12.2021,ADULT SOCIAL CARE,ACEPAY LTD (COTTAGE NUR HOME),21/12/2021,"2,619.96",6541-Nursing,THIRD PARTY PAYMENTS,PRIVATE CONTRACTOR,REVENUE
Walsall Council,http://opendatacommunities.org/id/metropolitan-district-council/walsall ,WC133-197,31.12.2021,ADULT SOCIAL CARE,ACEPAY LTD (COTTAGE NUR HOME),21/12/2021,"2,419.96",6541-Nursing,THIRD PARTY PAYMENTS,PRIVATE CONTRACTOR,REVENUE
Walsall Council,http://opendatacommunities.org/id/metropolitan-district-council/walsall ,WC133-198,31.12.2021,ADULT SOCIAL CARE,ACEPAY LTD (COTTAGE NUR HOME),21/12/2021,"2,419.96",6541-Nursing,THIRD PARTY PAYMENTS,PRIVATE CONTRACTOR,REVENUE
Walsall Council,http://opendatacommunities.org/id/metropolitan-district-council/walsall ,WC133-199,31.12.2021,ADULT SOCIAL CARE,ACEPAY LTD (COTTAGE NUR HOME),21/12/2021,"2,331.08",6541-Residential EMI,THIRD PARTY PAYMENTS,PRIVATE CONTRACTOR,REVENUE
Walsall Council,http://opendatacommunities.org/id/metropolitan-district-council/walsall ,WC133-200,31.12.2021,ADULT SOCIAL CARE,ACEPAY LTD (COTTAGE NUR HOME),21/12/2021,"2,419.96",6541-Nursing,THIRD PARTY PAYMENTS,PRIVATE CONTRACTOR,REVENUE
Walsall Council,http://opendatacommunities.org/id/metropolitan-district-council/walsall ,WC133-201,31.12.2021,ADULT SOCIAL CARE,ACEPAY LTD (COTTAGE NUR HOME),21/12/2021,"2,419.96",6541-Nursing,THIRD PARTY PAYMENTS,PRIVATE CONTRACTOR,REVENUE
Walsall Council,http://opendatacommunities.org/id/metropolitan-district-council/walsall ,WC133-202,31.12.2021,ADULT SOCIAL CARE,ACEPAY LTD (COTTAGE NUR HOME),21/12/2021,259.28,6541-Nursing,THIRD PARTY PAYMENTS,PRIVATE CONTRACTOR,REVENUE
Walsall Council,http://opendatacommunities.org/id/metropolitan-district-council/walsall ,WC133-203,31.12.2021,ADULT SOCIAL CARE,ACEPAY LTD (COTTAGE NUR HOME),21/12/2021,"2,419.96",6541-Nursing,THIRD PARTY PAYMENTS,PRIVATE CONTRACTOR,REVENUE
Walsall Council,http://opendatacommunities.org/id/metropolitan-district-council/walsall ,WC133-204,31.12.2021,ADULT SOCIAL CARE,ACEPAY LTD (COTTAGE NUR HOME),21/12/2021,"2,722.96",6541-Nursing EMI,THIRD PARTY PAYMENTS,PRIVATE CONTRACTOR,REVENUE
Walsall Council,http://opendatacommunities.org/id/metropolitan-district-council/walsall ,WC133-205,31.12.2021,ADULT SOCIAL CARE,ACEPAY LTD (COTTAGE NUR HOME),21/12/2021,"2,419.96",6541-Nursing,THIRD PARTY PAYMENTS,PRIVATE CONTRACTOR,REVENUE
Walsall Council,http://opendatacommunities.org/id/metropolitan-district-council/walsall ,WC133-206,31.12.2021,CHILDRENS,ACIRE CARE LTD,01/12/2021,"7,968.00",6223-Accommodation and Related Costs-Assistance to S/S Clients,TRANSFER PAYMENTS,ADULT SOCIAL SERVICES CLIENT,REVENUE
Walsall Council,http://opendatacommunities.org/id/metropolitan-district-council/walsall ,WC133-207,31.12.2021,CHILDRENS,ACORN CARE & EDUCATION LTD (SALES),23/12/2021,"10,500.00",6223-External Residential Care-Oth Agency Provision,THIRD PARTY PAYMENTS,PRIVATE CONTRACTOR,REVENUE
Walsall Council,http://opendatacommunities.org/id/metropolitan-district-council/walsall ,WC133-208,31.12.2021,CHILDRENS,ACORN CARE & EDUCATION LTD (SALES),03/12/2021,"16,974.14",1220-Top Up Funding -Grants to Schools,SUPPLIES & SERVICES,GRANTS (EXP) & SUBSCRIPTIONS,REVENUE
Walsall Council,http://opendatacommunities.org/id/metropolitan-district-council/walsall ,WC133-209,31.12.2021,CHILDRENS,ACORN CARE & EDUCATION LTD (SALES),14/12/2021,"17,657.89",1220-Professional Fees & Services,SUPPLIES & SERVICES,SERVICES,REVENUE
Walsall Council,http://opendatacommunities.org/id/metropolitan-district-council/walsall ,WC133-210,31.12.2021,CHILDRENS,ACORN CARE & EDUCATION LTD (SALES),01/12/2021,"17,470.68",1220-Top Up Funding -Grants to Schools,SUPPLIES & SERVICES,GRANTS (EXP) & SUBSCRIPTIONS,REVENUE
Walsall Council,http://opendatacommunities.org/id/metropolitan-district-council/walsall ,WC133-211,31.12.2021,CHILDRENS,ACORN CARE & EDUCATION LTD (SALES),03/12/2021,"17,559.45",1220-Top Up Funding -Grants to Schools,SUPPLIES & SERVICES,GRANTS (EXP) & SUBSCRIPTIONS,REVENUE
Walsall Council,http://opendatacommunities.org/id/metropolitan-district-council/walsall ,WC133-212,31.12.2021,CHILDRENS,ACORN CARE & EDUCATION LTD (SALES),07/12/2021,"17,302.00",1220-Top Up Funding -Grants to Schools,SUPPLIES & SERVICES,GRANTS (EXP) & SUBSCRIPTIONS,REVENUE
Walsall Council,http://opendatacommunities.org/id/metropolitan-district-council/walsall ,WC133-213,31.12.2021,CHILDRENS,ACORN CARE & EDUCATION LTD (SALES),07/12/2021,"18,082.19",1220-Professional Fees & Services,SUPPLIES & SERVICES,SERVICES,REVENUE
Walsall Council,http://opendatacommunities.org/id/metropolitan-district-council/walsall ,WC133-214,31.12.2021,CHILDRENS,ACORNS CHILDRENS HOSPICE TRUST,22/12/2021,"1,700.00",6220-Professional Fees & Services,SUPPLIES & SERVICES,SERVICES,REVENUE
Walsall Council,http://opendatacommunities.org/id/metropolitan-district-council/walsall ,WC133-215,31.12.2021,CHILDRENS,ACPAS LIMITED,03/12/2021,269.87,6220-School Only Payments - Catering,THIRD PARTY PAYMENTS,INDEPENDENT UNIT WITHIN COUNCIL,REVENUE
Walsall Council,http://opendatacommunities.org/id/metropolitan-district-council/walsall ,WC133-216,31.12.2021,CHILDRENS,ACTI FIT (MIDLANDS) LIMITED,06/12/2021,"6,091.00",6213-Professional Fees & Services,SUPPLIES & SERVICES,SERVICES,REVENUE
Walsall Council,http://opendatacommunities.org/id/metropolitan-district-council/walsall ,WC133-217,31.12.2021,CHILDRENS,ACTI FIT (MIDLANDS) LIMITED,22/12/2021,"1,522.80",6213-Professional Fees & Services,SUPPLIES & SERVICES,SERVICES,REVENUE
Walsall Council,http://opendatacommunities.org/id/metropolitan-district-council/walsall ,WC133-218,31.12.2021,ADULT SOCIAL CARE,REDACTED,08/12/2021,988.60,6541-Direct Payment,THIRD PARTY PAYMENTS,PRIVATE CONTRACTOR,REVENUE
Walsall Council,http://opendatacommunities.org/id/metropolitan-district-council/walsall ,WC133-219,31.12.2021,CHILDRENS,REDACTED,15/12/2021,389.18,6223-Residents Orders,TRANSFER PAYMENTS,CHILDREN SOCIAL SERVICES CLIENT,REVENUE
Walsall Council,http://opendatacommunities.org/id/metropolitan-district-council/walsall ,WC133-220,31.12.2021,ADULT SOCIAL CARE,REDACTED,08/12/2021,"2,604.00",6541-Direct Payment,THIRD PARTY PAYMENTS,PRIVATE CONTRACTOR,REVENUE
Walsall Council,http://opendatacommunities.org/id/metropolitan-district-council/walsall ,WC133-221,31.12.2021,ADULT SOCIAL CARE,ADVANCE HEALTH CARE (UK) LTD,07/12/2021,490.49,6541-Domiciliary Care,THIRD PARTY PAYMENTS,PRIVATE CONTRACTOR,REVENUE
Walsall Council,http://opendatacommunities.org/id/metropolitan-district-council/walsall ,WC133-222,31.12.2021,ADULT SOCIAL CARE,ADVANCE HEALTH CARE (UK) LTD,07/12/2021,490.49,6541-Domiciliary Care,THIRD PARTY PAYMENTS,PRIVATE CONTRACTOR,REVENUE
Walsall Council,http://opendatacommunities.org/id/metropolitan-district-council/walsall ,WC133-223,31.12.2021,ADULT SOCIAL CARE,ADVANCE HEALTH CARE (UK) LTD,07/12/2021,435.96,6541-Domiciliary Care,THIRD PARTY PAYMENTS,PRIVATE CONTRACTOR,REVENUE
Walsall Council,http://opendatacommunities.org/id/metropolitan-district-council/walsall ,WC133-224,31.12.2021,ADULT SOCIAL CARE,ADVANCE HEALTH CARE (UK) LTD,07/12/2021,435.96,6541-Domiciliary Care,THIRD PARTY PAYMENTS,PRIVATE CONTRACTOR,REVENUE
Walsall Council,http://opendatacommunities.org/id/metropolitan-district-council/walsall ,WC133-225,31.12.2021,ADULT SOCIAL CARE,ADVANCE HEALTH CARE (UK) LTD,07/12/2021,490.49,6541-Domiciliary Care,THIRD PARTY PAYMENTS,PRIVATE CONTRACTOR,REVENUE
Walsall Council,http://opendatacommunities.org/id/metropolitan-district-council/walsall ,WC133-226,31.12.2021,ADULT SOCIAL CARE,ADVANCE HEALTH CARE (UK) LTD,07/12/2021,435.96,6541-Domiciliary Care,THIRD PARTY PAYMENTS,PRIVATE CONTRACTOR,REVENUE
Walsall Council,http://opendatacommunities.org/id/metropolitan-district-council/walsall ,WC133-227,31.12.2021,ADULT SOCIAL CARE,ADVANCE HEALTH CARE (UK) LTD,07/12/2021,381.50,6541-Domiciliary Care,THIRD PARTY PAYMENTS,PRIVATE CONTRACTOR,REVENUE
Walsall Council,http://opendatacommunities.org/id/metropolitan-district-council/walsall ,WC133-228,31.12.2021,ADULT SOCIAL CARE,ADVANCE HEALTH CARE (UK) LTD,07/12/2021,490.49,6541-Domiciliary Care,THIRD PARTY PAYMENTS,PRIVATE CONTRACTOR,REVENUE
Walsall Council,http://opendatacommunities.org/id/metropolitan-district-council/walsall ,WC133-229,31.12.2021,ADULT SOCIAL CARE,ADVANCE HEALTH CARE (UK) LTD,07/12/2021,454.16,6541-Domiciliary Care,THIRD PARTY PAYMENTS,PRIVATE CONTRACTOR,REVENUE
Walsall Council,http://opendatacommunities.org/id/metropolitan-district-council/walsall ,WC133-230,31.12.2021,ADULT SOCIAL CARE,ADVANCE HEALTH CARE (UK) LTD,07/12/2021,454.16,6541-Domiciliary Care,THIRD PARTY PAYMENTS,PRIVATE CONTRACTOR,REVENUE
Walsall Council,http://opendatacommunities.org/id/metropolitan-district-council/walsall ,WC133-231,31.12.2021,ADULT SOCIAL CARE,ADVANCE HEALTH CARE (UK) LTD,07/12/2021,490.49,6541-Domiciliary Care,THIRD PARTY PAYMENTS,PRIVATE CONTRACTOR,REVENUE
Walsall Council,http://opendatacommunities.org/id/metropolitan-district-council/walsall ,WC133-232,31.12.2021,ADULT SOCIAL CARE,ADVANCE HEALTH CARE (UK) LTD,07/12/2021,506.06,6541-Domiciliary Care,THIRD PARTY PAYMENTS,PRIVATE CONTRACTOR,REVENUE
Walsall Council,http://opendatacommunities.org/id/metropolitan-district-council/walsall ,WC133-233,31.12.2021,ADULT SOCIAL CARE,ADVANCE HEALTH CARE (UK) LTD,07/12/2021,435.96,6541-Domiciliary Care,THIRD PARTY PAYMENTS,PRIVATE CONTRACTOR,REVENUE
Walsall Council,http://opendatacommunities.org/id/metropolitan-district-council/walsall ,WC133-234,31.12.2021,ADULT SOCIAL CARE,ADVANCE HEALTH CARE (UK) LTD,07/12/2021,490.49,6541-Domiciliary Care,THIRD PARTY PAYMENTS,PRIVATE CONTRACTOR,REVENUE
Walsall Council,http://opendatacommunities.org/id/metropolitan-district-council/walsall ,WC133-235,31.12.2021,ADULT SOCIAL CARE,ADVANCE HEALTH CARE (UK) LTD,07/12/2021,635.81,6541-Domiciliary Care,THIRD PARTY PAYMENTS,PRIVATE CONTRACTOR,REVENUE
Walsall Council,http://opendatacommunities.org/id/metropolitan-district-council/walsall ,WC133-236,31.12.2021,ADULT SOCIAL CARE,ADVANCE HEALTH CARE (UK) LTD,07/12/2021,833.03,6541-Domiciliary Care,THIRD PARTY PAYMENTS,PRIVATE CONTRACTOR,REVENUE
Walsall Council,http://opendatacommunities.org/id/metropolitan-district-council/walsall ,WC133-237,31.12.2021,ADULT SOCIAL CARE,ADVANCE HEALTH CARE (UK) LTD,07/12/2021,490.49,6541-Domiciliary Care,THIRD PARTY PAYMENTS,PRIVATE CONTRACTOR,REVENUE
Walsall Council,http://opendatacommunities.org/id/metropolitan-district-council/walsall ,WC133-238,31.12.2021,ADULT SOCIAL CARE,ADVANCE HEALTH CARE (UK) LTD,07/12/2021,490.49,6541-Domiciliary Care,THIRD PARTY PAYMENTS,PRIVATE CONTRACTOR,REVENUE
Walsall Council,http://opendatacommunities.org/id/metropolitan-district-council/walsall ,WC133-239,31.12.2021,ADULT SOCIAL CARE,ADVANCE HEALTH CARE (UK) LTD,07/12/2021,490.49,6541-Domiciliary Care,THIRD PARTY PAYMENTS,PRIVATE CONTRACTOR,REVENUE
Walsall Council,http://opendatacommunities.org/id/metropolitan-district-council/walsall ,WC133-240,31.12.2021,ADULT SOCIAL CARE,ADVANCE HEALTH CARE (UK) LTD,07/12/2021,435.96,6541-Domiciliary Care,THIRD PARTY PAYMENTS,PRIVATE CONTRACTOR,REVENUE
Walsall Council,http://opendatacommunities.org/id/metropolitan-district-council/walsall ,WC133-241,31.12.2021,ADULT SOCIAL CARE,ADVANCE HEALTH CARE (UK) LTD,07/12/2021,490.49,6541-Domiciliary Care,THIRD PARTY PAYMENTS,PRIVATE CONTRACTOR,REVENUE
Walsall Council,http://opendatacommunities.org/id/metropolitan-district-council/walsall ,WC133-242,31.12.2021,ADULT SOCIAL CARE,ADVANCE HEALTH CARE (UK) LTD,07/12/2021,537.20,6541-Domiciliary Care,THIRD PARTY PAYMENTS,PRIVATE CONTRACTOR,REVENUE
Walsall Council,http://opendatacommunities.org/id/metropolitan-district-council/walsall ,WC133-243,31.12.2021,ADULT SOCIAL CARE,ADVANCE HEALTH CARE (UK) LTD,07/12/2021,490.49,6541-Domiciliary Care,THIRD PARTY PAYMENTS,PRIVATE CONTRACTOR,REVENUE
Walsall Council,http://opendatacommunities.org/id/metropolitan-district-council/walsall ,WC133-244,31.12.2021,ADULT SOCIAL CARE,ADVANCE HEALTH CARE (UK) LTD,07/12/2021,363.30,6541-Domiciliary Care,THIRD PARTY PAYMENTS,PRIVATE CONTRACTOR,REVENUE
Walsall Council,http://opendatacommunities.org/id/metropolitan-district-council/walsall ,WC133-245,31.12.2021,ADULT SOCIAL CARE,ADVANCE HEALTH CARE (UK) LTD,07/12/2021,490.49,6541-Domiciliary Care,THIRD PARTY PAYMENTS,PRIVATE CONTRACTOR,REVENUE
Walsall Council,http://opendatacommunities.org/id/metropolitan-district-council/walsall ,WC133-246,31.12.2021,ADULT SOCIAL CARE,ADVANCE HEALTH CARE (UK) LTD,07/12/2021,490.49,6541-Domiciliary Care,THIRD PARTY PAYMENTS,PRIVATE CONTRACTOR,REVENUE
Walsall Council,http://opendatacommunities.org/id/metropolitan-district-council/walsall ,WC133-247,31.12.2021,ADULT SOCIAL CARE,ADVANCE HEALTH CARE (UK) LTD,07/12/2021,871.92,6541-Domiciliary Care,THIRD PARTY PAYMENTS,PRIVATE CONTRACTOR,REVENUE
Walsall Council,http://opendatacommunities.org/id/metropolitan-district-council/walsall ,WC133-248,31.12.2021,ADULT SOCIAL CARE,ADVANCE HEALTH CARE (UK) LTD,07/12/2021,326.97,6541-Domiciliary Care,THIRD PARTY PAYMENTS,PRIVATE CONTRACTOR,REVENUE
Walsall Council,http://opendatacommunities.org/id/metropolitan-district-council/walsall ,WC133-249,31.12.2021,ADULT SOCIAL CARE,ADVANCE HEALTH CARE (UK) LTD,07/12/2021,381.50,6541-Domiciliary Care,THIRD PARTY PAYMENTS,PRIVATE CONTRACTOR,REVENUE
Walsall Council,http://opendatacommunities.org/id/metropolitan-district-council/walsall ,WC133-250,31.12.2021,ADULT SOCIAL CARE,ADVANCE HEALTH CARE (UK) LTD,07/12/2021,399.63,6541-Domiciliary Care,THIRD PARTY PAYMENTS,PRIVATE CONTRACTOR,REVENUE
Walsall Council,http://opendatacommunities.org/id/metropolitan-district-council/walsall ,WC133-251,31.12.2021,ADULT SOCIAL CARE,ADVANCE HEALTH CARE (UK) LTD,07/12/2021,490.49,6541-Domiciliary Care,THIRD PARTY PAYMENTS,PRIVATE CONTRACTOR,REVENUE
Walsall Council,http://opendatacommunities.org/id/metropolitan-district-council/walsall ,WC133-252,31.12.2021,ADULT SOCIAL CARE,ADVANCE HEALTH CARE (UK) LTD,07/12/2021,490.49,6541-Domiciliary Care,THIRD PARTY PAYMENTS,PRIVATE CONTRACTOR,REVENUE
Walsall Council,http://opendatacommunities.org/id/metropolitan-district-council/walsall ,WC133-253,31.12.2021,ADULT SOCIAL CARE,ADVANCE HEALTH CARE (UK) LTD,07/12/2021,490.49,6541-Domiciliary Care,THIRD PARTY PAYMENTS,PRIVATE CONTRACTOR,REVENUE
Walsall Council,http://opendatacommunities.org/id/metropolitan-district-council/walsall ,WC133-254,31.12.2021,ADULT SOCIAL CARE,ADVANCE HEALTH CARE (UK) LTD,07/12/2021,490.49,6541-Domiciliary Care,THIRD PARTY PAYMENTS,PRIVATE CONTRACTOR,REVENUE
Walsall Council,http://opendatacommunities.org/id/metropolitan-district-council/walsall ,WC133-255,31.12.2021,ADULT SOCIAL CARE,ADVANCE HEALTH CARE (UK) LTD,07/12/2021,490.49,6541-Domiciliary Care,THIRD PARTY PAYMENTS,PRIVATE CONTRACTOR,REVENUE
Walsall Council,http://opendatacommunities.org/id/metropolitan-district-council/walsall ,WC133-256,31.12.2021,ADULT SOCIAL CARE,ADVANCE HEALTH CARE (UK) LTD,07/12/2021,420.39,6541-Domiciliary Care,THIRD PARTY PAYMENTS,PRIVATE CONTRACTOR,REVENUE
Walsall Council,http://opendatacommunities.org/id/metropolitan-district-council/walsall ,WC133-257,31.12.2021,ADULT SOCIAL CARE,ADVANCE HEALTH CARE (UK) LTD,07/12/2021,435.96,6541-Domiciliary Care,THIRD PARTY PAYMENTS,PRIVATE CONTRACTOR,REVENUE
Walsall Council,http://opendatacommunities.org/id/metropolitan-district-council/walsall ,WC133-258,31.12.2021,ADULT SOCIAL CARE,ADVANCE HEALTH CARE (UK) LTD,07/12/2021,256.93,6541-Domiciliary Care,THIRD PARTY PAYMENTS,PRIVATE CONTRACTOR,REVENUE
Walsall Council,http://opendatacommunities.org/id/metropolitan-district-council/walsall ,WC133-259,31.12.2021,ADULT SOCIAL CARE,ADVANCE HEALTH CARE (UK) LTD,07/12/2021,326.97,6541-Domiciliary Care,THIRD PARTY PAYMENTS,PRIVATE CONTRACTOR,REVENUE
Walsall Council,http://opendatacommunities.org/id/metropolitan-district-council/walsall ,WC133-260,31.12.2021,ADULT SOCIAL CARE,ADVANCE HEALTH CARE (UK) LTD,07/12/2021,833.03,6541-Domiciliary Care,THIRD PARTY PAYMENTS,PRIVATE CONTRACTOR,REVENUE
Walsall Council,http://opendatacommunities.org/id/metropolitan-district-council/walsall ,WC133-261,31.12.2021,ADULT SOCIAL CARE,ADVANCE HEALTH CARE (UK) LTD,07/12/2021,490.49,6541-Domiciliary Care,THIRD PARTY PAYMENTS,PRIVATE CONTRACTOR,REVENUE
Walsall Council,http://opendatacommunities.org/id/metropolitan-district-council/walsall ,WC133-262,31.12.2021,ADULT SOCIAL CARE,ADVANCE HEALTH CARE (UK) LTD,07/12/2021,490.49,6541-Domiciliary Care,THIRD PARTY PAYMENTS,PRIVATE CONTRACTOR,REVENUE
Walsall Council,http://opendatacommunities.org/id/metropolitan-district-council/walsall ,WC133-263,31.12.2021,ADULT SOCIAL CARE,ADVANCE HEALTH CARE (UK) LTD,07/12/2021,490.49,6541-Domiciliary Care,THIRD PARTY PAYMENTS,PRIVATE CONTRACTOR,REVENUE
Walsall Council,http://opendatacommunities.org/id/metropolitan-district-council/walsall ,WC133-264,31.12.2021,ADULT SOCIAL CARE,ADVANCE HEALTH CARE (UK) LTD,07/12/2021,435.96,6541-Domiciliary Care,THIRD PARTY PAYMENTS,PRIVATE CONTRACTOR,REVENUE
Walsall Council,http://opendatacommunities.org/id/metropolitan-district-council/walsall ,WC133-265,31.12.2021,ADULT SOCIAL CARE,ADVANCE HEALTH CARE (UK) LTD,07/12/2021,490.49,6541-Domiciliary Care,THIRD PARTY PAYMENTS,PRIVATE CONTRACTOR,REVENUE
Walsall Council,http://opendatacommunities.org/id/metropolitan-district-council/walsall ,WC133-266,31.12.2021,ADULT SOCIAL CARE,ADVANCE HEALTH CARE (UK) LTD,07/12/2021,635.81,6541-Domiciliary Care,THIRD PARTY PAYMENTS,PRIVATE CONTRACTOR,REVENUE
Walsall Council,http://opendatacommunities.org/id/metropolitan-district-council/walsall ,WC133-267,31.12.2021,ADULT SOCIAL CARE,ADVANCE HEALTH CARE (UK) LTD,07/12/2021,537.20,6541-Domiciliary Care,THIRD PARTY PAYMENTS,PRIVATE CONTRACTOR,REVENUE
Walsall Council,http://opendatacommunities.org/id/metropolitan-district-council/walsall ,WC133-268,31.12.2021,ADULT SOCIAL CARE,ADVANCE HEALTH CARE (UK) LTD,07/12/2021,490.49,6541-Domiciliary Care,THIRD PARTY PAYMENTS,PRIVATE CONTRACTOR,REVENUE
Walsall Council,http://opendatacommunities.org/id/metropolitan-district-council/walsall ,WC133-269,31.12.2021,ADULT SOCIAL CARE,ADVANCE HEALTH CARE (UK) LTD,07/12/2021,490.49,6541-Domiciliary Care,THIRD PARTY PAYMENTS,PRIVATE CONTRACTOR,REVENUE
Walsall Council,http://opendatacommunities.org/id/metropolitan-district-council/walsall ,WC133-270,31.12.2021,ADULT SOCIAL CARE,ADVANCE HEALTH CARE (UK) LTD,07/12/2021,435.96,6541-Domiciliary Care,THIRD PARTY PAYMENTS,PRIVATE CONTRACTOR,REVENUE
Walsall Council,http://opendatacommunities.org/id/metropolitan-district-council/walsall ,WC133-271,31.12.2021,ADULT SOCIAL CARE,ADVANCE HEALTH CARE (UK) LTD,07/12/2021,435.96,6541-Domiciliary Care,THIRD PARTY PAYMENTS,PRIVATE CONTRACTOR,REVENUE
Walsall Council,http://opendatacommunities.org/id/metropolitan-district-council/walsall ,WC133-272,31.12.2021,ADULT SOCIAL CARE,ADVANCE HEALTH CARE (UK) LTD,07/12/2021,506.06,6541-Domiciliary Care,THIRD PARTY PAYMENTS,PRIVATE CONTRACTOR,REVENUE
Walsall Council,http://opendatacommunities.org/id/metropolitan-district-council/walsall ,WC133-273,31.12.2021,ADULT SOCIAL CARE,ADVANCE HEALTH CARE (UK) LTD,07/12/2021,435.96,6541-Domiciliary Care,THIRD PARTY PAYMENTS,PRIVATE CONTRACTOR,REVENUE
Walsall Council,http://opendatacommunities.org/id/metropolitan-district-council/walsall ,WC133-274,31.12.2021,ADULT SOCIAL CARE,ADVANCE HEALTH CARE (UK) LTD,07/12/2021,490.49,6541-Domiciliary Care,THIRD PARTY PAYMENTS,PRIVATE CONTRACTOR,REVENUE
Walsall Council,http://opendatacommunities.org/id/metropolitan-district-council/walsall ,WC133-275,31.12.2021,ADULT SOCIAL CARE,ADVANCE HEALTH CARE (UK) LTD,07/12/2021,871.92,6541-Domiciliary Care,THIRD PARTY PAYMENTS,PRIVATE CONTRACTOR,REVENUE
Walsall Council,http://opendatacommunities.org/id/metropolitan-district-council/walsall ,WC133-276,31.12.2021,ADULT SOCIAL CARE,ADVANCE HEALTH CARE (UK) LTD,07/12/2021,326.97,6541-Domiciliary Care,THIRD PARTY PAYMENTS,PRIVATE CONTRACTOR,REVENUE
Walsall Council,http://opendatacommunities.org/id/metropolitan-district-council/walsall ,WC133-277,31.12.2021,ADULT SOCIAL CARE,ADVANCE HEALTH CARE (UK) LTD,07/12/2021,381.50,6541-Domiciliary Care,THIRD PARTY PAYMENTS,PRIVATE CONTRACTOR,REVENUE
Walsall Council,http://opendatacommunities.org/id/metropolitan-district-council/walsall ,WC133-278,31.12.2021,ADULT SOCIAL CARE,ADVANCE HEALTH CARE (UK) LTD,07/12/2021,490.49,6541-Domiciliary Care,THIRD PARTY PAYMENTS,PRIVATE CONTRACTOR,REVENUE
Walsall Council,http://opendatacommunities.org/id/metropolitan-district-council/walsall ,WC133-279,31.12.2021,ADULT SOCIAL CARE,ADVANCE HEALTH CARE (UK) LTD,07/12/2021,490.49,6541-Domiciliary Care,THIRD PARTY PAYMENTS,PRIVATE CONTRACTOR,REVENUE
Walsall Council,http://opendatacommunities.org/id/metropolitan-district-council/walsall ,WC133-280,31.12.2021,ADULT SOCIAL CARE,ADVANCE HEALTH CARE (UK) LTD,07/12/2021,363.30,6541-Domiciliary Care,THIRD PARTY PAYMENTS,PRIVATE CONTRACTOR,REVENUE
Walsall Council,http://opendatacommunities.org/id/metropolitan-district-council/walsall ,WC133-281,31.12.2021,ADULT SOCIAL CARE,ADVANCE HEALTH CARE (UK) LTD,07/12/2021,381.50,6541-Domiciliary Care,THIRD PARTY PAYMENTS,PRIVATE CONTRACTOR,REVENUE
Walsall Council,http://opendatacommunities.org/id/metropolitan-district-council/walsall ,WC133-282,31.12.2021,ADULT SOCIAL CARE,ADVANCE HEALTH CARE (UK) LTD,07/12/2021,490.49,6541-Domiciliary Care,THIRD PARTY PAYMENTS,PRIVATE CONTRACTOR,REVENUE
Walsall Council,http://opendatacommunities.org/id/metropolitan-district-council/walsall ,WC133-283,31.12.2021,ADULT SOCIAL CARE,ADVANCE HEALTH CARE (UK) LTD,07/12/2021,454.16,6541-Domiciliary Care,THIRD PARTY PAYMENTS,PRIVATE CONTRACTOR,REVENUE
Walsall Council,http://opendatacommunities.org/id/metropolitan-district-council/walsall ,WC133-284,31.12.2021,ADULT SOCIAL CARE,ADVANCE HEALTH CARE (UK) LTD,07/12/2021,435.96,6541-Domiciliary Care,THIRD PARTY PAYMENTS,PRIVATE CONTRACTOR,REVENUE
Walsall Council,http://opendatacommunities.org/id/metropolitan-district-council/walsall ,WC133-285,31.12.2021,ADULT SOCIAL CARE,ADVANCE HEALTH CARE (UK) LTD,07/12/2021,490.49,6541-Domiciliary Care,THIRD PARTY PAYMENTS,PRIVATE CONTRACTOR,REVENUE
Walsall Council,http://opendatacommunities.org/id/metropolitan-district-council/walsall ,WC133-286,31.12.2021,ADULT SOCIAL CARE,ADVANCE HEALTH CARE (UK) LTD,07/12/2021,490.49,6541-Domiciliary Care,THIRD PARTY PAYMENTS,PRIVATE CONTRACTOR,REVENUE
Walsall Council,http://opendatacommunities.org/id/metropolitan-district-council/walsall ,WC133-287,31.12.2021,ADULT SOCIAL CARE,ADVANCE HEALTH CARE (UK) LTD,07/12/2021,490.49,6541-Domiciliary Care,THIRD PARTY PAYMENTS,PRIVATE CONTRACTOR,REVENUE
Walsall Council,http://opendatacommunities.org/id/metropolitan-district-council/walsall ,WC133-288,31.12.2021,ADULT SOCIAL CARE,ADVANCE HEALTH CARE (UK) LTD,07/12/2021,435.96,6541-Domiciliary Care,THIRD PARTY PAYMENTS,PRIVATE CONTRACTOR,REVENUE
Walsall Council,http://opendatacommunities.org/id/metropolitan-district-council/walsall ,WC133-289,31.12.2021,ADULT SOCIAL CARE,ADVANCE HEALTH CARE (UK) LTD,07/12/2021,420.39,6541-Domiciliary Care,THIRD PARTY PAYMENTS,PRIVATE CONTRACTOR,REVENUE
Walsall Council,http://opendatacommunities.org/id/metropolitan-district-council/walsall ,WC133-290,31.12.2021,ADULT SOCIAL CARE,ADVANCE HEALTH CARE (UK) LTD,07/12/2021,435.96,6541-Domiciliary Care,THIRD PARTY PAYMENTS,PRIVATE CONTRACTOR,REVENUE
Walsall Council,http://opendatacommunities.org/id/metropolitan-district-council/walsall ,WC133-291,31.12.2021,ADULT SOCIAL CARE,ADVANCE HEALTH CARE (UK) LTD,07/12/2021,490.49,6541-Domiciliary Care,THIRD PARTY PAYMENTS,PRIVATE CONTRACTOR,REVENUE
Walsall Council,http://opendatacommunities.org/id/metropolitan-district-council/walsall ,WC133-292,31.12.2021,ADULT SOCIAL CARE,ADVANCE HEALTH CARE (UK) LTD,07/12/2021,490.49,6541-Domiciliary Care,THIRD PARTY PAYMENTS,PRIVATE CONTRACTOR,REVENUE
Walsall Council,http://opendatacommunities.org/id/metropolitan-district-council/walsall ,WC133-293,31.12.2021,ADULT SOCIAL CARE,ADVANCE HEALTH CARE (UK) LTD,07/12/2021,490.49,6541-Domiciliary Care,THIRD PARTY PAYMENTS,PRIVATE CONTRACTOR,REVENUE
Walsall Council,http://opendatacommunities.org/id/metropolitan-district-council/walsall ,WC133-294,31.12.2021,ADULT SOCIAL CARE,ADVANCE HEALTH CARE (UK) LTD,07/12/2021,490.49,6541-Domiciliary Care,THIRD PARTY PAYMENTS,PRIVATE CONTRACTOR,REVENUE
Walsall Council,http://opendatacommunities.org/id/metropolitan-district-council/walsall ,WC133-295,31.12.2021,ADULT SOCIAL CARE,ADVANCE HEALTH CARE (UK) LTD,07/12/2021,490.49,6541-Domiciliary Care,THIRD PARTY PAYMENTS,PRIVATE CONTRACTOR,REVENUE
Walsall Council,http://opendatacommunities.org/id/metropolitan-district-council/walsall ,WC133-296,31.12.2021,ADULT SOCIAL CARE,ADVANCE HEALTH CARE (UK) LTD,07/12/2021,399.63,6541-Domiciliary Care,THIRD PARTY PAYMENTS,PRIVATE CONTRACTOR,REVENUE
Walsall Council,http://opendatacommunities.org/id/metropolitan-district-council/walsall ,WC133-297,31.12.2021,ADULT SOCIAL CARE,ADVANCE HEALTH CARE (UK) LTD,07/12/2021,454.16,6541-Domiciliary Care,THIRD PARTY PAYMENTS,PRIVATE CONTRACTOR,REVENUE
Walsall Council,http://opendatacommunities.org/id/metropolitan-district-council/walsall ,WC133-298,31.12.2021,ADULT SOCIAL CARE,ADVANCE HEALTH CARE (UK) LTD,07/12/2021,256.93,6541-Domiciliary Care,THIRD PARTY PAYMENTS,PRIVATE CONTRACTOR,REVENUE
Walsall Council,http://opendatacommunities.org/id/metropolitan-district-council/walsall ,WC133-299,31.12.2021,ADULT SOCIAL CARE,ADVANCE HEALTH CARE (UK) LTD,07/12/2021,490.49,6541-Domiciliary Care,THIRD PARTY PAYMENTS,PRIVATE CONTRACTOR,REVENUE
Walsall Council,http://opendatacommunities.org/id/metropolitan-district-council/walsall ,WC133-300,31.12.2021,ADULT SOCIAL CARE,ADVANCE HEALTH CARE (UK) LTD,07/12/2021,326.97,6541-Domiciliary Care,THIRD PARTY PAYMENTS,PRIVATE CONTRACTOR,REVENUE
Walsall Council,http://opendatacommunities.org/id/metropolitan-district-council/walsall ,WC133-301,31.12.2021,ADULT SOCIAL CARE,ADVANCE HEALTH CARE (UK) LTD,16/12/2021,"1,821.82",6541-Domiciliary Care,THIRD PARTY PAYMENTS,PRIVATE CONTRACTOR,REVENUE
Walsall Council,http://opendatacommunities.org/id/metropolitan-district-council/walsall ,WC133-302,31.12.2021,ADULT SOCIAL CARE,ADVANCE HEALTH CARE (UK) LTD,16/12/2021,560.56,6541-Domiciliary Care,THIRD PARTY PAYMENTS,PRIVATE CONTRACTOR,REVENUE
Walsall Council,http://opendatacommunities.org/id/metropolitan-district-council/walsall ,WC133-303,31.12.2021,ADULT SOCIAL CARE,ADVANCE HEALTH CARE (UK) LTD,16/12/2021,490.49,6541-Domiciliary Care,THIRD PARTY PAYMENTS,PRIVATE CONTRACTOR,REVENUE
Walsall Council,http://opendatacommunities.org/id/metropolitan-district-council/walsall ,WC133-304,31.12.2021,ADULT SOCIAL CARE,ADVANCE HEALTH CARE (UK) LTD,16/12/2021,841.20,6541-Domiciliary Care,THIRD PARTY PAYMENTS,PRIVATE CONTRACTOR,REVENUE
Walsall Council,http://opendatacommunities.org/id/metropolitan-district-council/walsall ,WC133-305,31.12.2021,ADULT SOCIAL CARE,ADVANCE HEALTH CARE (UK) LTD,16/12/2021,"2,179.80",6541-Domiciliary Care,THIRD PARTY PAYMENTS,PRIVATE CONTRACTOR,REVENUE
Walsall Council,http://opendatacommunities.org/id/metropolitan-district-council/walsall ,WC133-306,31.12.2021,ADULT SOCIAL CARE,ADVANCE HEALTH CARE (UK) LTD,16/12/2021,"1,743.84",6541-Domiciliary Care,THIRD PARTY PAYMENTS,PRIVATE CONTRACTOR,REVENUE
Walsall Council,http://opendatacommunities.org/id/metropolitan-district-council/walsall ,WC133-307,31.12.2021,ADULT SOCIAL CARE,ADVANCE HEALTH CARE (UK) LTD,16/12/2021,315.45,6541-Domiciliary Care,THIRD PARTY PAYMENTS,PRIVATE CONTRACTOR,REVENUE
Walsall Council,http://opendatacommunities.org/id/metropolitan-district-council/walsall ,WC133-308,31.12.2021,ADULT SOCIAL CARE,ADVANCE HEALTH CARE (UK) LTD,16/12/2021,"1,743.84",6541-Domiciliary Care,THIRD PARTY PAYMENTS,PRIVATE CONTRACTOR,REVENUE
Walsall Council,http://opendatacommunities.org/id/metropolitan-district-council/walsall ,WC133-309,31.12.2021,ADULT SOCIAL CARE,ADVANCE HEALTH CARE (UK) LTD,16/12/2021,"2,543.24",6541-Domiciliary Care,THIRD PARTY PAYMENTS,PRIVATE CONTRACTOR,REVENUE
Walsall Council,http://opendatacommunities.org/id/metropolitan-district-council/walsall ,WC133-310,31.12.2021,ADULT SOCIAL CARE,ADVANCE HEALTH CARE (UK) LTD,16/12/2021,630.63,6541-Domiciliary Care,THIRD PARTY PAYMENTS,PRIVATE CONTRACTOR,REVENUE
Walsall Council,http://opendatacommunities.org/id/metropolitan-district-council/walsall ,WC133-311,31.12.2021,ADULT SOCIAL CARE,ADVANCE HEALTH CARE (UK) LTD,16/12/2021,"1,089.90",6541-Domiciliary Care,THIRD PARTY PAYMENTS,PRIVATE CONTRACTOR,REVENUE
Walsall Council,http://opendatacommunities.org/id/metropolitan-district-council/walsall ,WC133-312,31.12.2021,ADULT SOCIAL CARE,ADVANCE HEALTH CARE (UK) LTD,16/12/2021,408.90,6541-Domiciliary Care,THIRD PARTY PAYMENTS,PRIVATE CONTRACTOR,REVENUE
Walsall Council,http://opendatacommunities.org/id/metropolitan-district-council/walsall ,WC133-313,31.12.2021,ADULT SOCIAL CARE,ADVANCE HEALTH CARE (UK) LTD,16/12/2021,451.56,6541-Domiciliary Care,THIRD PARTY PAYMENTS,PRIVATE CONTRACTOR,REVENUE
Walsall Council,http://opendatacommunities.org/id/metropolitan-district-council/walsall ,WC133-314,31.12.2021,ADULT SOCIAL CARE,ADVANCE HEALTH CARE (UK) LTD,21/12/2021,490.49,6541-Domiciliary Care,THIRD PARTY PAYMENTS,PRIVATE CONTRACTOR,REVENUE
Walsall Council,http://opendatacommunities.org/id/metropolitan-district-council/walsall ,WC133-315,31.12.2021,ADULT SOCIAL CARE,ADVANCE HEALTH CARE (UK) LTD,21/12/2021,635.81,6541-Domiciliary Care,THIRD PARTY PAYMENTS,PRIVATE CONTRACTOR,REVENUE
Walsall Council,http://opendatacommunities.org/id/metropolitan-district-council/walsall ,WC133-316,31.12.2021,ADULT SOCIAL CARE,ADVANCE HEALTH CARE (UK) LTD,21/12/2021,537.20,6541-Domiciliary Care,THIRD PARTY PAYMENTS,PRIVATE CONTRACTOR,REVENUE
Walsall Council,http://opendatacommunities.org/id/metropolitan-district-council/walsall ,WC133-317,31.12.2021,ADULT SOCIAL CARE,ADVANCE HEALTH CARE (UK) LTD,21/12/2021,490.49,6541-Domiciliary Care,THIRD PARTY PAYMENTS,PRIVATE CONTRACTOR,REVENUE
Walsall Council,http://opendatacommunities.org/id/metropolitan-district-council/walsall ,WC133-318,31.12.2021,ADULT SOCIAL CARE,ADVANCE HEALTH CARE (UK) LTD,21/12/2021,490.49,6541-Domiciliary Care,THIRD PARTY PAYMENTS,PRIVATE CONTRACTOR,REVENUE
Walsall Council,http://opendatacommunities.org/id/metropolitan-district-council/walsall ,WC133-319,31.12.2021,ADULT SOCIAL CARE,ADVANCE HEALTH CARE (UK) LTD,21/12/2021,544.95,6541-Domiciliary Care,THIRD PARTY PAYMENTS,PRIVATE CONTRACTOR,REVENUE
Walsall Council,http://opendatacommunities.org/id/metropolitan-district-council/walsall ,WC133-320,31.12.2021,ADULT SOCIAL CARE,ADVANCE HEALTH CARE (UK) LTD,21/12/2021,420.39,6541-Domiciliary Care,THIRD PARTY PAYMENTS,PRIVATE CONTRACTOR,REVENUE
Walsall Council,http://opendatacommunities.org/id/metropolitan-district-council/walsall ,WC133-321,31.12.2021,ADULT SOCIAL CARE,ADVANCE HEALTH CARE (UK) LTD,21/12/2021,435.96,6541-Domiciliary Care,THIRD PARTY PAYMENTS,PRIVATE CONTRACTOR,REVENUE
Walsall Council,http://opendatacommunities.org/id/metropolitan-district-council/walsall ,WC133-322,31.12.2021,ADULT SOCIAL CARE,ADVANCE HEALTH CARE (UK) LTD,21/12/2021,326.97,6541-Domiciliary Care,THIRD PARTY PAYMENTS,PRIVATE CONTRACTOR,REVENUE
Walsall Council,http://opendatacommunities.org/id/metropolitan-district-council/walsall ,WC133-323,31.12.2021,ADULT SOCIAL CARE,ADVANCE HEALTH CARE (UK) LTD,21/12/2021,517.86,6541-Domiciliary Care,THIRD PARTY PAYMENTS,PRIVATE CONTRACTOR,REVENUE
Walsall Council,http://opendatacommunities.org/id/metropolitan-district-council/walsall ,WC133-324,31.12.2021,ADULT SOCIAL CARE,ADVANCE HEALTH CARE (UK) LTD,21/12/2021,490.49,6541-Domiciliary Care,THIRD PARTY PAYMENTS,PRIVATE CONTRACTOR,REVENUE
Walsall Council,http://opendatacommunities.org/id/metropolitan-district-council/walsall ,WC133-325,31.12.2021,ADULT SOCIAL CARE,ADVANCE HEALTH CARE (UK) LTD,21/12/2021,490.49,6541-Domiciliary Care,THIRD PARTY PAYMENTS,PRIVATE CONTRACTOR,REVENUE
Walsall Council,http://opendatacommunities.org/id/metropolitan-district-council/walsall ,WC133-326,31.12.2021,ADULT SOCIAL CARE,ADVANCE HEALTH CARE (UK) LTD,21/12/2021,332.32,6541-Domiciliary Care,THIRD PARTY PAYMENTS,PRIVATE CONTRACTOR,REVENUE
Walsall Council,http://opendatacommunities.org/id/metropolitan-district-council/walsall ,WC133-327,31.12.2021,ADULT SOCIAL CARE,ADVANCE HEALTH CARE (UK) LTD,21/12/2021,363.30,6541-Domiciliary Care,THIRD PARTY PAYMENTS,PRIVATE CONTRACTOR,REVENUE
Walsall Council,http://opendatacommunities.org/id/metropolitan-district-council/walsall ,WC133-328,31.12.2021,ADULT SOCIAL CARE,ADVANCE HEALTH CARE (UK) LTD,21/12/2021,435.96,6541-Domiciliary Care,THIRD PARTY PAYMENTS,PRIVATE CONTRACTOR,REVENUE
Walsall Council,http://opendatacommunities.org/id/metropolitan-district-council/walsall ,WC133-329,31.12.2021,ADULT SOCIAL CARE,ADVANCE HEALTH CARE (UK) LTD,21/12/2021,490.49,6541-Domiciliary Care,THIRD PARTY PAYMENTS,PRIVATE CONTRACTOR,REVENUE
Walsall Council,http://opendatacommunities.org/id/metropolitan-district-council/walsall ,WC133-330,31.12.2021,ADULT SOCIAL CARE,ADVANCE HEALTH CARE (UK) LTD,21/12/2021,490.49,6541-Domiciliary Care,THIRD PARTY PAYMENTS,PRIVATE CONTRACTOR,REVENUE
Walsall Council,http://opendatacommunities.org/id/metropolitan-district-council/walsall ,WC133-331,31.12.2021,ADULT SOCIAL CARE,ADVANCE HEALTH CARE (UK) LTD,21/12/2021,833.03,6541-Domiciliary Care,THIRD PARTY PAYMENTS,PRIVATE CONTRACTOR,REVENUE
Walsall Council,http://opendatacommunities.org/id/metropolitan-district-council/walsall ,WC133-332,31.12.2021,ADULT SOCIAL CARE,ADVANCE HEALTH CARE (UK) LTD,21/12/2021,490.49,6541-Domiciliary Care,THIRD PARTY PAYMENTS,PRIVATE CONTRACTOR,REVENUE
Walsall Council,http://opendatacommunities.org/id/metropolitan-district-council/walsall ,WC133-333,31.12.2021,ADULT SOCIAL CARE,ADVANCE HEALTH CARE (UK) LTD,21/12/2021,490.49,6541-Domiciliary Care,THIRD PARTY PAYMENTS,PRIVATE CONTRACTOR,REVENUE
Walsall Council,http://opendatacommunities.org/id/metropolitan-district-council/walsall ,WC133-334,31.12.2021,ADULT SOCIAL CARE,ADVANCE HEALTH CARE (UK) LTD,21/12/2021,490.49,6541-Domiciliary Care,THIRD PARTY PAYMENTS,PRIVATE CONTRACTOR,REVENUE
Walsall Council,http://opendatacommunities.org/id/metropolitan-district-council/walsall ,WC133-335,31.12.2021,ADULT SOCIAL CARE,ADVANCE HEALTH CARE (UK) LTD,21/12/2021,435.96,6541-Domiciliary Care,THIRD PARTY PAYMENTS,PRIVATE CONTRACTOR,REVENUE
Walsall Council,http://opendatacommunities.org/id/metropolitan-district-council/walsall ,WC133-336,31.12.2021,ADULT SOCIAL CARE,ADVANCE HEALTH CARE (UK) LTD,21/12/2021,454.16,6541-Domiciliary Care,THIRD PARTY PAYMENTS,PRIVATE CONTRACTOR,REVENUE
Walsall Council,http://opendatacommunities.org/id/metropolitan-district-council/walsall ,WC133-337,31.12.2021,ADULT SOCIAL CARE,ADVANCE HEALTH CARE (UK) LTD,21/12/2021,490.49,6541-Domiciliary Care,THIRD PARTY PAYMENTS,PRIVATE CONTRACTOR,REVENUE
Walsall Council,http://opendatacommunities.org/id/metropolitan-district-council/walsall ,WC133-338,31.12.2021,ADULT SOCIAL CARE,ADVANCE HEALTH CARE (UK) LTD,21/12/2021,871.92,6541-Domiciliary Care,THIRD PARTY PAYMENTS,PRIVATE CONTRACTOR,REVENUE
Walsall Council,http://opendatacommunities.org/id/metropolitan-district-council/walsall ,WC133-339,31.12.2021,ADULT SOCIAL CARE,ADVANCE HEALTH CARE (UK) LTD,21/12/2021,381.50,6541-Domiciliary Care,THIRD PARTY PAYMENTS,PRIVATE CONTRACTOR,REVENUE
Walsall Council,http://opendatacommunities.org/id/metropolitan-district-council/walsall ,WC133-340,31.12.2021,ADULT SOCIAL CARE,ADVANCE HEALTH CARE (UK) LTD,21/12/2021,506.06,6541-Domiciliary Care,THIRD PARTY PAYMENTS,PRIVATE CONTRACTOR,REVENUE
Walsall Council,http://opendatacommunities.org/id/metropolitan-district-council/walsall ,WC133-341,31.12.2021,ADULT SOCIAL CARE,ADVANCE HEALTH CARE (UK) LTD,21/12/2021,435.96,6541-Domiciliary Care,THIRD PARTY PAYMENTS,PRIVATE CONTRACTOR,REVENUE
Walsall Council,http://opendatacommunities.org/id/metropolitan-district-council/walsall ,WC133-342,31.12.2021,ADULT SOCIAL CARE,ADVANCE HEALTH CARE (UK) LTD,21/12/2021,490.49,6541-Domiciliary Care,THIRD PARTY PAYMENTS,PRIVATE CONTRACTOR,REVENUE
Walsall Council,http://opendatacommunities.org/id/metropolitan-district-council/walsall ,WC133-343,31.12.2021,ADULT SOCIAL CARE,ADVANCE HEALTH CARE (UK) LTD,21/12/2021,490.49,6541-Domiciliary Care,THIRD PARTY PAYMENTS,PRIVATE CONTRACTOR,REVENUE
Walsall Council,http://opendatacommunities.org/id/metropolitan-district-council/walsall ,WC133-344,31.12.2021,ADULT SOCIAL CARE,ADVANCE HEALTH CARE (UK) LTD,21/12/2021,490.49,6541-Domiciliary Care,THIRD PARTY PAYMENTS,PRIVATE CONTRACTOR,REVENUE
Walsall Council,http://opendatacommunities.org/id/metropolitan-district-council/walsall ,WC133-345,31.12.2021,ADULT SOCIAL CARE,ADVANCE HEALTH CARE (UK) LTD,21/12/2021,490.49,6541-Domiciliary Care,THIRD PARTY PAYMENTS,PRIVATE CONTRACTOR,REVENUE
Walsall Council,http://opendatacommunities.org/id/metropolitan-district-council/walsall ,WC133-346,31.12.2021,ADULT SOCIAL CARE,ADVANCE HEALTH CARE (UK) LTD,21/12/2021,490.49,6541-Domiciliary Care,THIRD PARTY PAYMENTS,PRIVATE CONTRACTOR,REVENUE
Walsall Council,http://opendatacommunities.org/id/metropolitan-district-council/walsall ,WC133-347,31.12.2021,ADULT SOCIAL CARE,ADVANCE HEALTH CARE (UK) LTD,21/12/2021,326.97,6541-Domiciliary Care,THIRD PARTY PAYMENTS,PRIVATE CONTRACTOR,REVENUE
Walsall Council,http://opendatacommunities.org/id/metropolitan-district-council/walsall ,WC133-348,31.12.2021,ADULT SOCIAL CARE,ADVANCE HEALTH CARE (UK) LTD,21/12/2021,399.63,6541-Domiciliary Care,THIRD PARTY PAYMENTS,PRIVATE CONTRACTOR,REVENUE
Walsall Council,http://opendatacommunities.org/id/metropolitan-district-council/walsall ,WC133-349,31.12.2021,ADULT SOCIAL CARE,ADVANCE HEALTH CARE (UK) LTD,21/12/2021,256.93,6541-Domiciliary Care,THIRD PARTY PAYMENTS,PRIVATE CONTRACTOR,REVENUE
Walsall Council,http://opendatacommunities.org/id/metropolitan-district-council/walsall ,WC133-350,31.12.2021,ADULT SOCIAL CARE,ADVANCE HEALTH CARE (UK) LTD,21/12/2021,490.49,6541-Domiciliary Care,THIRD PARTY PAYMENTS,PRIVATE CONTRACTOR,REVENUE
Walsall Council,http://opendatacommunities.org/id/metropolitan-district-council/walsall ,WC133-351,31.12.2021,ADULT SOCIAL CARE,ADVANCE HEALTH CARE (UK) LTD,21/12/2021,490.49,6541-Domiciliary Care,THIRD PARTY PAYMENTS,PRIVATE CONTRACTOR,REVENUE
Walsall Council,http://opendatacommunities.org/id/metropolitan-district-council/walsall ,WC133-352,31.12.2021,ADULT SOCIAL CARE,ADVANCE HEALTH CARE (UK) LTD,21/12/2021,435.96,6541-Domiciliary Care,THIRD PARTY PAYMENTS,PRIVATE CONTRACTOR,REVENUE
Walsall Council,http://opendatacommunities.org/id/metropolitan-district-council/walsall ,WC133-353,31.12.2021,ADULT SOCIAL CARE,ADVANCE HEALTH CARE (UK) LTD,21/12/2021,435.96,6541-Domiciliary Care,THIRD PARTY PAYMENTS,PRIVATE CONTRACTOR,REVENUE
Walsall Council,http://opendatacommunities.org/id/metropolitan-district-council/walsall ,WC133-354,31.12.2021,ADULT SOCIAL CARE,ADVANCE HEALTH CARE (UK) LTD,21/12/2021,381.50,6541-Domiciliary Care,THIRD PARTY PAYMENTS,PRIVATE CONTRACTOR,REVENUE
Walsall Council,http://opendatacommunities.org/id/metropolitan-district-council/walsall ,WC133-355,31.12.2021,ADULT SOCIAL CARE,ADVANCE HEALTH CARE (UK) LTD,21/12/2021,490.49,6541-Domiciliary Care,THIRD PARTY PAYMENTS,PRIVATE CONTRACTOR,REVENUE
Walsall Council,http://opendatacommunities.org/id/metropolitan-district-council/walsall ,WC133-356,31.12.2021,ADULT SOCIAL CARE,ADVANCE HEALTH CARE (UK) LTD,21/12/2021,454.16,6541-Domiciliary Care,THIRD PARTY PAYMENTS,PRIVATE CONTRACTOR,REVENUE
Walsall Council,http://opendatacommunities.org/id/metropolitan-district-council/walsall ,WC133-357,31.12.2021,ADULT SOCIAL CARE,ADVANCE HEALTH CARE (UK) LTD,21/12/2021,435.96,6541-Domiciliary Care,THIRD PARTY PAYMENTS,PRIVATE CONTRACTOR,REVENUE
Walsall Council,http://opendatacommunities.org/id/metropolitan-district-council/walsall ,WC133-358,31.12.2021,ADULT SOCIAL CARE,ADVANCE HEALTH CARE (UK) LTD,21/12/2021,490.49,6541-Domiciliary Care,THIRD PARTY PAYMENTS,PRIVATE CONTRACTOR,REVENUE
Walsall Council,http://opendatacommunities.org/id/metropolitan-district-council/walsall ,WC133-359,31.12.2021,ADULT SOCIAL CARE,ADVANCE HEALTH CARE (UK) LTD,21/12/2021,490.49,6541-Domiciliary Care,THIRD PARTY PAYMENTS,PRIVATE CONTRACTOR,REVENUE
Walsall Council,http://opendatacommunities.org/id/metropolitan-district-council/walsall ,WC133-360,31.12.2021,ADULT SOCIAL CARE,ADVANCE HEALTH CARE (UK) LTD,21/12/2021,635.81,6541-Domiciliary Care,THIRD PARTY PAYMENTS,PRIVATE CONTRACTOR,REVENUE
Walsall Council,http://opendatacommunities.org/id/metropolitan-district-council/walsall ,WC133-361,31.12.2021,ADULT SOCIAL CARE,ADVANCE HEALTH CARE (UK) LTD,21/12/2021,537.20,6541-Domiciliary Care,THIRD PARTY PAYMENTS,PRIVATE CONTRACTOR,REVENUE
Walsall Council,http://opendatacommunities.org/id/metropolitan-district-council/walsall ,WC133-362,31.12.2021,ADULT SOCIAL CARE,ADVANCE HEALTH CARE (UK) LTD,21/12/2021,490.49,6541-Domiciliary Care,THIRD PARTY PAYMENTS,PRIVATE CONTRACTOR,REVENUE
Walsall Council,http://opendatacommunities.org/id/metropolitan-district-council/walsall ,WC133-363,31.12.2021,ADULT SOCIAL CARE,ADVANCE HEALTH CARE (UK) LTD,21/12/2021,326.97,6541-Domiciliary Care,THIRD PARTY PAYMENTS,PRIVATE CONTRACTOR,REVENUE
Walsall Council,http://opendatacommunities.org/id/metropolitan-district-council/walsall ,WC133-364,31.12.2021,ADULT SOCIAL CARE,ADVANCE HEALTH CARE (UK) LTD,21/12/2021,454.16,6541-Domiciliary Care,THIRD PARTY PAYMENTS,PRIVATE CONTRACTOR,REVENUE
Walsall Council,http://opendatacommunities.org/id/metropolitan-district-council/walsall ,WC133-365,31.12.2021,ADULT SOCIAL CARE,ADVANCE HEALTH CARE (UK) LTD,21/12/2021,490.49,6541-Domiciliary Care,THIRD PARTY PAYMENTS,PRIVATE CONTRACTOR,REVENUE
Walsall Council,http://opendatacommunities.org/id/metropolitan-district-council/walsall ,WC133-366,31.12.2021,ADULT SOCIAL CARE,ADVANCE HEALTH CARE (UK) LTD,21/12/2021,490.49,6541-Domiciliary Care,THIRD PARTY PAYMENTS,PRIVATE CONTRACTOR,REVENUE
Walsall Council,http://opendatacommunities.org/id/metropolitan-district-council/walsall ,WC133-367,31.12.2021,ADULT SOCIAL CARE,ADVANCE HEALTH CARE (UK) LTD,21/12/2021,435.96,6541-Domiciliary Care,THIRD PARTY PAYMENTS,PRIVATE CONTRACTOR,REVENUE
Walsall Council,http://opendatacommunities.org/id/metropolitan-district-council/walsall ,WC133-368,31.12.2021,ADULT SOCIAL CARE,ADVANCE HEALTH CARE (UK) LTD,21/12/2021,435.96,6541-Domiciliary Care,THIRD PARTY PAYMENTS,PRIVATE CONTRACTOR,REVENUE
Walsall Council,http://opendatacommunities.org/id/metropolitan-district-council/walsall ,WC133-369,31.12.2021,ADULT SOCIAL CARE,ADVANCE HEALTH CARE (UK) LTD,21/12/2021,490.49,6541-Domiciliary Care,THIRD PARTY PAYMENTS,PRIVATE CONTRACTOR,REVENUE
Walsall Council,http://opendatacommunities.org/id/metropolitan-district-council/walsall ,WC133-370,31.12.2021,ADULT SOCIAL CARE,ADVANCE HEALTH CARE (UK) LTD,21/12/2021,490.49,6541-Domiciliary Care,THIRD PARTY PAYMENTS,PRIVATE CONTRACTOR,REVENUE
Walsall Council,http://opendatacommunities.org/id/metropolitan-district-council/walsall ,WC133-371,31.12.2021,ADULT SOCIAL CARE,ADVANCE HEALTH CARE (UK) LTD,21/12/2021,544.95,6541-Domiciliary Care,THIRD PARTY PAYMENTS,PRIVATE CONTRACTOR,REVENUE
Walsall Council,http://opendatacommunities.org/id/metropolitan-district-council/walsall ,WC133-372,31.12.2021,ADULT SOCIAL CARE,ADVANCE HEALTH CARE (UK) LTD,21/12/2021,420.39,6541-Domiciliary Care,THIRD PARTY PAYMENTS,PRIVATE CONTRACTOR,REVENUE
Walsall Council,http://opendatacommunities.org/id/metropolitan-district-council/walsall ,WC133-373,31.12.2021,ADULT SOCIAL CARE,ADVANCE HEALTH CARE (UK) LTD,21/12/2021,435.96,6541-Domiciliary Care,THIRD PARTY PAYMENTS,PRIVATE CONTRACTOR,REVENUE
Walsall Council,http://opendatacommunities.org/id/metropolitan-district-council/walsall ,WC133-374,31.12.2021,ADULT SOCIAL CARE,ADVANCE HEALTH CARE (UK) LTD,21/12/2021,326.97,6541-Domiciliary Care,THIRD PARTY PAYMENTS,PRIVATE CONTRACTOR,REVENUE
Walsall Council,http://opendatacommunities.org/id/metropolitan-district-council/walsall ,WC133-375,31.12.2021,ADULT SOCIAL CARE,ADVANCE HEALTH CARE (UK) LTD,21/12/2021,490.49,6541-Domiciliary Care,THIRD PARTY PAYMENTS,PRIVATE CONTRACTOR,REVENUE
Walsall Council,http://opendatacommunities.org/id/metropolitan-district-council/walsall ,WC133-376,31.12.2021,ADULT SOCIAL CARE,ADVANCE HEALTH CARE (UK) LTD,21/12/2021,490.49,6541-Domiciliary Care,THIRD PARTY PAYMENTS,PRIVATE CONTRACTOR,REVENUE
Walsall Council,http://opendatacommunities.org/id/metropolitan-district-council/walsall ,WC133-377,31.12.2021,ADULT SOCIAL CARE,ADVANCE HEALTH CARE (UK) LTD,21/12/2021,490.49,6541-Domiciliary Care,THIRD PARTY PAYMENTS,PRIVATE CONTRACTOR,REVENUE
Walsall Council,http://opendatacommunities.org/id/metropolitan-district-council/walsall ,WC133-378,31.12.2021,ADULT SOCIAL CARE,ADVANCE HEALTH CARE (UK) LTD,21/12/2021,490.49,6541-Domiciliary Care,THIRD PARTY PAYMENTS,PRIVATE CONTRACTOR,REVENUE
Walsall Council,http://opendatacommunities.org/id/metropolitan-district-council/walsall ,WC133-379,31.12.2021,ADULT SOCIAL CARE,ADVANCE HEALTH CARE (UK) LTD,21/12/2021,363.30,6541-Domiciliary Care,THIRD PARTY PAYMENTS,PRIVATE CONTRACTOR,REVENUE
Walsall Council,http://opendatacommunities.org/id/metropolitan-district-council/walsall ,WC133-380,31.12.2021,ADULT SOCIAL CARE,ADVANCE HEALTH CARE (UK) LTD,21/12/2021,506.06,6541-Domiciliary Care,THIRD PARTY PAYMENTS,PRIVATE CONTRACTOR,REVENUE
Walsall Council,http://opendatacommunities.org/id/metropolitan-district-council/walsall ,WC133-381,31.12.2021,ADULT SOCIAL CARE,ADVANCE HEALTH CARE (UK) LTD,21/12/2021,435.96,6541-Domiciliary Care,THIRD PARTY PAYMENTS,PRIVATE CONTRACTOR,REVENUE
Walsall Council,http://opendatacommunities.org/id/metropolitan-district-council/walsall ,WC133-382,31.12.2021,ADULT SOCIAL CARE,ADVANCE HEALTH CARE (UK) LTD,21/12/2021,381.50,6541-Domiciliary Care,THIRD PARTY PAYMENTS,PRIVATE CONTRACTOR,REVENUE
Walsall Council,http://opendatacommunities.org/id/metropolitan-district-council/walsall ,WC133-383,31.12.2021,ADULT SOCIAL CARE,ADVANCE HEALTH CARE (UK) LTD,21/12/2021,490.49,6541-Domiciliary Care,THIRD PARTY PAYMENTS,PRIVATE CONTRACTOR,REVENUE
Walsall Council,http://opendatacommunities.org/id/metropolitan-district-council/walsall ,WC133-384,31.12.2021,ADULT SOCIAL CARE,ADVANCE HEALTH CARE (UK) LTD,21/12/2021,454.16,6541-Domiciliary Care,THIRD PARTY PAYMENTS,PRIVATE CONTRACTOR,REVENUE
Walsall Council,http://opendatacommunities.org/id/metropolitan-district-council/walsall ,WC133-385,31.12.2021,ADULT SOCIAL CARE,ADVANCE HEALTH CARE (UK) LTD,21/12/2021,490.49,6541-Domiciliary Care,THIRD PARTY PAYMENTS,PRIVATE CONTRACTOR,REVENUE
Walsall Council,http://opendatacommunities.org/id/metropolitan-district-council/walsall ,WC133-386,31.12.2021,ADULT SOCIAL CARE,ADVANCE HEALTH CARE (UK) LTD,21/12/2021,833.03,6541-Domiciliary Care,THIRD PARTY PAYMENTS,PRIVATE CONTRACTOR,REVENUE
Walsall Council,http://opendatacommunities.org/id/metropolitan-district-council/walsall ,WC133-387,31.12.2021,ADULT SOCIAL CARE,ADVANCE HEALTH CARE (UK) LTD,21/12/2021,490.49,6541-Domiciliary Care,THIRD PARTY PAYMENTS,PRIVATE CONTRACTOR,REVENUE
Walsall Council,http://opendatacommunities.org/id/metropolitan-district-council/walsall ,WC133-388,31.12.2021,ADULT SOCIAL CARE,ADVANCE HEALTH CARE (UK) LTD,21/12/2021,490.49,6541-Domiciliary Care,THIRD PARTY PAYMENTS,PRIVATE CONTRACTOR,REVENUE
Walsall Council,http://opendatacommunities.org/id/metropolitan-district-council/walsall ,WC133-389,31.12.2021,ADULT SOCIAL CARE,ADVANCE HEALTH CARE (UK) LTD,21/12/2021,490.49,6541-Domiciliary Care,THIRD PARTY PAYMENTS,PRIVATE CONTRACTOR,REVENUE
Walsall Council,http://opendatacommunities.org/id/metropolitan-district-council/walsall ,WC133-390,31.12.2021,ADULT SOCIAL CARE,ADVANCE HEALTH CARE (UK) LTD,21/12/2021,435.96,6541-Domiciliary Care,THIRD PARTY PAYMENTS,PRIVATE CONTRACTOR,REVENUE
Walsall Council,http://opendatacommunities.org/id/metropolitan-district-council/walsall ,WC133-391,31.12.2021,ADULT SOCIAL CARE,ADVANCE HEALTH CARE (UK) LTD,21/12/2021,490.49,6541-Domiciliary Care,THIRD PARTY PAYMENTS,PRIVATE CONTRACTOR,REVENUE
Walsall Council,http://opendatacommunities.org/id/metropolitan-district-council/walsall ,WC133-392,31.12.2021,ADULT SOCIAL CARE,ADVANCE HEALTH CARE (UK) LTD,21/12/2021,871.92,6541-Domiciliary Care,THIRD PARTY PAYMENTS,PRIVATE CONTRACTOR,REVENUE
Walsall Council,http://opendatacommunities.org/id/metropolitan-district-council/walsall ,WC133-393,31.12.2021,ADULT SOCIAL CARE,ADVANCE HEALTH CARE (UK) LTD,21/12/2021,381.50,6541-Domiciliary Care,THIRD PARTY PAYMENTS,PRIVATE CONTRACTOR,REVENUE
Walsall Council,http://opendatacommunities.org/id/metropolitan-district-council/walsall ,WC133-394,31.12.2021,ADULT SOCIAL CARE,ADVANCE HEALTH CARE (UK) LTD,21/12/2021,490.49,6541-Domiciliary Care,THIRD PARTY PAYMENTS,PRIVATE CONTRACTOR,REVENUE
Walsall Council,http://opendatacommunities.org/id/metropolitan-district-council/walsall ,WC133-395,31.12.2021,ADULT SOCIAL CARE,ADVANCE HEALTH CARE (UK) LTD,21/12/2021,490.49,6541-Domiciliary Care,THIRD PARTY PAYMENTS,PRIVATE CONTRACTOR,REVENUE
Walsall Council,http://opendatacommunities.org/id/metropolitan-district-council/walsall ,WC133-396,31.12.2021,ADULT SOCIAL CARE,ADVANCE HEALTH CARE (UK) LTD,21/12/2021,399.63,6541-Domiciliary Care,THIRD PARTY PAYMENTS,PRIVATE CONTRACTOR,REVENUE
Walsall Council,http://opendatacommunities.org/id/metropolitan-district-council/walsall ,WC133-397,31.12.2021,ADULT SOCIAL CARE,ADVANCE HEALTH CARE (UK) LTD,21/12/2021,490.49,6541-Domiciliary Care,THIRD PARTY PAYMENTS,PRIVATE CONTRACTOR,REVENUE
Walsall Council,http://opendatacommunities.org/id/metropolitan-district-council/walsall ,WC133-398,31.12.2021,ADULT SOCIAL CARE,ADVANCE HEALTH CARE (UK) LTD,21/12/2021,490.49,6541-Domiciliary Care,THIRD PARTY PAYMENTS,PRIVATE CONTRACTOR,REVENUE
Walsall Council,http://opendatacommunities.org/id/metropolitan-district-council/walsall ,WC133-399,31.12.2021,ADULT SOCIAL CARE,ADVANCE HEALTH CARE (UK) LTD,21/12/2021,490.49,6541-Domiciliary Care,THIRD PARTY PAYMENTS,PRIVATE CONTRACTOR,REVENUE
Walsall Council,http://opendatacommunities.org/id/metropolitan-district-council/walsall ,WC133-400,31.12.2021,ADULT SOCIAL CARE,ADVANCE HEALTH CARE (UK) LTD,21/12/2021,256.93,6541-Domiciliary Care,THIRD PARTY PAYMENTS,PRIVATE CONTRACTOR,REVENUE
Walsall Council,http://opendatacommunities.org/id/metropolitan-district-council/walsall ,WC133-401,31.12.2021,ADULT SOCIAL CARE,ADVANCE HEALTH CARE (UK) LTD,21/12/2021,326.97,6541-Domiciliary Care,THIRD PARTY PAYMENTS,PRIVATE CONTRACTOR,REVENUE
Walsall Council,http://opendatacommunities.org/id/metropolitan-district-council/walsall ,WC133-402,31.12.2021,ADULT SOCIAL CARE,ADVANCE HEALTH CARE (UK) LTD,02/12/2021,"16,666.67",6554-Professional Services-Priv Contractor & Other Agencies,THIRD PARTY PAYMENTS,PRIVATE CONTRACTOR,REVENUE
Walsall Council,http://opendatacommunities.org/id/metropolitan-district-council/walsall ,WC133-403,31.12.2021,ADULT SOCIAL CARE,ADVANCE HEALTH CARE (UK) LTD,22/12/2021,"67,156.57",6541-Domiciliary Care,THIRD PARTY PAYMENTS,PRIVATE CONTRACTOR,REVENUE
Walsall Council,http://opendatacommunities.org/id/metropolitan-district-council/walsall ,WC133-404,31.12.2021,CHILDRENS,ADVENTURELAND DAY NURSERY,20/12/2021,278.28,1220-Top Up Funding -Grants to Schools,SUPPLIES & SERVICES,GRANTS (EXP) & SUBSCRIPTIONS,REVENUE
Walsall Council,http://opendatacommunities.org/id/metropolitan-district-council/walsall ,WC133-405,31.12.2021,ADULT SOCIAL CARE,ADVINIA CARE HOMES LTD - HAMMERWICH HALL CARE HOME,21/12/2021,"2,331.08",6541-Residential EMI,THIRD PARTY PAYMENTS,PRIVATE CONTRACTOR,REVENUE
Walsall Council,http://opendatacommunities.org/id/metropolitan-district-council/walsall ,WC133-406,31.12.2021,ADULT SOCIAL CARE,ADVINIA CARE HOMES LTD - HAMMERWICH HALL CARE HOME,21/12/2021,"2,064.44",6541-Residential,THIRD PARTY PAYMENTS,PRIVATE CONTRACTOR,REVENUE
Walsall Council,http://opendatacommunities.org/id/metropolitan-district-council/walsall ,WC133-407,31.12.2021,"ECONOMY, ENVIRONMENT & COMMUNITIES",AECOM INFRASTRUCTURE & ENVIRONMENT UK LIMITED,29/12/2021,320.45,6411-Professional Fees & Services,SUPPLIES & SERVICES,SERVICES,REVENUE
Walsall Council,http://opendatacommunities.org/id/metropolitan-district-council/walsall ,WC133-408,31.12.2021,CHILDRENS,AFGHAN COMMUNITY & WELFARE CENTRE,06/12/2021,"3,722.85",6213-Professional Fees & Services,SUPPLIES & SERVICES,SERVICES,REVENUE
Walsall Council,http://opendatacommunities.org/id/metropolitan-district-council/walsall ,WC133-409,31.12.2021,CHILDRENS,AFGHAN COMMUNITY & WELFARE CENTRE,22/12/2021,880.72,6213-Professional Fees & Services,SUPPLIES & SERVICES,SERVICES,REVENUE
Walsall Council,http://opendatacommunities.org/id/metropolitan-district-council/walsall ,WC133-410,31.12.2021,CHILDRENS,REDACTED,15/12/2021,585.81,6223-Foster Carers Maintenance Allowance,TRANSFER PAYMENTS,CHILDREN SOCIAL SERVICES CLIENT,REVENUE
Walsall Council,http://opendatacommunities.org/id/metropolitan-district-council/walsall ,WC133-411,31.12.2021,CHILDRENS,REDACTED,15/12/2021,437.14,6223-Internal Foster Carers-Carer Fees,TRANSFER PAYMENTS,CHILDREN SOCIAL SERVICES CLIENT,REVENUE
Walsall Council,http://opendatacommunities.org/id/metropolitan-district-council/walsall ,WC133-412,31.12.2021,CHILDRENS,REDACTED,15/12/2021,651.68,6223-Foster Carers Maintenance Allowance,TRANSFER PAYMENTS,CHILDREN SOCIAL SERVICES CLIENT,REVENUE
Walsall Council,http://opendatacommunities.org/id/metropolitan-district-council/walsall ,WC133-413,31.12.2021,"ECONOMY, ENVIRONMENT & COMMUNITIES",AFRICA ADVOCACY FOUNDATION,15/12/2021,"1,800.00",6430-Grants to Other Orgs,SUPPLIES & SERVICES,GRANTS (EXP) & SUBSCRIPTIONS,REVENUE
Walsall Council,http://opendatacommunities.org/id/metropolitan-district-council/walsall ,WC133-414,31.12.2021,RESOURCES AND TRANSFORMATION,AGILISYS LTD,09/12/2021,"95,000.00",6623-Computer Equipment,SUPPLIES & SERVICES,COMMUNICATIONS & COMPUTING,REVENUE
Walsall Council,http://opendatacommunities.org/id/metropolitan-district-council/walsall ,WC133-415,31.12.2021,RESOURCES AND TRANSFORMATION CAPITAL,AGILISYS LTD,21/12/2021,"42,522.00",7300-Consultants Fees,CAPITAL,"NEW CONSTRUCTION,CONVERSION & RENOVATION",CAPITAL
Walsall Council,http://opendatacommunities.org/id/metropolitan-district-council/walsall ,WC133-416,31.12.2021,RESOURCES AND TRANSFORMATION CAPITAL,AGILISYS LTD,21/12/2021,"63,784.00",7300-Consultants Fees,CAPITAL,"NEW CONSTRUCTION,CONVERSION & RENOVATION",CAPITAL
Walsall Council,http://opendatacommunities.org/id/metropolitan-district-council/walsall ,WC133-417,31.12.2021,RESOURCES AND TRANSFORMATION CAPITAL,AGILISYS LTD,21/12/2021,"-6,272.00",7300-Consultants Fees,CAPITAL,"NEW CONSTRUCTION,CONVERSION & RENOVATION",CAPITAL
Walsall Council,http://opendatacommunities.org/id/metropolitan-district-council/walsall ,WC133-418,31.12.2021,ADULT SOCIAL CARE,REDACTED,08/12/2021,"3,100.80",6541-Direct Payment,THIRD PARTY PAYMENTS,PRIVATE CONTRACTOR,REVENUE
Walsall Council,http://opendatacommunities.org/id/metropolitan-district-council/walsall ,WC133-419,31.12.2021,CHILDRENS,AIREY CONSULTANCY SERVICES LTD,22/12/2021,"3,575.00",6632-Computer Equipment,SUPPLIES & SERVICES,COMMUNICATIONS & COMPUTING,REVENUE
Walsall Council,http://opendatacommunities.org/id/metropolitan-district-council/walsall ,WC133-420,31.12.2021,"ECONOMY, ENVIRONMENT & COMMUNITIES",AISHA MOSQUE ISLAMIC CENTRE,21/12/2021,"2,535.00",6430-Consultant Fees,SUPPLIES & SERVICES,SERVICES,REVENUE
Walsall Council,http://opendatacommunities.org/id/metropolitan-district-council/walsall ,WC133-421,31.12.2021,"ECONOMY, ENVIRONMENT & COMMUNITIES",AISHA MOSQUE ISLAMIC CENTRE,21/12/2021,"1,855.00",6430-Consultant Fees,SUPPLIES & SERVICES,SERVICES,REVENUE
Walsall Council,http://opendatacommunities.org/id/metropolitan-district-council/walsall ,WC133-422,31.12.2021,CHILDRENS,ALAN SAVILL T/A INSPIRED TRAINERS,02/12/2021,"1,200.00",6211-External Training,INDIRECT EMPLOYEES,EXTERNAL TRAINING,REVENUE
Walsall Council,http://opendatacommunities.org/id/metropolitan-district-council/walsall ,WC133-423,31.12.2021,CHILDRENS,ALAN SAVILL T/A INSPIRED TRAINERS,23/12/2021,600.00,6211-External Training,INDIRECT EMPLOYEES,EXTERNAL TRAINING,REVENUE
Walsall Council,http://opendatacommunities.org/id/metropolitan-district-council/walsall ,WC133-424,31.12.2021,RESOURCES AND TRANSFORMATION,ALASDAIR CANT & ASSOCIATES LIMITED,01/12/2021,"2,605.50",6625-Consultant Fees,SUPPLIES & SERVICES,SERVICES,REVENUE
Walsall Council,http://opendatacommunities.org/id/metropolitan-district-council/walsall ,WC133-425,31.12.2021,RESOURCES AND TRANSFORMATION,ALASDAIR CANT & ASSOCIATES LIMITED,22/12/2021,"2,605.50",6625-Consultant Fees,SUPPLIES & SERVICES,SERVICES,REVENUE
Walsall Council,http://opendatacommunities.org/id/metropolitan-district-council/walsall ,WC133-426,31.12.2021,CHILDRENS,ALASDAIR CANT & ASSOCIATES LIMITED,29/12/2021,"2,605.50",6220-Professional Fees & Services,SUPPLIES & SERVICES,SERVICES,REVENUE
Walsall Council,http://opendatacommunities.org/id/metropolitan-district-council/walsall ,WC133-427,31.12.2021,CHILDRENS,ALDRIDGE & BARONS LIMITED,06/12/2021,"1,181.70",6241-Hire of Vehicle with Driver,TRANSPORT,DIRECT TRANSPORT COSTS,REVENUE
Walsall Council,http://opendatacommunities.org/id/metropolitan-district-council/walsall ,WC133-428,31.12.2021,CHILDRENS,ALDRIDGE & BARONS LIMITED,06/12/2021,"1,433.65",6241-Hire of Vehicle with Driver,TRANSPORT,DIRECT TRANSPORT COSTS,REVENUE
Walsall Council,http://opendatacommunities.org/id/metropolitan-district-council/walsall ,WC133-429,31.12.2021,CHILDRENS,ALDRIDGE & BARONS LIMITED,06/12/2021,"1,350.00",6241-Hire of Vehicle with Driver,TRANSPORT,DIRECT TRANSPORT COSTS,REVENUE
Walsall Council,http://opendatacommunities.org/id/metropolitan-district-council/walsall ,WC133-430,31.12.2021,CHILDRENS,ALDRIDGE & BARONS LIMITED,06/12/2021,"1,435.50",6241-Hire of Vehicle with Driver,TRANSPORT,DIRECT TRANSPORT COSTS,REVENUE
Walsall Council,http://opendatacommunities.org/id/metropolitan-district-council/walsall ,WC133-431,31.12.2021,CHILDRENS,ALDRIDGE & BARONS LIMITED,06/12/2021,"1,470.00",6241-Hire of Vehicle with Driver,TRANSPORT,DIRECT TRANSPORT COSTS,REVENUE
Walsall Council,http://opendatacommunities.org/id/metropolitan-district-council/walsall ,WC133-432,31.12.2021,CHILDRENS,ALDRIDGE & BARONS LIMITED,06/12/2021,"1,488.75",6241-Hire of Vehicle with Driver,TRANSPORT,DIRECT TRANSPORT COSTS,REVENUE
Walsall Council,http://opendatacommunities.org/id/metropolitan-district-council/walsall ,WC133-433,31.12.2021,CHILDRENS,ALDRIDGE & BARONS LIMITED,06/12/2021,"1,120.00",6241-Hire of Vehicle with Driver,TRANSPORT,DIRECT TRANSPORT COSTS,REVENUE
Walsall Council,http://opendatacommunities.org/id/metropolitan-district-council/walsall ,WC133-434,31.12.2021,CHILDRENS,ALDRIDGE & BARONS LIMITED,06/12/2021,"1,260.00",6241-Hire of Vehicle with Driver,TRANSPORT,DIRECT TRANSPORT COSTS,REVENUE
Walsall Council,http://opendatacommunities.org/id/metropolitan-district-council/walsall ,WC133-435,31.12.2021,CHILDRENS,ALDRIDGE & BARONS LIMITED,06/12/2021,"1,287.75",6241-Hire of Vehicle with Driver,TRANSPORT,DIRECT TRANSPORT COSTS,REVENUE
Walsall Council,http://opendatacommunities.org/id/metropolitan-district-council/walsall ,WC133-436,31.12.2021,CHILDRENS,ALDRIDGE & BARONS LIMITED,06/12/2021,"1,529.28",6241-Hire of Vehicle with Driver,TRANSPORT,DIRECT TRANSPORT COSTS,REVENUE
Walsall Council,http://opendatacommunities.org/id/metropolitan-district-council/walsall ,WC133-437,31.12.2021,CHILDRENS,ALDRIDGE & BARONS LIMITED,06/12/2021,"1,134.00",6241-Hire of Vehicle with Driver,TRANSPORT,DIRECT TRANSPORT COSTS,REVENUE
Walsall Council,http://opendatacommunities.org/id/metropolitan-district-council/walsall ,WC133-438,31.12.2021,CHILDRENS,ALDRIDGE & BARONS LIMITED,06/12/2021,"1,594.60",6241-Hire of Vehicle with Driver,TRANSPORT,DIRECT TRANSPORT COSTS,REVENUE
Walsall Council,http://opendatacommunities.org/id/metropolitan-district-council/walsall ,WC133-439,31.12.2021,CHILDRENS,ALDRIDGE & BARONS LIMITED,06/12/2021,"1,737.00",6241-Hire of Vehicle with Driver,TRANSPORT,DIRECT TRANSPORT COSTS,REVENUE
Walsall Council,http://opendatacommunities.org/id/metropolitan-district-council/walsall ,WC133-440,31.12.2021,CHILDRENS,ALDRIDGE & BARONS LIMITED,06/12/2021,"1,724.80",6241-Hire of Vehicle with Driver,TRANSPORT,DIRECT TRANSPORT COSTS,REVENUE
Walsall Council,http://opendatacommunities.org/id/metropolitan-district-council/walsall ,WC133-441,31.12.2021,CHILDRENS,ALDRIDGE & BARONS LIMITED,06/12/2021,"1,610.70",6241-Hire of Vehicle with Driver,TRANSPORT,DIRECT TRANSPORT COSTS,REVENUE
Walsall Council,http://opendatacommunities.org/id/metropolitan-district-council/walsall ,WC133-442,31.12.2021,CHILDRENS,ALDRIDGE & BARONS LIMITED,06/12/2021,"1,459.50",6241-Hire of Vehicle with Driver,TRANSPORT,DIRECT TRANSPORT COSTS,REVENUE
Walsall Council,http://opendatacommunities.org/id/metropolitan-district-council/walsall ,WC133-443,31.12.2021,CHILDRENS,ALDRIDGE & BARONS LIMITED,06/12/2021,"1,650.00",6241-Hire of Vehicle with Driver,TRANSPORT,DIRECT TRANSPORT COSTS,REVENUE
Walsall Council,http://opendatacommunities.org/id/metropolitan-district-council/walsall ,WC133-444,31.12.2021,CHILDRENS,ALDRIDGE & BARONS LIMITED,06/12/2021,"1,351.98",6241-Hire of Vehicle with Driver,TRANSPORT,DIRECT TRANSPORT COSTS,REVENUE
Walsall Council,http://opendatacommunities.org/id/metropolitan-district-council/walsall ,WC133-445,31.12.2021,CHILDRENS,ALDRIDGE & BARONS LIMITED,06/12/2021,"1,451.25",6241-Hire of Vehicle with Driver,TRANSPORT,DIRECT TRANSPORT COSTS,REVENUE
Walsall Council,http://opendatacommunities.org/id/metropolitan-district-council/walsall ,WC133-446,31.12.2021,CHILDRENS,ALDRIDGE & BARONS LIMITED,06/12/2021,"1,456.00",6241-Hire of Vehicle with Driver,TRANSPORT,DIRECT TRANSPORT COSTS,REVENUE
Walsall Council,http://opendatacommunities.org/id/metropolitan-district-council/walsall ,WC133-447,31.12.2021,CHILDRENS,ALDRIDGE & BARONS LIMITED,06/12/2021,"1,969.50",6241-Hire of Vehicle with Driver,TRANSPORT,DIRECT TRANSPORT COSTS,REVENUE
Walsall Council,http://opendatacommunities.org/id/metropolitan-district-council/walsall ,WC133-448,31.12.2021,CHILDRENS,ALDRIDGE & BARONS LIMITED,06/12/2021,"1,491.00",6241-Hire of Vehicle with Driver,TRANSPORT,DIRECT TRANSPORT COSTS,REVENUE
Walsall Council,http://opendatacommunities.org/id/metropolitan-district-council/walsall ,WC133-449,31.12.2021,CHILDRENS,ALDRIDGE & BARONS LIMITED,06/12/2021,963.00,6241-Hire of Vehicle with Driver,TRANSPORT,DIRECT TRANSPORT COSTS,REVENUE
Walsall Council,http://opendatacommunities.org/id/metropolitan-district-council/walsall ,WC133-450,31.12.2021,CHILDRENS,ALDRIDGE & BARONS LIMITED,06/12/2021,"1,689.80",6241-Hire of Vehicle with Driver,TRANSPORT,DIRECT TRANSPORT COSTS,REVENUE
Walsall Council,http://opendatacommunities.org/id/metropolitan-district-council/walsall ,WC133-451,31.12.2021,CHILDRENS,ALDRIDGE & BARONS LIMITED,06/12/2021,522.00,6241-Hire of Vehicle with Driver,TRANSPORT,DIRECT TRANSPORT COSTS,REVENUE
Walsall Council,http://opendatacommunities.org/id/metropolitan-district-council/walsall ,WC133-452,31.12.2021,CHILDRENS,ALDRIDGE & BARONS LIMITED,06/12/2021,"1,674.00",6241-Hire of Vehicle with Driver,TRANSPORT,DIRECT TRANSPORT COSTS,REVENUE
Walsall Council,http://opendatacommunities.org/id/metropolitan-district-council/walsall ,WC133-453,31.12.2021,CHILDRENS,ALDRIDGE & BARONS LIMITED,06/12/2021,"1,350.00",6241-Hire of Vehicle with Driver,TRANSPORT,DIRECT TRANSPORT COSTS,REVENUE
Walsall Council,http://opendatacommunities.org/id/metropolitan-district-council/walsall ,WC133-454,31.12.2021,CHILDRENS,ALDRIDGE & BARONS LIMITED,06/12/2021,"1,650.00",6241-Hire of Vehicle with Driver,TRANSPORT,DIRECT TRANSPORT COSTS,REVENUE
Walsall Council,http://opendatacommunities.org/id/metropolitan-district-council/walsall ,WC133-455,31.12.2021,CHILDRENS,ALDRIDGE & BARONS LIMITED,06/12/2021,"1,230.00",6241-Hire of Vehicle with Driver,TRANSPORT,DIRECT TRANSPORT COSTS,REVENUE
Walsall Council,http://opendatacommunities.org/id/metropolitan-district-council/walsall ,WC133-456,31.12.2021,ADULT SOCIAL CARE,REDACTED,08/12/2021,"1,985.66",6541-Direct Payment,THIRD PARTY PAYMENTS,PRIVATE CONTRACTOR,REVENUE
Walsall Council,http://opendatacommunities.org/id/metropolitan-district-council/walsall ,WC133-457,31.12.2021,ADULT SOCIAL CARE,ALEXANDRA HOUSE CARE SERVICES LTD T/A STONEBRIDGE NURSING HOME,21/12/2021,"7,434.72",6541-Residential,THIRD PARTY PAYMENTS,PRIVATE CONTRACTOR,REVENUE
Walsall Council,http://opendatacommunities.org/id/metropolitan-district-council/walsall ,WC133-458,31.12.2021,ADULT SOCIAL CARE,REDACTED,08/12/2021,"1,196.80",6541-Direct Payment,THIRD PARTY PAYMENTS,PRIVATE CONTRACTOR,REVENUE
Walsall Council,http://opendatacommunities.org/id/metropolitan-district-council/walsall ,WC133-459,31.12.2021,CHILDRENS,REDACTED,15/12/2021,341.44,6223-Special Guardianship Orders,TRANSFER PAYMENTS,CHILDREN SOCIAL SERVICES CLIENT,REVENUE
Walsall Council,http://opendatacommunities.org/id/metropolitan-district-council/walsall ,WC133-460,31.12.2021,"ECONOMY, ENVIRONMENT & COMMUNITIES",ALLIANCE LEISURE SERVICES LTD,07/12/2021,"112,081.84",6413-Repair & Maintenance of Furniture & Equipment,SUPPLIES & SERVICES,EQUIPMENT FURNITURE & MATERIALS,REVENUE
Walsall Council,http://opendatacommunities.org/id/metropolitan-district-council/walsall ,WC133-461,31.12.2021,RESOURCES AND TRANSFORMATION,ALLIED PUBLICITY SERVICES (MANCHESTER) LIMITED T/A APS GROUP,23/12/2021,"1,721.46",6312-External Printing Services,SUPPLIES & SERVICES,PRINTING STATIONERY & GENERAL OFFICE,REVENUE
Walsall Council,http://opendatacommunities.org/id/metropolitan-district-council/walsall ,WC133-462,31.12.2021,ADULT SOCIAL CARE,ALMA COURT,21/12/2021,"3,626.96",6541-Nursing EMI,THIRD PARTY PAYMENTS,PRIVATE CONTRACTOR,REVENUE
Walsall Council,http://opendatacommunities.org/id/metropolitan-district-council/walsall ,WC133-463,31.12.2021,ADULT SOCIAL CARE,ALMA COURT,21/12/2021,"4,764.88",6541-Nursing EMI,THIRD PARTY PAYMENTS,PRIVATE CONTRACTOR,REVENUE
Walsall Council,http://opendatacommunities.org/id/metropolitan-district-council/walsall ,WC133-464,31.12.2021,ADULT SOCIAL CARE,ALMA COURT,21/12/2021,"3,840.00",6541-Nursing,THIRD PARTY PAYMENTS,PRIVATE CONTRACTOR,REVENUE
Walsall Council,http://opendatacommunities.org/id/metropolitan-district-council/walsall ,WC133-465,31.12.2021,ADULT SOCIAL CARE,ALMA COURT,21/12/2021,"30,900.00",6541-Residential,THIRD PARTY PAYMENTS,PRIVATE CONTRACTOR,REVENUE
Walsall Council,http://opendatacommunities.org/id/metropolitan-district-council/walsall ,WC133-466,31.12.2021,ADULT SOCIAL CARE,ALMA COURT,21/12/2021,"3,826.96",6541-Nursing EMI,THIRD PARTY PAYMENTS,PRIVATE CONTRACTOR,REVENUE
Walsall Council,http://opendatacommunities.org/id/metropolitan-district-council/walsall ,WC133-467,31.12.2021,ADULT SOCIAL CARE,ALMA COURT,21/12/2021,"6,619.12",6541-Residential,THIRD PARTY PAYMENTS,PRIVATE CONTRACTOR,REVENUE
Walsall Council,http://opendatacommunities.org/id/metropolitan-district-council/walsall ,WC133-468,31.12.2021,ADULT SOCIAL CARE,ALMA COURT,21/12/2021,"4,200.00",6541-Nursing EMI,THIRD PARTY PAYMENTS,PRIVATE CONTRACTOR,REVENUE
Walsall Council,http://opendatacommunities.org/id/metropolitan-district-council/walsall ,WC133-469,31.12.2021,RESOURCES AND TRANSFORMATION CAPITAL,ALMADEN UK LTD,10/12/2021,"14,000.00",7300-Consultants Fees,CAPITAL,"NEW CONSTRUCTION,CONVERSION & RENOVATION",CAPITAL
Walsall Council,http://opendatacommunities.org/id/metropolitan-district-council/walsall ,WC133-470,31.12.2021,CHILDRENS,ALMOZENE NURSERY & CHILDRENS CENTRE,06/12/2021,"2,800.00",6213-Professional Fees & Services,SUPPLIES & SERVICES,SERVICES,REVENUE
Walsall Council,http://opendatacommunities.org/id/metropolitan-district-council/walsall ,WC133-471,31.12.2021,CHILDRENS,ALMOZENE NURSERY & CHILDRENS CENTRE,22/12/2021,700.00,6213-Professional Fees & Services,SUPPLIES & SERVICES,SERVICES,REVENUE
Walsall Council,http://opendatacommunities.org/id/metropolitan-district-council/walsall ,WC133-472,31.12.2021,"ECONOMY, ENVIRONMENT & COMMUNITIES",ALMOZENE NURSERY & CHILDRENS CENTRE,06/12/2021,881.12,6313-Grants to Other Orgs,SUPPLIES & SERVICES,GRANTS (EXP) & SUBSCRIPTIONS,REVENUE
Walsall Council,http://opendatacommunities.org/id/metropolitan-district-council/walsall ,WC133-473,31.12.2021,"ECONOMY, ENVIRONMENT & COMMUNITIES",ALMOZENE NURSERY & CHILDRENS CENTRE,13/12/2021,710.67,6313-Grants to Other Orgs,SUPPLIES & SERVICES,GRANTS (EXP) & SUBSCRIPTIONS,REVENUE
Walsall Council,http://opendatacommunities.org/id/metropolitan-district-council/walsall ,WC133-474,31.12.2021,ADULT SOCIAL CARE,ALPHA HEALTH CARE LTD,21/12/2021,"2,722.96",6541-Nursing EMI,THIRD PARTY PAYMENTS,PRIVATE CONTRACTOR,REVENUE
Walsall Council,http://opendatacommunities.org/id/metropolitan-district-council/walsall ,WC133-475,31.12.2021,ADULT SOCIAL CARE,ALPHA HEALTH CARE LTD,21/12/2021,"2,961.72",6541-Nursing,THIRD PARTY PAYMENTS,PRIVATE CONTRACTOR,REVENUE
Walsall Council,http://opendatacommunities.org/id/metropolitan-district-council/walsall ,WC133-476,31.12.2021,ADULT SOCIAL CARE,ALPHA HEALTH CARE LTD,21/12/2021,"3,091.28",6541-Nursing EMI,THIRD PARTY PAYMENTS,PRIVATE CONTRACTOR,REVENUE
Walsall Council,http://opendatacommunities.org/id/metropolitan-district-council/walsall ,WC133-477,31.12.2021,ADULT SOCIAL CARE,ALPHA HEALTH CARE LTD,21/12/2021,"2,331.08",6541-Residential EMI,THIRD PARTY PAYMENTS,PRIVATE CONTRACTOR,REVENUE
Walsall Council,http://opendatacommunities.org/id/metropolitan-district-council/walsall ,WC133-478,31.12.2021,ADULT SOCIAL CARE,ALPHA HEALTH CARE LTD,21/12/2021,"3,363.08",6541-Residential EMI,THIRD PARTY PAYMENTS,PRIVATE CONTRACTOR,REVENUE
Walsall Council,http://opendatacommunities.org/id/metropolitan-district-council/walsall ,WC133-479,31.12.2021,ADULT SOCIAL CARE,ALPHA HEALTH CARE LTD,21/12/2021,"3,049.60",6541-Nursing EMI,THIRD PARTY PAYMENTS,PRIVATE CONTRACTOR,REVENUE
Walsall Council,http://opendatacommunities.org/id/metropolitan-district-council/walsall ,WC133-480,31.12.2021,ADULT SOCIAL CARE,ALPHA HEALTH CARE LTD,21/12/2021,"3,091.28",6541-Nursing EMI,THIRD PARTY PAYMENTS,PRIVATE CONTRACTOR,REVENUE
Walsall Council,http://opendatacommunities.org/id/metropolitan-district-council/walsall ,WC133-481,31.12.2021,ADULT SOCIAL CARE,ALPHA HEALTH CARE LTD,21/12/2021,"3,340.00",6541-Residential EMI,THIRD PARTY PAYMENTS,PRIVATE CONTRACTOR,REVENUE
Walsall Council,http://opendatacommunities.org/id/metropolitan-district-council/walsall ,WC133-482,31.12.2021,ADULT SOCIAL CARE,ALPHA HEALTH CARE LTD,21/12/2021,"3,780.00",6541-Professional Services-Priv Contractor & Other Agencies,THIRD PARTY PAYMENTS,PRIVATE CONTRACTOR,REVENUE
Walsall Council,http://opendatacommunities.org/id/metropolitan-district-council/walsall ,WC133-483,31.12.2021,ADULT SOCIAL CARE,ALPHA HEALTH CARE LTD,21/12/2021,"3,626.96",6541-Nursing EMI,THIRD PARTY PAYMENTS,PRIVATE CONTRACTOR,REVENUE
Walsall Council,http://opendatacommunities.org/id/metropolitan-district-council/walsall ,WC133-484,31.12.2021,ADULT SOCIAL CARE,ALPHA HEALTH CARE LTD,21/12/2021,-928.57,6541-Professional Services-Priv Contractor & Other Agencies,THIRD PARTY PAYMENTS,PRIVATE CONTRACTOR,REVENUE
Walsall Council,http://opendatacommunities.org/id/metropolitan-district-council/walsall ,WC133-485,31.12.2021,ADULT SOCIAL CARE,ALPHA HEALTH CARE LTD,21/12/2021,"2,600.00",6541-Residential,THIRD PARTY PAYMENTS,PRIVATE CONTRACTOR,REVENUE
Walsall Council,http://opendatacommunities.org/id/metropolitan-district-council/walsall ,WC133-486,31.12.2021,ADULT SOCIAL CARE,ALPHA HEALTH CARE LTD,21/12/2021,"1,857.14",6541-Professional Services-Priv Contractor & Other Agencies,THIRD PARTY PAYMENTS,PRIVATE CONTRACTOR,REVENUE
Walsall Council,http://opendatacommunities.org/id/metropolitan-district-council/walsall ,WC133-487,31.12.2021,ADULT SOCIAL CARE,ALPHA HEALTH CARE LTD,21/12/2021,"1,550.71",6541-Professional Services-Priv Contractor & Other Agencies,THIRD PARTY PAYMENTS,PRIVATE CONTRACTOR,REVENUE
Walsall Council,http://opendatacommunities.org/id/metropolitan-district-council/walsall ,WC133-488,31.12.2021,ADULT SOCIAL CARE,ALPHA HEALTH CARE LTD,21/12/2021,"2,854.56",6541-Residential EMI,THIRD PARTY PAYMENTS,PRIVATE CONTRACTOR,REVENUE
Walsall Council,http://opendatacommunities.org/id/metropolitan-district-council/walsall ,WC133-489,31.12.2021,ADULT SOCIAL CARE,ALPHA HEALTH CARE LTD,21/12/2021,"2,722.96",6541-Nursing EMI,THIRD PARTY PAYMENTS,PRIVATE CONTRACTOR,REVENUE
Walsall Council,http://opendatacommunities.org/id/metropolitan-district-council/walsall ,WC133-490,31.12.2021,ADULT SOCIAL CARE,ALPHA HEALTH CARE LTD,21/12/2021,"2,331.08",6541-Residential EMI,THIRD PARTY PAYMENTS,PRIVATE CONTRACTOR,REVENUE
Walsall Council,http://opendatacommunities.org/id/metropolitan-district-council/walsall ,WC133-491,31.12.2021,ADULT SOCIAL CARE,ALPHA HEALTH CARE LTD,21/12/2021,"1,114.29",6541-Professional Services-Priv Contractor & Other Agencies,THIRD PARTY PAYMENTS,PRIVATE CONTRACTOR,REVENUE
Walsall Council,http://opendatacommunities.org/id/metropolitan-district-council/walsall ,WC133-492,31.12.2021,ADULT SOCIAL CARE,ALPHA HEALTH CARE LTD,21/12/2021,"6,249.60",6541-Residential,THIRD PARTY PAYMENTS,PRIVATE CONTRACTOR,REVENUE
Walsall Council,http://opendatacommunities.org/id/metropolitan-district-council/walsall ,WC133-493,31.12.2021,ADULT SOCIAL CARE,ALPHA HEALTH CARE LTD,21/12/2021,"3,149.60",6541-Nursing EMI,THIRD PARTY PAYMENTS,PRIVATE CONTRACTOR,REVENUE
Walsall Council,http://opendatacommunities.org/id/metropolitan-district-council/walsall ,WC133-494,31.12.2021,ADULT SOCIAL CARE,ALPHA HEALTH CARE LTD,21/12/2021,"2,722.96",6541-Nursing EMI,THIRD PARTY PAYMENTS,PRIVATE CONTRACTOR,REVENUE
Walsall Council,http://opendatacommunities.org/id/metropolitan-district-council/walsall ,WC133-495,31.12.2021,ADULT SOCIAL CARE,ALPHA HEALTH CARE LTD,21/12/2021,"7,026.96",6541-Nursing EMI,THIRD PARTY PAYMENTS,PRIVATE CONTRACTOR,REVENUE
Walsall Council,http://opendatacommunities.org/id/metropolitan-district-council/walsall ,WC133-496,31.12.2021,ADULT SOCIAL CARE,ALPHA HEALTH CARE LTD,21/12/2021,"2,731.08",6541-Residential EMI,THIRD PARTY PAYMENTS,PRIVATE CONTRACTOR,REVENUE
Walsall Council,http://opendatacommunities.org/id/metropolitan-district-council/walsall ,WC133-497,31.12.2021,ADULT SOCIAL CARE,ALPHA HEALTH CARE LTD,21/12/2021,"2,700.00",6541-Professional Services-Priv Contractor & Other Agencies,THIRD PARTY PAYMENTS,PRIVATE CONTRACTOR,REVENUE
Walsall Council,http://opendatacommunities.org/id/metropolitan-district-council/walsall ,WC133-498,31.12.2021,ADULT SOCIAL CARE,ALPHA HEALTH CARE LTD,21/12/2021,"3,292.57",6541-Residential & Nursing Care Placements,THIRD PARTY PAYMENTS,PRIVATE CONTRACTOR,REVENUE
Walsall Council,http://opendatacommunities.org/id/metropolitan-district-council/walsall ,WC133-499,31.12.2021,ADULT SOCIAL CARE,ALPHA HEALTH CARE LTD,21/12/2021,"5,656.00",6541-Residential,THIRD PARTY PAYMENTS,PRIVATE CONTRACTOR,REVENUE
Walsall Council,http://opendatacommunities.org/id/metropolitan-district-council/walsall ,WC133-500,31.12.2021,ADULT SOCIAL CARE,ALPHA HEALTH CARE LTD,21/12/2021,"3,064.32",6541-Nursing EMI,THIRD PARTY PAYMENTS,PRIVATE CONTRACTOR,REVENUE
Walsall Council,http://opendatacommunities.org/id/metropolitan-district-council/walsall ,WC133-501,31.12.2021,ADULT SOCIAL CARE,ALPHA HEALTH CARE LTD,21/12/2021,"1,253.57",6541-Residential & Nursing Care Placements,THIRD PARTY PAYMENTS,PRIVATE CONTRACTOR,REVENUE
Walsall Council,http://opendatacommunities.org/id/metropolitan-district-council/walsall ,WC133-502,31.12.2021,ADULT SOCIAL CARE,ALPHA HEALTH CARE LTD,21/12/2021,"3,091.28",6541-Nursing EMI,THIRD PARTY PAYMENTS,PRIVATE CONTRACTOR,REVENUE
Walsall Council,http://opendatacommunities.org/id/metropolitan-district-council/walsall ,WC133-503,31.12.2021,ADULT SOCIAL CARE,ALPHA HEALTH CARE LTD,21/12/2021,"3,091.28",6541-Nursing EMI,THIRD PARTY PAYMENTS,PRIVATE CONTRACTOR,REVENUE
Walsall Council,http://opendatacommunities.org/id/metropolitan-district-council/walsall ,WC133-504,31.12.2021,ADULT SOCIAL CARE,ALPHA HEALTH CARE LTD,21/12/2021,"7,000.00",6541-Residential,THIRD PARTY PAYMENTS,PRIVATE CONTRACTOR,REVENUE
Walsall Council,http://opendatacommunities.org/id/metropolitan-district-council/walsall ,WC133-505,31.12.2021,ADULT SOCIAL CARE,ALPHA HEALTH CARE LTD,21/12/2021,"3,340.00",6541-Residential EMI,THIRD PARTY PAYMENTS,PRIVATE CONTRACTOR,REVENUE
Walsall Council,http://opendatacommunities.org/id/metropolitan-district-council/walsall ,WC133-506,31.12.2021,ADULT SOCIAL CARE,ALPHA HEALTH CARE LTD,21/12/2021,"2,331.08",6541-Residential EMI,THIRD PARTY PAYMENTS,PRIVATE CONTRACTOR,REVENUE
Walsall Council,http://opendatacommunities.org/id/metropolitan-district-council/walsall ,WC133-507,31.12.2021,ADULT SOCIAL CARE,ALPHA HEALTH CARE LTD,21/12/2021,"3,900.00",6541-Residential,THIRD PARTY PAYMENTS,PRIVATE CONTRACTOR,REVENUE
Walsall Council,http://opendatacommunities.org/id/metropolitan-district-council/walsall ,WC133-508,31.12.2021,ADULT SOCIAL CARE,ALPHA HEALTH CARE LTD,21/12/2021,"3,800.00",6541-Nursing,THIRD PARTY PAYMENTS,PRIVATE CONTRACTOR,REVENUE
Walsall Council,http://opendatacommunities.org/id/metropolitan-district-council/walsall ,WC133-509,31.12.2021,CHILDRENS,ALPHABIOLABS,17/12/2021,548.01,6220-School Only Payments - Catering,THIRD PARTY PAYMENTS,INDEPENDENT UNIT WITHIN COUNCIL,REVENUE
Walsall Council,http://opendatacommunities.org/id/metropolitan-district-council/walsall ,WC133-510,31.12.2021,CHILDRENS,ALPHABIOLABS,14/12/2021,291.50,6220-School Only Payments - Catering,THIRD PARTY PAYMENTS,INDEPENDENT UNIT WITHIN COUNCIL,REVENUE
Walsall Council,http://opendatacommunities.org/id/metropolitan-district-council/walsall ,WC133-511,31.12.2021,ADULT SOCIAL CARE,REDACTED,08/12/2021,"2,033.70",6541-Direct Payment,THIRD PARTY PAYMENTS,PRIVATE CONTRACTOR,REVENUE
Walsall Council,http://opendatacommunities.org/id/metropolitan-district-council/walsall ,WC133-512,31.12.2021,"ECONOMY, ENVIRONMENT & COMMUNITIES",AMEY LG LIMITED,07/12/2021,"1,330.98",6430-Repair & Maintenance of Furniture & Equipment,SUPPLIES & SERVICES,EQUIPMENT FURNITURE & MATERIALS,REVENUE
Walsall Council,http://opendatacommunities.org/id/metropolitan-district-council/walsall ,WC133-513,31.12.2021,"ECONOMY, ENVIRONMENT & COMMUNITIES",AMEY LG LIMITED,14/12/2021,472.95,6411-Professional Services-Priv Contractor & Other Agencies,THIRD PARTY PAYMENTS,PRIVATE CONTRACTOR,REVENUE
Walsall Council,http://opendatacommunities.org/id/metropolitan-district-council/walsall ,WC133-514,31.12.2021,"ECONOMY, ENVIRONMENT & COMMUNITIES",AMEY LG LIMITED,14/12/2021,803.78,6411-Professional Services-Priv Contractor & Other Agencies,THIRD PARTY PAYMENTS,PRIVATE CONTRACTOR,REVENUE
Walsall Council,http://opendatacommunities.org/id/metropolitan-district-council/walsall ,WC133-515,31.12.2021,"ECONOMY, ENVIRONMENT & COMMUNITIES",AMEY LG LIMITED,14/12/2021,428.29,6411-Professional Services-Priv Contractor & Other Agencies,THIRD PARTY PAYMENTS,PRIVATE CONTRACTOR,REVENUE
Walsall Council,http://opendatacommunities.org/id/metropolitan-district-council/walsall ,WC133-516,31.12.2021,"ECONOMY, ENVIRONMENT & COMMUNITIES",AMEY LG LIMITED,20/12/2021,"5,382.04",6411-Materials,SUPPLIES & SERVICES,EQUIPMENT FURNITURE & MATERIALS,REVENUE
Walsall Council,http://opendatacommunities.org/id/metropolitan-district-council/walsall ,WC133-517,31.12.2021,"ECONOMY, ENVIRONMENT & COMMUNITIES",AMEY LG LIMITED,03/12/2021,"1,132.66",6430-Repair & Maintenance of Furniture & Equipment,SUPPLIES & SERVICES,EQUIPMENT FURNITURE & MATERIALS,REVENUE
Walsall Council,http://opendatacommunities.org/id/metropolitan-district-council/walsall ,WC133-518,31.12.2021,"ECONOMY, ENVIRONMENT & COMMUNITIES",AMEY LG LIMITED,08/12/2021,"21,026.09",6411-Materials,SUPPLIES & SERVICES,EQUIPMENT FURNITURE & MATERIALS,REVENUE
Walsall Council,http://opendatacommunities.org/id/metropolitan-district-council/walsall ,WC133-519,31.12.2021,ECONOMY & ENVIRONMENT CAPITAL,AMEY LG LIMITED,15/12/2021,"7,887.93",7200-Site Works Contractors,CAPITAL,"NEW CONSTRUCTION,CONVERSION & RENOVATION",CAPITAL
Walsall Council,http://opendatacommunities.org/id/metropolitan-district-council/walsall ,WC133-520,31.12.2021,ECONOMY & ENVIRONMENT CAPITAL,AMEY LG LIMITED,15/12/2021,"4,547.40",7200-Site Works Contractors,CAPITAL,"NEW CONSTRUCTION,CONVERSION & RENOVATION",CAPITAL
Walsall Council,http://opendatacommunities.org/id/metropolitan-district-council/walsall ,WC133-521,31.12.2021,"ECONOMY, ENVIRONMENT & COMMUNITIES",AMEY LG LIMITED,09/12/2021,"1,208.14",6430-Repair & Maintenance of Furniture & Equipment,SUPPLIES & SERVICES,EQUIPMENT FURNITURE & MATERIALS,REVENUE
Walsall Council,http://opendatacommunities.org/id/metropolitan-district-council/walsall ,WC133-522,31.12.2021,"ECONOMY, ENVIRONMENT & COMMUNITIES",AMEY LG LIMITED,08/12/2021,"3,353.64",6411-Materials,SUPPLIES & SERVICES,EQUIPMENT FURNITURE & MATERIALS,REVENUE
Walsall Council,http://opendatacommunities.org/id/metropolitan-district-council/walsall ,WC133-523,31.12.2021,"ECONOMY, ENVIRONMENT & COMMUNITIES",AMEY LG LIMITED,09/12/2021,601.10,6313-Payment to Contractors,SUPPLIES & SERVICES,SERVICES,REVENUE
Walsall Council,http://opendatacommunities.org/id/metropolitan-district-council/walsall ,WC133-524,31.12.2021,RESOURCES AND TRANSFORMATION,AMEY LG LIMITED,09/12/2021,"2,250.00",6313-Professional Fees & Services,SUPPLIES & SERVICES,SERVICES,REVENUE
Walsall Council,http://opendatacommunities.org/id/metropolitan-district-council/walsall ,WC133-525,31.12.2021,"ECONOMY, ENVIRONMENT & COMMUNITIES",AMEY LG LIMITED,21/12/2021,"17,650.97",6411-Materials,SUPPLIES & SERVICES,EQUIPMENT FURNITURE & MATERIALS,REVENUE
Walsall Council,http://opendatacommunities.org/id/metropolitan-district-council/walsall ,WC133-526,31.12.2021,"ECONOMY, ENVIRONMENT & COMMUNITIES",AMEY LG LIMITED,23/12/2021,"1,074.83",6411-Repair & Maintenance of Furniture & Equipment,SUPPLIES & SERVICES,EQUIPMENT FURNITURE & MATERIALS,REVENUE
Walsall Council,http://opendatacommunities.org/id/metropolitan-district-council/walsall ,WC133-527,31.12.2021,ECONOMY & ENVIRONMENT CAPITAL,AMEY LG LIMITED,29/12/2021,"2,714.69",7200-Consultants Fees,CAPITAL,"NEW CONSTRUCTION,CONVERSION & RENOVATION",CAPITAL
Walsall Council,http://opendatacommunities.org/id/metropolitan-district-council/walsall ,WC133-528,31.12.2021,ECONOMY & ENVIRONMENT CAPITAL,AMEY OW LTD,09/12/2021,"4,680.51",7200-Project Fees,CAPITAL,"NEW CONSTRUCTION,CONVERSION & RENOVATION",CAPITAL
Walsall Council,http://opendatacommunities.org/id/metropolitan-district-council/walsall ,WC133-529,31.12.2021,"ECONOMY, ENVIRONMENT & COMMUNITIES",AMEY OW LTD,29/12/2021,"3,216.96",6411-Materials,SUPPLIES & SERVICES,EQUIPMENT FURNITURE & MATERIALS,REVENUE
Walsall Council,http://opendatacommunities.org/id/metropolitan-district-council/walsall ,WC133-530,31.12.2021,CHILDRENS,AMG NURSING CARE SERVICES,23/12/2021,464.40,6220-Professional Fees & Services,SUPPLIES & SERVICES,SERVICES,REVENUE
Walsall Council,http://opendatacommunities.org/id/metropolitan-district-council/walsall ,WC133-531,31.12.2021,CHILDRENS,AMG NURSING CARE SERVICES,23/12/2021,387.00,6220-Professional Fees & Services,SUPPLIES & SERVICES,SERVICES,REVENUE
Walsall Council,http://opendatacommunities.org/id/metropolitan-district-council/walsall ,WC133-532,31.12.2021,CHILDRENS,AMG NURSING CARE SERVICES,23/12/2021,378.40,6220-Professional Fees & Services,SUPPLIES & SERVICES,SERVICES,REVENUE
Walsall Council,http://opendatacommunities.org/id/metropolitan-district-council/walsall ,WC133-533,31.12.2021,CHILDRENS,AMG NURSING CARE SERVICES,23/12/2021,430.00,6220-Professional Fees & Services,SUPPLIES & SERVICES,SERVICES,REVENUE
Walsall Council,http://opendatacommunities.org/id/metropolitan-district-council/walsall ,WC133-534,31.12.2021,CHILDRENS,AMG NURSING CARE SERVICES,23/12/2021,430.00,6220-Professional Fees & Services,SUPPLIES & SERVICES,SERVICES,REVENUE
Walsall Council,http://opendatacommunities.org/id/metropolitan-district-council/walsall ,WC133-535,31.12.2021,CHILDRENS,AMG NURSING CARE SERVICES,13/12/2021,258.00,6220-Professional Fees & Services,SUPPLIES & SERVICES,SERVICES,REVENUE
Walsall Council,http://opendatacommunities.org/id/metropolitan-district-council/walsall ,WC133-536,31.12.2021,CHILDRENS,AMG NURSING CARE SERVICES,29/12/2021,-718.72,6220-Professional Fees & Services,SUPPLIES & SERVICES,SERVICES,REVENUE
Walsall Council,http://opendatacommunities.org/id/metropolitan-district-council/walsall ,WC133-537,31.12.2021,CHILDRENS,AMG NURSING CARE SERVICES,29/12/2021,258.00,6220-Professional Fees & Services,SUPPLIES & SERVICES,SERVICES,REVENUE
Walsall Council,http://opendatacommunities.org/id/metropolitan-district-council/walsall ,WC133-538,31.12.2021,CHILDRENS,AMG NURSING CARE SERVICES,29/12/2021,718.72,6220-Professional Fees & Services,SUPPLIES & SERVICES,SERVICES,REVENUE
Walsall Council,http://opendatacommunities.org/id/metropolitan-district-council/walsall ,WC133-539,31.12.2021,CHILDRENS,AMG NURSING CARE SERVICES,23/12/2021,430.00,6220-Professional Fees & Services,SUPPLIES & SERVICES,SERVICES,REVENUE
Walsall Council,http://opendatacommunities.org/id/metropolitan-district-council/walsall ,WC133-540,31.12.2021,CHILDRENS,AMG NURSING CARE SERVICES,23/12/2021,430.00,6220-Professional Fees & Services,SUPPLIES & SERVICES,SERVICES,REVENUE
Walsall Council,http://opendatacommunities.org/id/metropolitan-district-council/walsall ,WC133-541,31.12.2021,CHILDRENS,AMG NURSING CARE SERVICES,23/12/2021,375.08,6220-Professional Fees & Services,SUPPLIES & SERVICES,SERVICES,REVENUE
Walsall Council,http://opendatacommunities.org/id/metropolitan-district-council/walsall ,WC133-542,31.12.2021,CHILDRENS,AMG NURSING CARE SERVICES,23/12/2021,352.60,6220-Professional Fees & Services,SUPPLIES & SERVICES,SERVICES,REVENUE
Walsall Council,http://opendatacommunities.org/id/metropolitan-district-council/walsall ,WC133-543,31.12.2021,CHILDRENS,AMG NURSING CARE SERVICES,23/12/2021,318.20,6220-Professional Fees & Services,SUPPLIES & SERVICES,SERVICES,REVENUE
Walsall Council,http://opendatacommunities.org/id/metropolitan-district-council/walsall ,WC133-544,31.12.2021,CHILDRENS,AMG NURSING CARE SERVICES,08/12/2021,406.94,6220-Professional Fees & Services,SUPPLIES & SERVICES,SERVICES,REVENUE
Walsall Council,http://opendatacommunities.org/id/metropolitan-district-council/walsall ,WC133-545,31.12.2021,CHILDRENS,AMG NURSING CARE SERVICES,09/12/2021,406.60,6220-Professional Fees & Services,SUPPLIES & SERVICES,SERVICES,REVENUE
Walsall Council,http://opendatacommunities.org/id/metropolitan-district-council/walsall ,WC133-546,31.12.2021,CHILDRENS,AMG NURSING CARE SERVICES,09/12/2021,"1,066.04",6220-Accommodation and Related Costs-Assistance to S/S Clients,TRANSFER PAYMENTS,ADULT SOCIAL SERVICES CLIENT,REVENUE
Walsall Council,http://opendatacommunities.org/id/metropolitan-district-council/walsall ,WC133-547,31.12.2021,CHILDRENS,AMG NURSING CARE SERVICES,08/12/2021,403.16,6220-Professional Fees & Services,SUPPLIES & SERVICES,SERVICES,REVENUE
Walsall Council,http://opendatacommunities.org/id/metropolitan-district-council/walsall ,WC133-548,31.12.2021,CHILDRENS,AMG NURSING CARE SERVICES,23/12/2021,"1,123.00",6220-Accommodation and Related Costs-Assistance to S/S Clients,TRANSFER PAYMENTS,ADULT SOCIAL SERVICES CLIENT,REVENUE
Walsall Council,http://opendatacommunities.org/id/metropolitan-district-council/walsall ,WC133-549,31.12.2021,CHILDRENS,AMG NURSING CARE SERVICES,08/12/2021,406.60,6220-Professional Fees & Services,SUPPLIES & SERVICES,SERVICES,REVENUE
Walsall Council,http://opendatacommunities.org/id/metropolitan-district-council/walsall ,WC133-550,31.12.2021,CHILDRENS,AMG NURSING CARE SERVICES,08/12/2021,406.60,6220-Professional Fees & Services,SUPPLIES & SERVICES,SERVICES,REVENUE
Walsall Council,http://opendatacommunities.org/id/metropolitan-district-council/walsall ,WC133-551,31.12.2021,CHILDRENS,AMG NURSING CARE SERVICES,08/12/2021,406.60,6220-Professional Fees & Services,SUPPLIES & SERVICES,SERVICES,REVENUE
Walsall Council,http://opendatacommunities.org/id/metropolitan-district-council/walsall ,WC133-552,31.12.2021,CHILDRENS,AMG NURSING CARE SERVICES,08/12/2021,325.28,6220-Professional Fees & Services,SUPPLIES & SERVICES,SERVICES,REVENUE
Walsall Council,http://opendatacommunities.org/id/metropolitan-district-council/walsall ,WC133-553,31.12.2021,CHILDRENS,AMG NURSING CARE SERVICES,08/12/2021,406.60,6220-Professional Fees & Services,SUPPLIES & SERVICES,SERVICES,REVENUE
Walsall Council,http://opendatacommunities.org/id/metropolitan-district-council/walsall ,WC133-554,31.12.2021,CHILDRENS,AMG NURSING CARE SERVICES,09/12/2021,325.28,6220-Professional Fees & Services,SUPPLIES & SERVICES,SERVICES,REVENUE
Walsall Council,http://opendatacommunities.org/id/metropolitan-district-council/walsall ,WC133-555,31.12.2021,CHILDRENS,AMG NURSING CARE SERVICES,06/12/2021,"1,322.36",6220-Accommodation and Related Costs-Assistance to S/S Clients,TRANSFER PAYMENTS,ADULT SOCIAL SERVICES CLIENT,REVENUE
Walsall Council,http://opendatacommunities.org/id/metropolitan-district-council/walsall ,WC133-556,31.12.2021,CHILDRENS,AMG NURSING CARE SERVICES,08/12/2021,406.60,6220-Professional Fees & Services,SUPPLIES & SERVICES,SERVICES,REVENUE
Walsall Council,http://opendatacommunities.org/id/metropolitan-district-council/walsall ,WC133-557,31.12.2021,CHILDRENS,AMG NURSING CARE SERVICES,09/12/2021,321.84,6220-Professional Fees & Services,SUPPLIES & SERVICES,SERVICES,REVENUE
Walsall Council,http://opendatacommunities.org/id/metropolitan-district-council/walsall ,WC133-558,31.12.2021,CHILDRENS,AMG NURSING CARE SERVICES,06/12/2021,740.48,6220-Accommodation and Related Costs-Assistance to S/S Clients,TRANSFER PAYMENTS,ADULT SOCIAL SERVICES CLIENT,REVENUE
Walsall Council,http://opendatacommunities.org/id/metropolitan-district-council/walsall ,WC133-559,31.12.2021,CHILDRENS,AMITY RELATIONSHIP SOLUTIONS T/AS KASEARMA LTD,30/12/2021,"4,650.00",6211-External Training,INDIRECT EMPLOYEES,EXTERNAL TRAINING,REVENUE
Walsall Council,http://opendatacommunities.org/id/metropolitan-district-council/walsall ,WC133-560,31.12.2021,CHILDRENS,REDACTED,15/12/2021,655.46,6223-Foster Carers Maintenance Allowance,TRANSFER PAYMENTS,CHILDREN SOCIAL SERVICES CLIENT,REVENUE
Walsall Council,http://opendatacommunities.org/id/metropolitan-district-council/walsall ,WC133-561,31.12.2021,CHILDRENS,REDACTED,15/12/2021,364.29,6223-Internal Foster Carers-Carer Fees,TRANSFER PAYMENTS,CHILDREN SOCIAL SERVICES CLIENT,REVENUE
Walsall Council,http://opendatacommunities.org/id/metropolitan-district-council/walsall ,WC133-562,31.12.2021,ADULT SOCIAL CARE,ANCHOR CARE HOMES LTD,21/12/2021,"2,331.08",6541-Residential EMI,THIRD PARTY PAYMENTS,PRIVATE CONTRACTOR,REVENUE
Walsall Council,http://opendatacommunities.org/id/metropolitan-district-council/walsall ,WC133-563,31.12.2021,ADULT SOCIAL CARE,ANCHOR CAREHOMES LTD - HARDEN HALL,21/12/2021,"2,331.08",6541-Residential EMI,THIRD PARTY PAYMENTS,PRIVATE CONTRACTOR,REVENUE
Walsall Council,http://opendatacommunities.org/id/metropolitan-district-council/walsall ,WC133-564,31.12.2021,ADULT SOCIAL CARE,ANCHOR CAREHOMES LTD - HARDEN HALL,21/12/2021,"2,064.44",6541-Residential,THIRD PARTY PAYMENTS,PRIVATE CONTRACTOR,REVENUE
Walsall Council,http://opendatacommunities.org/id/metropolitan-district-council/walsall ,WC133-565,31.12.2021,ADULT SOCIAL CARE,ANCHOR CAREHOMES LTD - HARDEN HALL,21/12/2021,"2,294.56",6541-Residential EMI,THIRD PARTY PAYMENTS,PRIVATE CONTRACTOR,REVENUE
Walsall Council,http://opendatacommunities.org/id/metropolitan-district-council/walsall ,WC133-566,31.12.2021,ADULT SOCIAL CARE,ANCHOR CAREHOMES LTD - HARDEN HALL,21/12/2021,500.43,6541-Residential EMI,THIRD PARTY PAYMENTS,PRIVATE CONTRACTOR,REVENUE
Walsall Council,http://opendatacommunities.org/id/metropolitan-district-council/walsall ,WC133-567,31.12.2021,ADULT SOCIAL CARE,ANCHOR CAREHOMES LTD - HARDEN HALL,21/12/2021,"2,331.08",6541-Residential EMI,THIRD PARTY PAYMENTS,PRIVATE CONTRACTOR,REVENUE
Walsall Council,http://opendatacommunities.org/id/metropolitan-district-council/walsall ,WC133-568,31.12.2021,ADULT SOCIAL CARE,ANCHOR CAREHOMES LTD - HARDEN HALL,21/12/2021,"2,691.08",6541-Residential EMI,THIRD PARTY PAYMENTS,PRIVATE CONTRACTOR,REVENUE
Walsall Council,http://opendatacommunities.org/id/metropolitan-district-council/walsall ,WC133-569,31.12.2021,ADULT SOCIAL CARE,ANCHOR CAREHOMES LTD - HARDEN HALL,21/12/2021,"2,064.44",6541-Residential,THIRD PARTY PAYMENTS,PRIVATE CONTRACTOR,REVENUE
Walsall Council,http://opendatacommunities.org/id/metropolitan-district-council/walsall ,WC133-570,31.12.2021,ADULT SOCIAL CARE,ANCHOR CAREHOMES LTD - HARDEN HALL,21/12/2021,"2,331.08",6541-Residential EMI,THIRD PARTY PAYMENTS,PRIVATE CONTRACTOR,REVENUE
Walsall Council,http://opendatacommunities.org/id/metropolitan-district-council/walsall ,WC133-571,31.12.2021,ADULT SOCIAL CARE,ANCHOR CAREHOMES LTD - HARDEN HALL,21/12/2021,"2,331.08",6541-Residential EMI,THIRD PARTY PAYMENTS,PRIVATE CONTRACTOR,REVENUE
Walsall Council,http://opendatacommunities.org/id/metropolitan-district-council/walsall ,WC133-572,31.12.2021,ADULT SOCIAL CARE,ANCHOR CAREHOMES LTD - HARDEN HALL,21/12/2021,"2,064.44",6541-Residential,THIRD PARTY PAYMENTS,PRIVATE CONTRACTOR,REVENUE
Walsall Council,http://opendatacommunities.org/id/metropolitan-district-council/walsall ,WC133-573,31.12.2021,ADULT SOCIAL CARE,ANCHOR CAREHOMES LTD - HARDEN HALL,21/12/2021,"2,331.08",6541-Residential EMI,THIRD PARTY PAYMENTS,PRIVATE CONTRACTOR,REVENUE
Walsall Council,http://opendatacommunities.org/id/metropolitan-district-council/walsall ,WC133-574,31.12.2021,ADULT SOCIAL CARE,ANCHOR CAREHOMES LTD - HARDEN HALL,21/12/2021,"2,691.08",6541-Residential EMI,THIRD PARTY PAYMENTS,PRIVATE CONTRACTOR,REVENUE
Walsall Council,http://opendatacommunities.org/id/metropolitan-district-council/walsall ,WC133-575,31.12.2021,ADULT SOCIAL CARE,ANCHOR CAREHOMES LTD - HARDEN HALL,21/12/2021,"2,691.08",6541-Residential EMI,THIRD PARTY PAYMENTS,PRIVATE CONTRACTOR,REVENUE
Walsall Council,http://opendatacommunities.org/id/metropolitan-district-council/walsall ,WC133-576,31.12.2021,ADULT SOCIAL CARE,ANCHOR CAREHOMES LTD - HARDEN HALL,21/12/2021,"2,335.32",6541-Residential EMI,THIRD PARTY PAYMENTS,PRIVATE CONTRACTOR,REVENUE
Walsall Council,http://opendatacommunities.org/id/metropolitan-district-council/walsall ,WC133-577,31.12.2021,ADULT SOCIAL CARE,ANCHOR CAREHOMES LTD - HARDEN HALL,21/12/2021,"2,331.08",6541-Residential EMI,THIRD PARTY PAYMENTS,PRIVATE CONTRACTOR,REVENUE
Walsall Council,http://opendatacommunities.org/id/metropolitan-district-council/walsall ,WC133-578,31.12.2021,ADULT SOCIAL CARE,ANCHOR CAREHOMES LTD - HARDEN HALL,21/12/2021,"2,355.32",6541-Residential EMI,THIRD PARTY PAYMENTS,PRIVATE CONTRACTOR,REVENUE
Walsall Council,http://opendatacommunities.org/id/metropolitan-district-council/walsall ,WC133-579,31.12.2021,ADULT SOCIAL CARE,ANCHOR CAREHOMES LTD - HARDEN HALL,21/12/2021,"2,331.08",6541-Residential EMI,THIRD PARTY PAYMENTS,PRIVATE CONTRACTOR,REVENUE
Walsall Council,http://opendatacommunities.org/id/metropolitan-district-council/walsall ,WC133-580,31.12.2021,ADULT SOCIAL CARE,ANCHOR CAREHOMES LTD - HARDEN HALL,21/12/2021,"2,331.08",6541-Residential EMI,THIRD PARTY PAYMENTS,PRIVATE CONTRACTOR,REVENUE
Walsall Council,http://opendatacommunities.org/id/metropolitan-district-council/walsall ,WC133-581,31.12.2021,ADULT SOCIAL CARE,ANCHOR CAREHOMES LTD - HARDEN HALL,21/12/2021,"2,331.08",6541-Residential EMI,THIRD PARTY PAYMENTS,PRIVATE CONTRACTOR,REVENUE
Walsall Council,http://opendatacommunities.org/id/metropolitan-district-council/walsall ,WC133-582,31.12.2021,ADULT SOCIAL CARE,ANCHOR CAREHOMES LTD - HARDEN HALL,21/12/2021,"2,691.08",6541-Residential EMI,THIRD PARTY PAYMENTS,PRIVATE CONTRACTOR,REVENUE
Walsall Council,http://opendatacommunities.org/id/metropolitan-district-council/walsall ,WC133-583,31.12.2021,ADULT SOCIAL CARE,ANCHOR CAREHOMES LTD - HARDEN HALL,21/12/2021,"2,355.32",6541-Residential EMI,THIRD PARTY PAYMENTS,PRIVATE CONTRACTOR,REVENUE
Walsall Council,http://opendatacommunities.org/id/metropolitan-district-council/walsall ,WC133-584,31.12.2021,ADULT SOCIAL CARE,ANCHOR CAREHOMES LTD - HARDEN HALL,21/12/2021,"2,331.08",6541-Residential EMI,THIRD PARTY PAYMENTS,PRIVATE CONTRACTOR,REVENUE
Walsall Council,http://opendatacommunities.org/id/metropolitan-district-council/walsall ,WC133-585,31.12.2021,ADULT SOCIAL CARE,ANCHOR CAREHOMES LTD - HARDEN HALL,21/12/2021,"2,331.08",6541-Residential EMI,THIRD PARTY PAYMENTS,PRIVATE CONTRACTOR,REVENUE
Walsall Council,http://opendatacommunities.org/id/metropolitan-district-council/walsall ,WC133-586,31.12.2021,ADULT SOCIAL CARE,ANCHOR CAREHOMES LTD - HARDEN HALL,21/12/2021,"2,331.08",6541-Residential EMI,THIRD PARTY PAYMENTS,PRIVATE CONTRACTOR,REVENUE
Walsall Council,http://opendatacommunities.org/id/metropolitan-district-council/walsall ,WC133-587,31.12.2021,ADULT SOCIAL CARE,ANCHOR CAREHOMES LTD - HARDEN HALL,21/12/2021,"2,331.08",6541-Residential EMI,THIRD PARTY PAYMENTS,PRIVATE CONTRACTOR,REVENUE
Walsall Council,http://opendatacommunities.org/id/metropolitan-district-council/walsall ,WC133-588,31.12.2021,ADULT SOCIAL CARE,ANCHOR CAREHOMES LTD - HARDEN HALL,21/12/2021,"2,382.04",6541-Residential EMI,THIRD PARTY PAYMENTS,PRIVATE CONTRACTOR,REVENUE
Walsall Council,http://opendatacommunities.org/id/metropolitan-district-council/walsall ,WC133-589,31.12.2021,CHILDRENS,REDACTED,15/12/2021,336.94,6223-Special Guardianship Orders,TRANSFER PAYMENTS,CHILDREN SOCIAL SERVICES CLIENT,REVENUE
Walsall Council,http://opendatacommunities.org/id/metropolitan-district-council/walsall ,WC133-590,31.12.2021,ADULT SOCIAL CARE,REDACTED,08/12/2021,647.50,6541-Direct Payment,THIRD PARTY PAYMENTS,PRIVATE CONTRACTOR,REVENUE
Walsall Council,http://opendatacommunities.org/id/metropolitan-district-council/walsall ,WC133-591,31.12.2021,ADULT SOCIAL CARE,REDACTED,08/12/2021,"3,387.70",6541-Direct Payment,THIRD PARTY PAYMENTS,PRIVATE CONTRACTOR,REVENUE
Walsall Council,http://opendatacommunities.org/id/metropolitan-district-council/walsall ,WC133-592,31.12.2021,CHILDRENS CAPITAL,ANDREWS ELECTRICAL LTD,01/12/2021,250.00,7150-Site Works Contractors,CAPITAL,"NEW CONSTRUCTION,CONVERSION & RENOVATION",CAPITAL
Walsall Council,http://opendatacommunities.org/id/metropolitan-district-council/walsall ,WC133-593,31.12.2021,CHILDRENS CAPITAL,ANDREWS ELECTRICAL LTD,07/12/2021,"1,439.00",7155-Site Works Contractors,CAPITAL,"NEW CONSTRUCTION,CONVERSION & RENOVATION",CAPITAL
Walsall Council,http://opendatacommunities.org/id/metropolitan-district-council/walsall ,WC133-594,31.12.2021,CHILDRENS,REDACTED,15/12/2021,389.18,6223-Special Guardianship Orders,TRANSFER PAYMENTS,CHILDREN SOCIAL SERVICES CLIENT,REVENUE
Walsall Council,http://opendatacommunities.org/id/metropolitan-district-council/walsall ,WC133-595,31.12.2021,CHILDRENS,REDACTED,15/12/2021,531.47,6223-Special Guardianship Orders,TRANSFER PAYMENTS,CHILDREN SOCIAL SERVICES CLIENT,REVENUE
Walsall Council,http://opendatacommunities.org/id/metropolitan-district-council/walsall ,WC133-596,31.12.2021,CHILDRENS,REDACTED,15/12/2021,341.10,6223-Special Guardianship Orders,TRANSFER PAYMENTS,CHILDREN SOCIAL SERVICES CLIENT,REVENUE
Walsall Council,http://opendatacommunities.org/id/metropolitan-district-council/walsall ,WC133-597,31.12.2021,HOLDING ACCOUNTS,REDACTED,07/12/2021,300.00,2877-Insurance Payment Claims,SUPPLIES & SERVICES,INSURANCE,REVENUE
Walsall Council,http://opendatacommunities.org/id/metropolitan-district-council/walsall ,WC133-598,31.12.2021,ADULT SOCIAL CARE,REDACTED,01/12/2021,352.80,6541-Shared Lives,THIRD PARTY PAYMENTS,PRIVATE CONTRACTOR,REVENUE
Walsall Council,http://opendatacommunities.org/id/metropolitan-district-council/walsall ,WC133-599,31.12.2021,ADULT SOCIAL CARE,REDACTED,16/12/2021,352.80,6541-Shared Lives,THIRD PARTY PAYMENTS,PRIVATE CONTRACTOR,REVENUE
Walsall Council,http://opendatacommunities.org/id/metropolitan-district-council/walsall ,WC133-600,31.12.2021,ADULT SOCIAL CARE,REDACTED,30/12/2021,352.80,6541-Shared Lives,THIRD PARTY PAYMENTS,PRIVATE CONTRACTOR,REVENUE
Walsall Council,http://opendatacommunities.org/id/metropolitan-district-council/walsall ,WC133-601,31.12.2021,"ECONOMY, ENVIRONMENT & COMMUNITIES",REDACTED,03/12/2021,400.00,6414-Professional Fees & Services,SUPPLIES & SERVICES,SERVICES,REVENUE
Walsall Council,http://opendatacommunities.org/id/metropolitan-district-council/walsall ,WC133-602,31.12.2021,CHILDRENS,REDACTED,15/12/2021,480.90,6223-Special Guardianship Orders,TRANSFER PAYMENTS,CHILDREN SOCIAL SERVICES CLIENT,REVENUE
Walsall Council,http://opendatacommunities.org/id/metropolitan-district-council/walsall ,WC133-603,31.12.2021,ADULT SOCIAL CARE,ANSON COURT RESIDENTIAL HOME,21/12/2021,"2,331.08",6541-Residential EMI,THIRD PARTY PAYMENTS,PRIVATE CONTRACTOR,REVENUE
Walsall Council,http://opendatacommunities.org/id/metropolitan-district-council/walsall ,WC133-604,31.12.2021,ADULT SOCIAL CARE,ANSON COURT RESIDENTIAL HOME,21/12/2021,"2,331.08",6541-Residential EMI,THIRD PARTY PAYMENTS,PRIVATE CONTRACTOR,REVENUE
Walsall Council,http://opendatacommunities.org/id/metropolitan-district-council/walsall ,WC133-605,31.12.2021,ADULT SOCIAL CARE,ANSON COURT RESIDENTIAL HOME,21/12/2021,"2,331.08",6541-Residential EMI,THIRD PARTY PAYMENTS,PRIVATE CONTRACTOR,REVENUE
Walsall Council,http://opendatacommunities.org/id/metropolitan-district-council/walsall ,WC133-606,31.12.2021,ADULT SOCIAL CARE,ANSON COURT RESIDENTIAL HOME,21/12/2021,"2,064.44",6541-Residential,THIRD PARTY PAYMENTS,PRIVATE CONTRACTOR,REVENUE
Walsall Council,http://opendatacommunities.org/id/metropolitan-district-council/walsall ,WC133-607,31.12.2021,ADULT SOCIAL CARE,ANSON COURT RESIDENTIAL HOME,21/12/2021,"2,331.08",6541-Residential EMI,THIRD PARTY PAYMENTS,PRIVATE CONTRACTOR,REVENUE
Walsall Council,http://opendatacommunities.org/id/metropolitan-district-council/walsall ,WC133-608,31.12.2021,ADULT SOCIAL CARE,ANSON COURT RESIDENTIAL HOME,21/12/2021,"2,331.08",6541-Residential EMI,THIRD PARTY PAYMENTS,PRIVATE CONTRACTOR,REVENUE
Walsall Council,http://opendatacommunities.org/id/metropolitan-district-council/walsall ,WC133-609,31.12.2021,ADULT SOCIAL CARE,ANSON COURT RESIDENTIAL HOME,21/12/2021,"2,331.08",6541-Residential EMI,THIRD PARTY PAYMENTS,PRIVATE CONTRACTOR,REVENUE
Walsall Council,http://opendatacommunities.org/id/metropolitan-district-council/walsall ,WC133-610,31.12.2021,ADULT SOCIAL CARE,ANSON COURT RESIDENTIAL HOME,21/12/2021,"-1,695.79",6541-Short Stay Residential,THIRD PARTY PAYMENTS,PRIVATE CONTRACTOR,REVENUE
Walsall Council,http://opendatacommunities.org/id/metropolitan-district-council/walsall ,WC133-611,31.12.2021,ADULT SOCIAL CARE,ANSON COURT RESIDENTIAL HOME,21/12/2021,"2,331.08",6541-Residential EMI,THIRD PARTY PAYMENTS,PRIVATE CONTRACTOR,REVENUE
Walsall Council,http://opendatacommunities.org/id/metropolitan-district-council/walsall ,WC133-612,31.12.2021,ADULT SOCIAL CARE,ANSON COURT RESIDENTIAL HOME,21/12/2021,"2,064.44",6541-Residential,THIRD PARTY PAYMENTS,PRIVATE CONTRACTOR,REVENUE
Walsall Council,http://opendatacommunities.org/id/metropolitan-district-council/walsall ,WC133-613,31.12.2021,ADULT SOCIAL CARE,ANSON COURT RESIDENTIAL HOME,21/12/2021,"2,331.08",6541-Residential EMI,THIRD PARTY PAYMENTS,PRIVATE CONTRACTOR,REVENUE
Walsall Council,http://opendatacommunities.org/id/metropolitan-district-council/walsall ,WC133-614,31.12.2021,ADULT SOCIAL CARE,ANSON COURT RESIDENTIAL HOME,21/12/2021,"2,331.08",6541-Residential EMI,THIRD PARTY PAYMENTS,PRIVATE CONTRACTOR,REVENUE
Walsall Council,http://opendatacommunities.org/id/metropolitan-district-council/walsall ,WC133-615,31.12.2021,ADULT SOCIAL CARE,ANSON COURT RESIDENTIAL HOME,21/12/2021,"1,327.14",6541-Short Stay Residential,THIRD PARTY PAYMENTS,PRIVATE CONTRACTOR,REVENUE
Walsall Council,http://opendatacommunities.org/id/metropolitan-district-council/walsall ,WC133-616,31.12.2021,ADULT SOCIAL CARE,ANSON COURT RESIDENTIAL HOME,21/12/2021,"2,331.08",6541-Residential EMI,THIRD PARTY PAYMENTS,PRIVATE CONTRACTOR,REVENUE
Walsall Council,http://opendatacommunities.org/id/metropolitan-district-council/walsall ,WC133-617,31.12.2021,ADULT SOCIAL CARE,ANSON COURT RESIDENTIAL HOME,21/12/2021,"2,331.08",6541-Residential EMI,THIRD PARTY PAYMENTS,PRIVATE CONTRACTOR,REVENUE
Walsall Council,http://opendatacommunities.org/id/metropolitan-district-council/walsall ,WC133-618,31.12.2021,ADULT SOCIAL CARE,ANSON COURT RESIDENTIAL HOME,21/12/2021,"2,331.08",6541-Residential EMI,THIRD PARTY PAYMENTS,PRIVATE CONTRACTOR,REVENUE
Walsall Council,http://opendatacommunities.org/id/metropolitan-district-council/walsall ,WC133-619,31.12.2021,ADULT SOCIAL CARE,ANSON COURT RESIDENTIAL HOME,21/12/2021,"2,331.08",6541-Residential EMI,THIRD PARTY PAYMENTS,PRIVATE CONTRACTOR,REVENUE
Walsall Council,http://opendatacommunities.org/id/metropolitan-district-council/walsall ,WC133-620,31.12.2021,ADULT SOCIAL CARE,ANSON COURT RESIDENTIAL HOME,21/12/2021,"2,331.08",6541-Residential EMI,THIRD PARTY PAYMENTS,PRIVATE CONTRACTOR,REVENUE
Walsall Council,http://opendatacommunities.org/id/metropolitan-district-council/walsall ,WC133-621,31.12.2021,ADULT SOCIAL CARE,ANSON COURT RESIDENTIAL HOME,21/12/2021,333.01,6541-Residential EMI,THIRD PARTY PAYMENTS,PRIVATE CONTRACTOR,REVENUE
Walsall Council,http://opendatacommunities.org/id/metropolitan-district-council/walsall ,WC133-622,31.12.2021,ADULT SOCIAL CARE,ANSON COURT RESIDENTIAL HOME,21/12/2021,"2,184.44",6541-Residential,THIRD PARTY PAYMENTS,PRIVATE CONTRACTOR,REVENUE
Walsall Council,http://opendatacommunities.org/id/metropolitan-district-council/walsall ,WC133-623,31.12.2021,ADULT SOCIAL CARE,ANSON COURT RESIDENTIAL HOME,07/12/2021,"2,885.00",6541-Residential EMI,THIRD PARTY PAYMENTS,PRIVATE CONTRACTOR,REVENUE
Walsall Council,http://opendatacommunities.org/id/metropolitan-district-council/walsall ,WC133-624,31.12.2021,CHILDRENS,REDACTED,15/12/2021,358.54,6223-Special Guardianship Orders,TRANSFER PAYMENTS,CHILDREN SOCIAL SERVICES CLIENT,REVENUE
Walsall Council,http://opendatacommunities.org/id/metropolitan-district-council/walsall ,WC133-625,31.12.2021,"ECONOMY, ENVIRONMENT & COMMUNITIES",APCOA PARKING SERVICES (UK) LTD,06/12/2021,"56,380.42",6411-Professional Services-Priv Contractor & Other Agencies,THIRD PARTY PAYMENTS,PRIVATE CONTRACTOR,REVENUE
Walsall Council,http://opendatacommunities.org/id/metropolitan-district-council/walsall ,WC133-626,31.12.2021,RESOURCES AND TRANSFORMATION,APCOA PARKING SERVICES (UK) LTD,07/12/2021,-648.37,6634-Oxygen Finance Rebates ,SUPPLIES & SERVICES,SERVICES,REVENUE
Walsall Council,http://opendatacommunities.org/id/metropolitan-district-council/walsall ,WC133-627,31.12.2021,CHILDRENS,APP CARZ,23/12/2021,535.50,6314-Hire of Vehicle with Driver,TRANSPORT,DIRECT TRANSPORT COSTS,REVENUE
Walsall Council,http://opendatacommunities.org/id/metropolitan-district-council/walsall ,WC133-628,31.12.2021,CHILDRENS,APP CARZ,06/12/2021,660.00,6241-Hire of Vehicle with Driver,TRANSPORT,DIRECT TRANSPORT COSTS,REVENUE
Walsall Council,http://opendatacommunities.org/id/metropolitan-district-council/walsall ,WC133-629,31.12.2021,CHILDRENS,APP CARZ,06/12/2021,432.00,6241-Hire of Vehicle with Driver,TRANSPORT,DIRECT TRANSPORT COSTS,REVENUE
Walsall Council,http://opendatacommunities.org/id/metropolitan-district-council/walsall ,WC133-630,31.12.2021,CHILDRENS,APP CARZ,06/12/2021,"1,350.00",6241-Hire of Vehicle with Driver,TRANSPORT,DIRECT TRANSPORT COSTS,REVENUE
Walsall Council,http://opendatacommunities.org/id/metropolitan-district-council/walsall ,WC133-631,31.12.2021,CHILDRENS,APP CARZ,06/12/2021,280.00,6241-Hire of Vehicle with Driver,TRANSPORT,DIRECT TRANSPORT COSTS,REVENUE
Walsall Council,http://opendatacommunities.org/id/metropolitan-district-council/walsall ,WC133-632,31.12.2021,CHILDRENS,APP CARZ,06/12/2021,484.00,6241-Hire of Vehicle with Driver,TRANSPORT,DIRECT TRANSPORT COSTS,REVENUE
Walsall Council,http://opendatacommunities.org/id/metropolitan-district-council/walsall ,WC133-633,31.12.2021,CHILDRENS,APP CARZ,06/12/2021,720.00,6241-Hire of Vehicle with Driver,TRANSPORT,DIRECT TRANSPORT COSTS,REVENUE
Walsall Council,http://opendatacommunities.org/id/metropolitan-district-council/walsall ,WC133-634,31.12.2021,CHILDRENS,APP CARZ,06/12/2021,839.00,6241-Hire of Vehicle with Driver,TRANSPORT,DIRECT TRANSPORT COSTS,REVENUE
Walsall Council,http://opendatacommunities.org/id/metropolitan-district-council/walsall ,WC133-635,31.12.2021,CHILDRENS,APP CARZ,06/12/2021,960.00,6241-Hire of Vehicle with Driver,TRANSPORT,DIRECT TRANSPORT COSTS,REVENUE
Walsall Council,http://opendatacommunities.org/id/metropolitan-district-council/walsall ,WC133-636,31.12.2021,CHILDRENS,APP CARZ,06/12/2021,576.00,6241-Hire of Vehicle with Driver,TRANSPORT,DIRECT TRANSPORT COSTS,REVENUE
Walsall Council,http://opendatacommunities.org/id/metropolitan-district-council/walsall ,WC133-637,31.12.2021,CHILDRENS,APP CARZ,06/12/2021,750.00,6241-Hire of Vehicle with Driver,TRANSPORT,DIRECT TRANSPORT COSTS,REVENUE
Walsall Council,http://opendatacommunities.org/id/metropolitan-district-council/walsall ,WC133-638,31.12.2021,CHILDRENS,APP CARZ,06/12/2021,540.00,6241-Hire of Vehicle with Driver,TRANSPORT,DIRECT TRANSPORT COSTS,REVENUE
Walsall Council,http://opendatacommunities.org/id/metropolitan-district-council/walsall ,WC133-639,31.12.2021,CHILDRENS,APP CARZ,06/12/2021,"1,275.00",6241-Hire of Vehicle with Driver,TRANSPORT,DIRECT TRANSPORT COSTS,REVENUE
Walsall Council,http://opendatacommunities.org/id/metropolitan-district-council/walsall ,WC133-640,31.12.2021,CHILDRENS,APP CARZ,06/12/2021,960.00,6241-Hire of Vehicle with Driver,TRANSPORT,DIRECT TRANSPORT COSTS,REVENUE
Walsall Council,http://opendatacommunities.org/id/metropolitan-district-council/walsall ,WC133-641,31.12.2021,CHILDRENS,APP CARZ,06/12/2021,540.00,6241-Hire of Vehicle with Driver,TRANSPORT,DIRECT TRANSPORT COSTS,REVENUE
Walsall Council,http://opendatacommunities.org/id/metropolitan-district-council/walsall ,WC133-642,31.12.2021,"ECONOMY, ENVIRONMENT & COMMUNITIES",AQUAMO LTD,29/12/2021,"13,650.00",6413-Repair & Maintenance of Furniture & Equipment,SUPPLIES & SERVICES,EQUIPMENT FURNITURE & MATERIALS,REVENUE
Walsall Council,http://opendatacommunities.org/id/metropolitan-district-council/walsall ,WC133-643,31.12.2021,ADULT SOCIAL CARE,ARBORETUM NURSING HOME.,21/12/2021,"8,514.32",6554-Agency Staff,DIRECT EMPLOYEES,AGENCY,REVENUE
Walsall Council,http://opendatacommunities.org/id/metropolitan-district-council/walsall ,WC133-644,31.12.2021,ADULT SOCIAL CARE,ARBORETUM NURSING HOME.,17/12/2021,"11,920.00",6554-Agency Staff,DIRECT EMPLOYEES,AGENCY,REVENUE
Walsall Council,http://opendatacommunities.org/id/metropolitan-district-council/walsall ,WC133-645,31.12.2021,ADULT SOCIAL CARE,ARBORETUM NURSING HOME.,29/12/2021,"-11,920.00",6554-Professional Services-Priv Contractor & Other Agencies,THIRD PARTY PAYMENTS,PRIVATE CONTRACTOR,REVENUE
Walsall Council,http://opendatacommunities.org/id/metropolitan-district-council/walsall ,WC133-646,31.12.2021,ADULT SOCIAL CARE,ARBORETUM NURSING HOME.,29/12/2021,"11,920.00",6554-Agency Staff,DIRECT EMPLOYEES,AGENCY,REVENUE
Walsall Council,http://opendatacommunities.org/id/metropolitan-district-council/walsall ,WC133-647,31.12.2021,ADULT SOCIAL CARE,ARBORETUM NURSING HOME.,29/12/2021,"11,920.00",6554-Professional Services-Priv Contractor & Other Agencies,THIRD PARTY PAYMENTS,PRIVATE CONTRACTOR,REVENUE
Walsall Council,http://opendatacommunities.org/id/metropolitan-district-council/walsall ,WC133-648,31.12.2021,ADULT SOCIAL CARE,ARBORETUM NURSING HOME.,21/12/2021,"2,419.96",6541-Nursing,THIRD PARTY PAYMENTS,PRIVATE CONTRACTOR,REVENUE
Walsall Council,http://opendatacommunities.org/id/metropolitan-district-council/walsall ,WC133-649,31.12.2021,ADULT SOCIAL CARE,ARBORETUM NURSING HOME.,21/12/2021,"2,419.96",6541-Nursing,THIRD PARTY PAYMENTS,PRIVATE CONTRACTOR,REVENUE
Walsall Council,http://opendatacommunities.org/id/metropolitan-district-council/walsall ,WC133-650,31.12.2021,ADULT SOCIAL CARE,ARBORETUM NURSING HOME.,21/12/2021,"2,599.96",6541-Nursing,THIRD PARTY PAYMENTS,PRIVATE CONTRACTOR,REVENUE
Walsall Council,http://opendatacommunities.org/id/metropolitan-district-council/walsall ,WC133-651,31.12.2021,ADULT SOCIAL CARE,ARBORETUM NURSING HOME.,21/12/2021,"2,599.96",6541-Nursing,THIRD PARTY PAYMENTS,PRIVATE CONTRACTOR,REVENUE
Walsall Council,http://opendatacommunities.org/id/metropolitan-district-council/walsall ,WC133-652,31.12.2021,ADULT SOCIAL CARE,ARBORETUM NURSING HOME.,21/12/2021,"2,599.96",6541-Nursing,THIRD PARTY PAYMENTS,PRIVATE CONTRACTOR,REVENUE
Walsall Council,http://opendatacommunities.org/id/metropolitan-district-council/walsall ,WC133-653,31.12.2021,ADULT SOCIAL CARE,ARBORETUM NURSING HOME.,21/12/2021,"4,682.85",6541-Residential & Nursing Care Placements,THIRD PARTY PAYMENTS,PRIVATE CONTRACTOR,REVENUE
Walsall Council,http://opendatacommunities.org/id/metropolitan-district-council/walsall ,WC133-654,31.12.2021,ADULT SOCIAL CARE,ARBORETUM NURSING HOME.,21/12/2021,"-4,470.00",6541-Residential & Nursing Care Placements,THIRD PARTY PAYMENTS,PRIVATE CONTRACTOR,REVENUE
Walsall Council,http://opendatacommunities.org/id/metropolitan-district-council/walsall ,WC133-655,31.12.2021,ADULT SOCIAL CARE,ARBORETUM NURSING HOME.,21/12/2021,"2,599.96",6541-Nursing,THIRD PARTY PAYMENTS,PRIVATE CONTRACTOR,REVENUE
Walsall Council,http://opendatacommunities.org/id/metropolitan-district-council/walsall ,WC133-656,31.12.2021,ADULT SOCIAL CARE,ARBORETUM NURSING HOME.,21/12/2021,745.00,6541-Residential & Nursing Care Placements,THIRD PARTY PAYMENTS,PRIVATE CONTRACTOR,REVENUE
Walsall Council,http://opendatacommunities.org/id/metropolitan-district-council/walsall ,WC133-657,31.12.2021,ADULT SOCIAL CARE,ARBORETUM NURSING HOME.,21/12/2021,"1,928.57",6541-Residential & Nursing Care Placements,THIRD PARTY PAYMENTS,PRIVATE CONTRACTOR,REVENUE
Walsall Council,http://opendatacommunities.org/id/metropolitan-district-council/walsall ,WC133-658,31.12.2021,ADULT SOCIAL CARE,ARBORETUM NURSING HOME.,21/12/2021,"1,170.71",6541-Residential & Nursing Care Placements,THIRD PARTY PAYMENTS,PRIVATE CONTRACTOR,REVENUE
Walsall Council,http://opendatacommunities.org/id/metropolitan-district-council/walsall ,WC133-659,31.12.2021,ADULT SOCIAL CARE,ARBORETUM NURSING HOME.,21/12/2021,"2,419.96",6541-Nursing,THIRD PARTY PAYMENTS,PRIVATE CONTRACTOR,REVENUE
Walsall Council,http://opendatacommunities.org/id/metropolitan-district-council/walsall ,WC133-660,31.12.2021,ADULT SOCIAL CARE,ARBORETUM NURSING HOME.,21/12/2021,"1,485.69",6541-Nursing,THIRD PARTY PAYMENTS,PRIVATE CONTRACTOR,REVENUE
Walsall Council,http://opendatacommunities.org/id/metropolitan-district-council/walsall ,WC133-661,31.12.2021,ADULT SOCIAL CARE,ARBORETUM NURSING HOME.,21/12/2021,"2,599.96",6541-Nursing,THIRD PARTY PAYMENTS,PRIVATE CONTRACTOR,REVENUE
Walsall Council,http://opendatacommunities.org/id/metropolitan-district-council/walsall ,WC133-662,31.12.2021,ADULT SOCIAL CARE,ARBORETUM NURSING HOME.,21/12/2021,745.00,6541-Residential & Nursing Care Placements,THIRD PARTY PAYMENTS,PRIVATE CONTRACTOR,REVENUE
Walsall Council,http://opendatacommunities.org/id/metropolitan-district-council/walsall ,WC133-663,31.12.2021,ADULT SOCIAL CARE,ARBORETUM NURSING HOME.,21/12/2021,"2,419.96",6541-Nursing,THIRD PARTY PAYMENTS,PRIVATE CONTRACTOR,REVENUE
Walsall Council,http://opendatacommunities.org/id/metropolitan-district-council/walsall ,WC133-664,31.12.2021,ADULT SOCIAL CARE,ARBORETUM NURSING HOME.,21/12/2021,"2,419.96",6541-Nursing,THIRD PARTY PAYMENTS,PRIVATE CONTRACTOR,REVENUE
Walsall Council,http://opendatacommunities.org/id/metropolitan-district-council/walsall ,WC133-665,31.12.2021,ADULT SOCIAL CARE,ARBORETUM NURSING HOME.,21/12/2021,"2,599.96",6541-Nursing,THIRD PARTY PAYMENTS,PRIVATE CONTRACTOR,REVENUE
Walsall Council,http://opendatacommunities.org/id/metropolitan-district-council/walsall ,WC133-666,31.12.2021,ADULT SOCIAL CARE,ARBORETUM NURSING HOME.,21/12/2021,"1,064.29",6541-Residential & Nursing Care Placements,THIRD PARTY PAYMENTS,PRIVATE CONTRACTOR,REVENUE
Walsall Council,http://opendatacommunities.org/id/metropolitan-district-council/walsall ,WC133-667,31.12.2021,ADULT SOCIAL CARE,ARBORETUM NURSING HOME.,21/12/2021,851.43,6541-Residential & Nursing Care Placements,THIRD PARTY PAYMENTS,PRIVATE CONTRACTOR,REVENUE
Walsall Council,http://opendatacommunities.org/id/metropolitan-district-council/walsall ,WC133-668,31.12.2021,ADULT SOCIAL CARE,ARBORETUM NURSING HOME.,21/12/2021,"2,800.00",6541-Nursing,THIRD PARTY PAYMENTS,PRIVATE CONTRACTOR,REVENUE
Walsall Council,http://opendatacommunities.org/id/metropolitan-district-council/walsall ,WC133-669,31.12.2021,ADULT SOCIAL CARE,ARBORETUM NURSING HOME.,21/12/2021,"2,419.96",6541-Nursing,THIRD PARTY PAYMENTS,PRIVATE CONTRACTOR,REVENUE
Walsall Council,http://opendatacommunities.org/id/metropolitan-district-council/walsall ,WC133-670,31.12.2021,ADULT SOCIAL CARE,ARBORETUM NURSING HOME.,21/12/2021,"2,980.00",6541-Residential & Nursing Care Placements,THIRD PARTY PAYMENTS,PRIVATE CONTRACTOR,REVENUE
Walsall Council,http://opendatacommunities.org/id/metropolitan-district-council/walsall ,WC133-671,31.12.2021,ADULT SOCIAL CARE,ARBORETUM NURSING HOME.,21/12/2021,425.71,6541-Residential & Nursing Care Placements,THIRD PARTY PAYMENTS,PRIVATE CONTRACTOR,REVENUE
Walsall Council,http://opendatacommunities.org/id/metropolitan-district-council/walsall ,WC133-672,31.12.2021,ADULT SOCIAL CARE,ARBORETUM NURSING HOME.,21/12/2021,"2,419.96",6541-Nursing,THIRD PARTY PAYMENTS,PRIVATE CONTRACTOR,REVENUE
Walsall Council,http://opendatacommunities.org/id/metropolitan-district-council/walsall ,WC133-673,31.12.2021,ADULT SOCIAL CARE,ARBORETUM NURSING HOME.,21/12/2021,"2,980.00",6541-Residential & Nursing Care Placements,THIRD PARTY PAYMENTS,PRIVATE CONTRACTOR,REVENUE
Walsall Council,http://opendatacommunities.org/id/metropolitan-district-council/walsall ,WC133-674,31.12.2021,ADULT SOCIAL CARE,ARBORETUM NURSING HOME.,21/12/2021,"2,419.96",6541-Nursing,THIRD PARTY PAYMENTS,PRIVATE CONTRACTOR,REVENUE
Walsall Council,http://opendatacommunities.org/id/metropolitan-district-council/walsall ,WC133-675,31.12.2021,ADULT SOCIAL CARE,ARBORETUM NURSING HOME.,21/12/2021,"2,419.96",6541-Nursing,THIRD PARTY PAYMENTS,PRIVATE CONTRACTOR,REVENUE
Walsall Council,http://opendatacommunities.org/id/metropolitan-district-council/walsall ,WC133-676,31.12.2021,ADULT SOCIAL CARE,ARBORETUM NURSING HOME.,21/12/2021,"2,575.96",6541-Nursing,THIRD PARTY PAYMENTS,PRIVATE CONTRACTOR,REVENUE
Walsall Council,http://opendatacommunities.org/id/metropolitan-district-council/walsall ,WC133-677,31.12.2021,ADULT SOCIAL CARE,ARBORETUM NURSING HOME.,21/12/2021,"2,599.96",6541-Nursing,THIRD PARTY PAYMENTS,PRIVATE CONTRACTOR,REVENUE
Walsall Council,http://opendatacommunities.org/id/metropolitan-district-council/walsall ,WC133-678,31.12.2021,ADULT SOCIAL CARE,ARBORETUM NURSING HOME.,21/12/2021,"2,692.82",6541-Nursing,THIRD PARTY PAYMENTS,PRIVATE CONTRACTOR,REVENUE
Walsall Council,http://opendatacommunities.org/id/metropolitan-district-council/walsall ,WC133-679,31.12.2021,"ECONOMY, ENVIRONMENT & COMMUNITIES",ARCADIS,01/12/2021,"10,480.00",6313-Consultant Fees,SUPPLIES & SERVICES,SERVICES,REVENUE
Walsall Council,http://opendatacommunities.org/id/metropolitan-district-council/walsall ,WC133-680,31.12.2021,"ECONOMY, ENVIRONMENT & COMMUNITIES",ARCADIS,15/12/2021,"14,600.00",6313-Consultant Fees,SUPPLIES & SERVICES,SERVICES,REVENUE
Walsall Council,http://opendatacommunities.org/id/metropolitan-district-council/walsall ,WC133-681,31.12.2021,"ECONOMY, ENVIRONMENT & COMMUNITIES",ARCADIS,15/12/2021,"7,900.00",6313-Consultant Fees,SUPPLIES & SERVICES,SERVICES,REVENUE
Walsall Council,http://opendatacommunities.org/id/metropolitan-district-council/walsall ,WC133-682,31.12.2021,"ECONOMY, ENVIRONMENT & COMMUNITIES",ARCADIS,21/12/2021,"16,029.22",6313-Consultant Fees,SUPPLIES & SERVICES,SERVICES,REVENUE
Walsall Council,http://opendatacommunities.org/id/metropolitan-district-council/walsall ,WC133-683,31.12.2021,ECONOMY & ENVIRONMENT CAPITAL,ARCADIS,23/12/2021,"39,033.14",7200-Project Fees,CAPITAL,"NEW CONSTRUCTION,CONVERSION & RENOVATION",CAPITAL
Walsall Council,http://opendatacommunities.org/id/metropolitan-district-council/walsall ,WC133-684,31.12.2021,ECONOMY & ENVIRONMENT CAPITAL,ARCADIS,15/12/2021,"14,000.00",7200-Project Fees,CAPITAL,"NEW CONSTRUCTION,CONVERSION & RENOVATION",CAPITAL
Walsall Council,http://opendatacommunities.org/id/metropolitan-district-council/walsall ,WC133-685,31.12.2021,"ECONOMY, ENVIRONMENT & COMMUNITIES",ARCO GROUP,09/12/2021,596.15,6411-Clothing & Laundry,SUPPLIES & SERVICES,"CLOTHES, UNIFORM & LAUNDRY",REVENUE
Walsall Council,http://opendatacommunities.org/id/metropolitan-district-council/walsall ,WC133-686,31.12.2021,HOLDING ACCOUNTS,ARTHUR J GALLAGHER T/A HEATH LAMBERT LIMITED,03/12/2021,"6,000.00",2877-Insurance Premium,SUPPLIES & SERVICES,INSURANCE,REVENUE
Walsall Council,http://opendatacommunities.org/id/metropolitan-district-council/walsall ,WC133-687,31.12.2021,CHILDRENS,ASCENDANT SOLUTIONS LTD,30/12/2021,"42,540.00",6632-Computer Equipment,SUPPLIES & SERVICES,COMMUNICATIONS & COMPUTING,REVENUE
Walsall Council,http://opendatacommunities.org/id/metropolitan-district-council/walsall ,WC133-688,31.12.2021,CHILDRENS,ASDA STORES LIMITED,20/12/2021,"1,930.00",6314-Housing Benefits-Transfer Payments,TRANSFER PAYMENTS,HOUSING BENEFITS,REVENUE
Walsall Council,http://opendatacommunities.org/id/metropolitan-district-council/walsall ,WC133-689,31.12.2021,ADULT SOCIAL CARE,ASH GRANGE CARE HOME,21/12/2021,"2,722.96",6541-Nursing EMI,THIRD PARTY PAYMENTS,PRIVATE CONTRACTOR,REVENUE
Walsall Council,http://opendatacommunities.org/id/metropolitan-district-council/walsall ,WC133-690,31.12.2021,ADULT SOCIAL CARE,ASH GRANGE CARE HOME,21/12/2021,"2,064.44",6541-Residential,THIRD PARTY PAYMENTS,PRIVATE CONTRACTOR,REVENUE
Walsall Council,http://opendatacommunities.org/id/metropolitan-district-council/walsall ,WC133-691,31.12.2021,ADULT SOCIAL CARE,ASH GRANGE CARE HOME,21/12/2021,"2,419.96",6541-Nursing,THIRD PARTY PAYMENTS,PRIVATE CONTRACTOR,REVENUE
Walsall Council,http://opendatacommunities.org/id/metropolitan-district-council/walsall ,WC133-692,31.12.2021,ADULT SOCIAL CARE,ASH GRANGE CARE HOME,21/12/2021,"3,000.00",6541-Residential & Nursing Care Placements,THIRD PARTY PAYMENTS,PRIVATE CONTRACTOR,REVENUE
Walsall Council,http://opendatacommunities.org/id/metropolitan-district-council/walsall ,WC133-693,31.12.2021,ADULT SOCIAL CARE,ASH GRANGE CARE HOME,21/12/2021,"2,722.96",6541-Nursing EMI,THIRD PARTY PAYMENTS,PRIVATE CONTRACTOR,REVENUE
Walsall Council,http://opendatacommunities.org/id/metropolitan-district-council/walsall ,WC133-694,31.12.2021,ADULT SOCIAL CARE,ASH GRANGE CARE HOME,21/12/2021,"2,798.92",6541-Nursing,THIRD PARTY PAYMENTS,PRIVATE CONTRACTOR,REVENUE
Walsall Council,http://opendatacommunities.org/id/metropolitan-district-council/walsall ,WC133-695,31.12.2021,ADULT SOCIAL CARE,ASH GRANGE CARE HOME,21/12/2021,"2,892.86",6541-Residential & Nursing Care Placements,THIRD PARTY PAYMENTS,PRIVATE CONTRACTOR,REVENUE
Walsall Council,http://opendatacommunities.org/id/metropolitan-district-council/walsall ,WC133-696,31.12.2021,ADULT SOCIAL CARE,ASH GRANGE CARE HOME,21/12/2021,-691.42,6541-Nursing,THIRD PARTY PAYMENTS,PRIVATE CONTRACTOR,REVENUE
Walsall Council,http://opendatacommunities.org/id/metropolitan-district-council/walsall ,WC133-697,31.12.2021,ADULT SOCIAL CARE,ASH GRANGE CARE HOME,21/12/2021,964.29,6541-Residential & Nursing Care Placements,THIRD PARTY PAYMENTS,PRIVATE CONTRACTOR,REVENUE
Walsall Council,http://opendatacommunities.org/id/metropolitan-district-council/walsall ,WC133-698,31.12.2021,ADULT SOCIAL CARE,ASH GRANGE CARE HOME,21/12/2021,"7,956.31",6541-Nursing,THIRD PARTY PAYMENTS,PRIVATE CONTRACTOR,REVENUE
Walsall Council,http://opendatacommunities.org/id/metropolitan-district-council/walsall ,WC133-699,31.12.2021,ADULT SOCIAL CARE,ASH GRANGE CARE HOME,21/12/2021,"2,819.96",6541-Nursing,THIRD PARTY PAYMENTS,PRIVATE CONTRACTOR,REVENUE
Walsall Council,http://opendatacommunities.org/id/metropolitan-district-council/walsall ,WC133-700,31.12.2021,ADULT SOCIAL CARE,ASH GRANGE CARE HOME,21/12/2021,"-3,000.00",6541-Residential & Nursing Care Placements,THIRD PARTY PAYMENTS,PRIVATE CONTRACTOR,REVENUE
Walsall Council,http://opendatacommunities.org/id/metropolitan-district-council/walsall ,WC133-701,31.12.2021,ADULT SOCIAL CARE,ASH GRANGE CARE HOME,21/12/2021,"2,419.96",6541-Nursing,THIRD PARTY PAYMENTS,PRIVATE CONTRACTOR,REVENUE
Walsall Council,http://opendatacommunities.org/id/metropolitan-district-council/walsall ,WC133-702,31.12.2021,ADULT SOCIAL CARE,ASH GRANGE CARE HOME,21/12/2021,"2,314.29",6541-Residential,THIRD PARTY PAYMENTS,PRIVATE CONTRACTOR,REVENUE
Walsall Council,http://opendatacommunities.org/id/metropolitan-district-council/walsall ,WC133-703,31.12.2021,ADULT SOCIAL CARE,ASH GRANGE CARE HOME,21/12/2021,"2,419.96",6541-Nursing,THIRD PARTY PAYMENTS,PRIVATE CONTRACTOR,REVENUE
Walsall Council,http://opendatacommunities.org/id/metropolitan-district-council/walsall ,WC133-704,31.12.2021,ADULT SOCIAL CARE,ASH GRANGE CARE HOME,21/12/2021,"2,606.96",6541-Residential,THIRD PARTY PAYMENTS,PRIVATE CONTRACTOR,REVENUE
Walsall Council,http://opendatacommunities.org/id/metropolitan-district-council/walsall ,WC133-705,31.12.2021,ADULT SOCIAL CARE,ASH GRANGE CARE HOME,21/12/2021,"-3,857.14",6541-Residential & Nursing Care Placements,THIRD PARTY PAYMENTS,PRIVATE CONTRACTOR,REVENUE
Walsall Council,http://opendatacommunities.org/id/metropolitan-district-council/walsall ,WC133-706,31.12.2021,ADULT SOCIAL CARE,ASH GRANGE CARE HOME,21/12/2021,"4,178.57",6541-Residential & Nursing Care Placements,THIRD PARTY PAYMENTS,PRIVATE CONTRACTOR,REVENUE
Walsall Council,http://opendatacommunities.org/id/metropolitan-district-council/walsall ,WC133-707,31.12.2021,ADULT SOCIAL CARE,ASH GRANGE CARE HOME,21/12/2021,"-4,500.00",6541-Residential & Nursing Care Placements,THIRD PARTY PAYMENTS,PRIVATE CONTRACTOR,REVENUE
Walsall Council,http://opendatacommunities.org/id/metropolitan-district-council/walsall ,WC133-708,31.12.2021,ADULT SOCIAL CARE,ASH GRANGE CARE HOME,21/12/2021,"2,719.96",6541-Nursing,THIRD PARTY PAYMENTS,PRIVATE CONTRACTOR,REVENUE
Walsall Council,http://opendatacommunities.org/id/metropolitan-district-council/walsall ,WC133-709,31.12.2021,ADULT SOCIAL CARE,ASH GRANGE CARE HOME,21/12/2021,"2,722.96",6541-Nursing EMI,THIRD PARTY PAYMENTS,PRIVATE CONTRACTOR,REVENUE
Walsall Council,http://opendatacommunities.org/id/metropolitan-district-council/walsall ,WC133-710,31.12.2021,ADULT SOCIAL CARE,ASH GRANGE CARE HOME,21/12/2021,"-1,500.00",6541-Residential & Nursing Care Placements,THIRD PARTY PAYMENTS,PRIVATE CONTRACTOR,REVENUE
Walsall Council,http://opendatacommunities.org/id/metropolitan-district-council/walsall ,WC133-711,31.12.2021,ADULT SOCIAL CARE,ASH GRANGE CARE HOME,21/12/2021,"1,714.29",6541-Residential & Nursing Care Placements,THIRD PARTY PAYMENTS,PRIVATE CONTRACTOR,REVENUE
Walsall Council,http://opendatacommunities.org/id/metropolitan-district-council/walsall ,WC133-712,31.12.2021,ADULT SOCIAL CARE,ASH GRANGE CARE HOME,21/12/2021,"1,071.43",6541-Residential & Nursing Care Placements,THIRD PARTY PAYMENTS,PRIVATE CONTRACTOR,REVENUE
Walsall Council,http://opendatacommunities.org/id/metropolitan-district-council/walsall ,WC133-713,31.12.2021,ADULT SOCIAL CARE,ASH GRANGE CARE HOME,21/12/2021,"1,684.26",6541-Nursing,THIRD PARTY PAYMENTS,PRIVATE CONTRACTOR,REVENUE
Walsall Council,http://opendatacommunities.org/id/metropolitan-district-council/walsall ,WC133-714,31.12.2021,ADULT SOCIAL CARE,ASH GRANGE CARE HOME,21/12/2021,259.28,6541-Nursing,THIRD PARTY PAYMENTS,PRIVATE CONTRACTOR,REVENUE
Walsall Council,http://opendatacommunities.org/id/metropolitan-district-council/walsall ,WC133-715,31.12.2021,ADULT SOCIAL CARE,ASH GRANGE CARE HOME,21/12/2021,"2,517.82",6541-Nursing,THIRD PARTY PAYMENTS,PRIVATE CONTRACTOR,REVENUE
Walsall Council,http://opendatacommunities.org/id/metropolitan-district-council/walsall ,WC133-716,31.12.2021,ADULT SOCIAL CARE,ASH GRANGE CARE HOME,21/12/2021,"3,000.00",6541-Residential & Nursing Care Placements,THIRD PARTY PAYMENTS,PRIVATE CONTRACTOR,REVENUE
Walsall Council,http://opendatacommunities.org/id/metropolitan-district-council/walsall ,WC133-717,31.12.2021,ADULT SOCIAL CARE,ASH GRANGE CARE HOME,21/12/2021,"7,821.43",6541-Residential & Nursing Care Placements,THIRD PARTY PAYMENTS,PRIVATE CONTRACTOR,REVENUE
Walsall Council,http://opendatacommunities.org/id/metropolitan-district-council/walsall ,WC133-718,31.12.2021,"ECONOMY, ENVIRONMENT & COMMUNITIES",ASHDOWN SUPPLIES,09/12/2021,-299.87,6413-Plaques Memorials-Materials,SUPPLIES & SERVICES,EQUIPMENT FURNITURE & MATERIALS,REVENUE
Walsall Council,http://opendatacommunities.org/id/metropolitan-district-council/walsall ,WC133-719,31.12.2021,"ECONOMY, ENVIRONMENT & COMMUNITIES",ASHDOWN SUPPLIES,09/12/2021,-275.04,6413-Plaques Memorials-Materials,SUPPLIES & SERVICES,EQUIPMENT FURNITURE & MATERIALS,REVENUE
Walsall Council,http://opendatacommunities.org/id/metropolitan-district-council/walsall ,WC133-720,31.12.2021,"ECONOMY, ENVIRONMENT & COMMUNITIES",ASHDOWN SUPPLIES,09/12/2021,275.04,6413-Plaques Memorials-Materials,SUPPLIES & SERVICES,EQUIPMENT FURNITURE & MATERIALS,REVENUE
Walsall Council,http://opendatacommunities.org/id/metropolitan-district-council/walsall ,WC133-721,31.12.2021,"ECONOMY, ENVIRONMENT & COMMUNITIES",ASHDOWN SUPPLIES,09/12/2021,299.87,6413-Plaques Memorials-Materials,SUPPLIES & SERVICES,EQUIPMENT FURNITURE & MATERIALS,REVENUE
Walsall Council,http://opendatacommunities.org/id/metropolitan-district-council/walsall ,WC133-722,31.12.2021,"ECONOMY, ENVIRONMENT & COMMUNITIES",ASHDOWN SUPPLIES,29/12/2021,"-1,722.40",6413-Plaques Memorials-Materials,SUPPLIES & SERVICES,EQUIPMENT FURNITURE & MATERIALS,REVENUE
Walsall Council,http://opendatacommunities.org/id/metropolitan-district-council/walsall ,WC133-723,31.12.2021,"ECONOMY, ENVIRONMENT & COMMUNITIES",ASHDOWN SUPPLIES,29/12/2021,"1,540.00",6413-Plaques Memorials-Materials,SUPPLIES & SERVICES,EQUIPMENT FURNITURE & MATERIALS,REVENUE
Walsall Council,http://opendatacommunities.org/id/metropolitan-district-council/walsall ,WC133-724,31.12.2021,"ECONOMY, ENVIRONMENT & COMMUNITIES",ASHDOWN SUPPLIES,29/12/2021,"1,722.40",6413-Plaques Memorials-Materials,SUPPLIES & SERVICES,EQUIPMENT FURNITURE & MATERIALS,REVENUE
Walsall Council,http://opendatacommunities.org/id/metropolitan-district-council/walsall ,WC133-725,31.12.2021,ADULT SOCIAL CARE,REDACTED,08/12/2021,"1,782.55",6541-Direct Payment,THIRD PARTY PAYMENTS,PRIVATE CONTRACTOR,REVENUE
Walsall Council,http://opendatacommunities.org/id/metropolitan-district-council/walsall ,WC133-726,31.12.2021,"ECONOMY, ENVIRONMENT & COMMUNITIES",ASKEWS AND HOLTS LIBRARY SERVICES LTD,08/12/2021,"2,968.61",6414-Library Books,SUPPLIES & SERVICES,EQUIPMENT FURNITURE & MATERIALS,REVENUE
Walsall Council,http://opendatacommunities.org/id/metropolitan-district-council/walsall ,WC133-727,31.12.2021,"ECONOMY, ENVIRONMENT & COMMUNITIES",ASKEWS AND HOLTS LIBRARY SERVICES LTD,09/12/2021,599.76,6414-Library Books,SUPPLIES & SERVICES,EQUIPMENT FURNITURE & MATERIALS,REVENUE
Walsall Council,http://opendatacommunities.org/id/metropolitan-district-council/walsall ,WC133-728,31.12.2021,"ECONOMY, ENVIRONMENT & COMMUNITIES",ASKEWS AND HOLTS LIBRARY SERVICES LTD,29/12/2021,"3,996.68",6414-Library Books,SUPPLIES & SERVICES,EQUIPMENT FURNITURE & MATERIALS,REVENUE
Walsall Council,http://opendatacommunities.org/id/metropolitan-district-council/walsall ,WC133-729,31.12.2021,ADULT SOCIAL CARE,REDACTED,08/12/2021,938.40,6541-Direct Payment,THIRD PARTY PAYMENTS,PRIVATE CONTRACTOR,REVENUE
Walsall Council,http://opendatacommunities.org/id/metropolitan-district-council/walsall ,WC133-730,31.12.2021,ADULT SOCIAL CARE,ASPECTS CARE LTD,15/12/2021,523.12,6541-Community Supported Living/Supported Accommodation,THIRD PARTY PAYMENTS,PRIVATE CONTRACTOR,REVENUE
Walsall Council,http://opendatacommunities.org/id/metropolitan-district-council/walsall ,WC133-731,31.12.2021,ADULT SOCIAL CARE,ASPECTS CARE LTD,15/12/2021,566.68,6541-Community Supported Living/Supported Accommodation,THIRD PARTY PAYMENTS,PRIVATE CONTRACTOR,REVENUE
Walsall Council,http://opendatacommunities.org/id/metropolitan-district-council/walsall ,WC133-732,31.12.2021,ADULT SOCIAL CARE,ASPECTS CARE LTD,15/12/2021,421.44,6541-Community Supported Living/Supported Accommodation,THIRD PARTY PAYMENTS,PRIVATE CONTRACTOR,REVENUE
Walsall Council,http://opendatacommunities.org/id/metropolitan-district-council/walsall ,WC133-733,31.12.2021,ADULT SOCIAL CARE,ASPECTS CARE LTD,15/12/2021,799.24,6541-Community Supported Living/Supported Accommodation,THIRD PARTY PAYMENTS,PRIVATE CONTRACTOR,REVENUE
Walsall Council,http://opendatacommunities.org/id/metropolitan-district-council/walsall ,WC133-734,31.12.2021,ADULT SOCIAL CARE,ASPECTS CARE LTD,15/12/2021,523.16,6541-Community Supported Living/Supported Accommodation,THIRD PARTY PAYMENTS,PRIVATE CONTRACTOR,REVENUE
Walsall Council,http://opendatacommunities.org/id/metropolitan-district-council/walsall ,WC133-735,31.12.2021,ADULT SOCIAL CARE,ASPECTS CARE LTD,15/12/2021,799.12,6541-Community Supported Living/Supported Accommodation,THIRD PARTY PAYMENTS,PRIVATE CONTRACTOR,REVENUE
Walsall Council,http://opendatacommunities.org/id/metropolitan-district-council/walsall ,WC133-736,31.12.2021,ADULT SOCIAL CARE,ASPECTS CARE LTD,15/12/2021,348.64,6541-Community Supported Living/Supported Accommodation,THIRD PARTY PAYMENTS,PRIVATE CONTRACTOR,REVENUE
Walsall Council,http://opendatacommunities.org/id/metropolitan-district-council/walsall ,WC133-737,31.12.2021,ADULT SOCIAL CARE,ASPECTS CARE LTD,15/12/2021,508.48,6541-Community Supported Living/Supported Accommodation,THIRD PARTY PAYMENTS,PRIVATE CONTRACTOR,REVENUE
Walsall Council,http://opendatacommunities.org/id/metropolitan-district-council/walsall ,WC133-738,31.12.2021,ADULT SOCIAL CARE,ASPECTS CARE LTD,15/12/2021,937.23,6541-Community Supported Living/Supported Accommodation,THIRD PARTY PAYMENTS,PRIVATE CONTRACTOR,REVENUE
Walsall Council,http://opendatacommunities.org/id/metropolitan-district-council/walsall ,WC133-739,31.12.2021,ADULT SOCIAL CARE,ASPECTS CARE LTD,15/12/2021,464.96,6541-Community Supported Living/Supported Accommodation,THIRD PARTY PAYMENTS,PRIVATE CONTRACTOR,REVENUE
Walsall Council,http://opendatacommunities.org/id/metropolitan-district-council/walsall ,WC133-740,31.12.2021,CHILDRENS,ATKINS LIMITED,09/12/2021,"-3,500.00",6213-Planned Maintenance,PREMISES,REPAIRS & MAINTENANCE,REVENUE
Walsall Council,http://opendatacommunities.org/id/metropolitan-district-council/walsall ,WC133-741,31.12.2021,CHILDRENS,ATKINS LIMITED,09/12/2021,"3,500.00",6213-Planned Maintenance,PREMISES,REPAIRS & MAINTENANCE,REVENUE
Walsall Council,http://opendatacommunities.org/id/metropolitan-district-council/walsall ,WC133-742,31.12.2021,RESOURCES AND TRANSFORMATION,ATKINS LIMITED,07/12/2021,"17,927.00",6310-Planned Maintenance,PREMISES,REPAIRS & MAINTENANCE,REVENUE
Walsall Council,http://opendatacommunities.org/id/metropolitan-district-council/walsall ,WC133-743,31.12.2021,CHILDRENS,ATKINSON LEWIS LIMITED,10/12/2021,-255.20,6220-School Only Payments - Catering,THIRD PARTY PAYMENTS,INDEPENDENT UNIT WITHIN COUNCIL,REVENUE
Walsall Council,http://opendatacommunities.org/id/metropolitan-district-council/walsall ,WC133-744,31.12.2021,CHILDRENS,ATKINSON LEWIS LIMITED,10/12/2021,255.20,6220-School Only Payments - Catering,THIRD PARTY PAYMENTS,INDEPENDENT UNIT WITHIN COUNCIL,REVENUE
Walsall Council,http://opendatacommunities.org/id/metropolitan-district-council/walsall ,WC133-745,31.12.2021,CHILDRENS,ATKINSON LEWIS LIMITED,10/12/2021,319.00,6220-School Only Payments - Catering,THIRD PARTY PAYMENTS,INDEPENDENT UNIT WITHIN COUNCIL,REVENUE
Walsall Council,http://opendatacommunities.org/id/metropolitan-district-council/walsall ,WC133-746,31.12.2021,"ECONOMY, ENVIRONMENT & COMMUNITIES",ATLAS TEACHERS,20/12/2021,873.12,6313-Grants to Other Orgs,SUPPLIES & SERVICES,GRANTS (EXP) & SUBSCRIPTIONS,REVENUE
Walsall Council,http://opendatacommunities.org/id/metropolitan-district-council/walsall ,WC133-747,31.12.2021,"ECONOMY, ENVIRONMENT & COMMUNITIES",ATLAS TEACHERS,20/12/2021,924.27,6313-Grants to Other Orgs,SUPPLIES & SERVICES,GRANTS (EXP) & SUBSCRIPTIONS,REVENUE
Walsall Council,http://opendatacommunities.org/id/metropolitan-district-council/walsall ,WC133-748,31.12.2021,RESOURCES AND TRANSFORMATION,AUDITEL RENTAL & SERVICE LTD,29/12/2021,"6,000.00",6610-Repair & Maintenance of Furniture & Equipment,SUPPLIES & SERVICES,EQUIPMENT FURNITURE & MATERIALS,REVENUE
Walsall Council,http://opendatacommunities.org/id/metropolitan-district-council/walsall ,WC133-749,31.12.2021,ADULT SOCIAL CARE,AURORA GRAPHICS & DISPLAYS LTD,31/12/2021,"-2,033.88",6623-Materials to Stores,SUPPLIES & SERVICES,EQUIPMENT FURNITURE & MATERIALS,REVENUE
Walsall Council,http://opendatacommunities.org/id/metropolitan-district-council/walsall ,WC133-750,31.12.2021,ADULT SOCIAL CARE,AURORA GRAPHICS & DISPLAYS LTD,31/12/2021,978.16,6623-Materials to Stores,SUPPLIES & SERVICES,EQUIPMENT FURNITURE & MATERIALS,REVENUE
Walsall Council,http://opendatacommunities.org/id/metropolitan-district-council/walsall ,WC133-751,31.12.2021,ADULT SOCIAL CARE,AURORA GRAPHICS & DISPLAYS LTD,31/12/2021,"1,055.72",6623-Materials to Stores,SUPPLIES & SERVICES,EQUIPMENT FURNITURE & MATERIALS,REVENUE
Walsall Council,http://opendatacommunities.org/id/metropolitan-district-council/walsall ,WC133-752,31.12.2021,ADULT SOCIAL CARE,AURORA GRAPHICS & DISPLAYS LTD,31/12/2021,"2,033.88",6623-Materials to Stores,SUPPLIES & SERVICES,EQUIPMENT FURNITURE & MATERIALS,REVENUE
Walsall Council,http://opendatacommunities.org/id/metropolitan-district-council/walsall ,WC133-753,31.12.2021,ADULT SOCIAL CARE,AUTISM WEST MIDLANDS,21/12/2021,"7,418.04",6541-Residential,THIRD PARTY PAYMENTS,PRIVATE CONTRACTOR,REVENUE
Walsall Council,http://opendatacommunities.org/id/metropolitan-district-council/walsall ,WC133-754,31.12.2021,ADULT SOCIAL CARE,AUTISM WEST MIDLANDS,21/12/2021,"5,732.64",6541-Residential,THIRD PARTY PAYMENTS,PRIVATE CONTRACTOR,REVENUE
Walsall Council,http://opendatacommunities.org/id/metropolitan-district-council/walsall ,WC133-755,31.12.2021,ADULT SOCIAL CARE,AUTISM WEST MIDLANDS,21/12/2021,"20,117.08",6541-Residential,THIRD PARTY PAYMENTS,PRIVATE CONTRACTOR,REVENUE
Walsall Council,http://opendatacommunities.org/id/metropolitan-district-council/walsall ,WC133-756,31.12.2021,"ECONOMY, ENVIRONMENT & COMMUNITIES",AUTOTAG TRADING LTD,29/12/2021,599.00,6414-Stationery & General Office Supplies,SUPPLIES & SERVICES,PRINTING STATIONERY & GENERAL OFFICE,REVENUE
Walsall Council,http://opendatacommunities.org/id/metropolitan-district-council/walsall ,WC133-757,31.12.2021,ADULT SOCIAL CARE,AVE MARIA CARE SERVICES LTD,21/12/2021,"30,002.00",6554-Professional Fees & Services,SUPPLIES & SERVICES,SERVICES,REVENUE
Walsall Council,http://opendatacommunities.org/id/metropolitan-district-council/walsall ,WC133-758,31.12.2021,ADULT SOCIAL CARE,AVERY HOMES NELSON LIMITED,21/12/2021,"2,064.44",6541-Residential,THIRD PARTY PAYMENTS,PRIVATE CONTRACTOR,REVENUE
Walsall Council,http://opendatacommunities.org/id/metropolitan-district-council/walsall ,WC133-759,31.12.2021,ADULT SOCIAL CARE,AVERY HOMES NELSON LIMITED,21/12/2021,"2,142.86",6541-Residential,THIRD PARTY PAYMENTS,PRIVATE CONTRACTOR,REVENUE
Walsall Council,http://opendatacommunities.org/id/metropolitan-district-council/walsall ,WC133-760,31.12.2021,ADULT SOCIAL CARE,AVERY HOMES NELSON LIMITED,21/12/2021,"2,064.44",6541-Residential,THIRD PARTY PAYMENTS,PRIVATE CONTRACTOR,REVENUE
Walsall Council,http://opendatacommunities.org/id/metropolitan-district-council/walsall ,WC133-761,31.12.2021,ADULT SOCIAL CARE,AVERY HOMES NELSON LIMITED,21/12/2021,"3,400.00",6541-Residential,THIRD PARTY PAYMENTS,PRIVATE CONTRACTOR,REVENUE
Walsall Council,http://opendatacommunities.org/id/metropolitan-district-council/walsall ,WC133-762,31.12.2021,ADULT SOCIAL CARE,REDACTED,08/12/2021,"4,243.20",6541-Direct Payment,THIRD PARTY PAYMENTS,PRIVATE CONTRACTOR,REVENUE
Walsall Council,http://opendatacommunities.org/id/metropolitan-district-council/walsall ,WC133-763,31.12.2021,CHILDRENS CAPITAL,AZTEC CONSTRUCTION (MIDLANDS) LTD,02/12/2021,"4,283.33",7100-Private Grants,CAPITAL,CAPITAL GRANTS,CAPITAL GRANTS
Walsall Council,http://opendatacommunities.org/id/metropolitan-district-council/walsall ,WC133-764,31.12.2021,CHILDRENS CAPITAL,AZTEC CONSTRUCTION (MIDLANDS) LTD,02/12/2021,"5,603.33",7100-Private Grants,CAPITAL,CAPITAL GRANTS,CAPITAL GRANTS
Walsall Council,http://opendatacommunities.org/id/metropolitan-district-council/walsall ,WC133-765,31.12.2021,CHILDRENS CAPITAL,AZTEC CONSTRUCTION (MIDLANDS) LTD,02/12/2021,"4,500.00",7100-Private Grants,CAPITAL,CAPITAL GRANTS,CAPITAL GRANTS
Walsall Council,http://opendatacommunities.org/id/metropolitan-district-council/walsall ,WC133-766,31.12.2021,"ECONOMY, ENVIRONMENT & COMMUNITIES",B W Y CANINE LTD,02/12/2021,300.00,6440-Professional Services-Priv Contractor & Other Agencies,THIRD PARTY PAYMENTS,PRIVATE CONTRACTOR,REVENUE
Walsall Council,http://opendatacommunities.org/id/metropolitan-district-council/walsall ,WC133-767,31.12.2021,CHILDRENS,BACHES SOLICITORS,03/12/2021,292.42,6220-School Only Payments - Catering,THIRD PARTY PAYMENTS,INDEPENDENT UNIT WITHIN COUNCIL,REVENUE
Walsall Council,http://opendatacommunities.org/id/metropolitan-district-council/walsall ,WC133-768,31.12.2021,CHILDRENS,BACHES SOLICITORS,03/12/2021,"2,200.03",6220-School Only Payments - Catering,THIRD PARTY PAYMENTS,INDEPENDENT UNIT WITHIN COUNCIL,REVENUE
Walsall Council,http://opendatacommunities.org/id/metropolitan-district-council/walsall ,WC133-769,31.12.2021,RESOURCES AND TRANSFORMATION,BAILY GARNER LLP,09/12/2021,"5,018.00",6310-Planned Maintenance,PREMISES,REPAIRS & MAINTENANCE,REVENUE
Walsall Council,http://opendatacommunities.org/id/metropolitan-district-council/walsall ,WC133-770,31.12.2021,RESOURCES AND TRANSFORMATION,BAILY GARNER LLP,09/12/2021,"1,254.50",6310-Planned Maintenance,PREMISES,REPAIRS & MAINTENANCE,REVENUE
Walsall Council,http://opendatacommunities.org/id/metropolitan-district-council/walsall ,WC133-771,31.12.2021,RESOURCES AND TRANSFORMATION,BAILY GARNER LLP,09/12/2021,600.00,6310-Planned Maintenance,PREMISES,REPAIRS & MAINTENANCE,REVENUE
Walsall Council,http://opendatacommunities.org/id/metropolitan-district-council/walsall ,WC133-772,31.12.2021,"ECONOMY, ENVIRONMENT & COMMUNITIES",BAKER HALL PARTNERSHIP,03/12/2021,"1,135.00",6413-Professional Fees & Services,SUPPLIES & SERVICES,SERVICES,REVENUE
Walsall Council,http://opendatacommunities.org/id/metropolitan-district-council/walsall ,WC133-773,31.12.2021,"ECONOMY, ENVIRONMENT & COMMUNITIES",BAKER HALL PARTNERSHIP,16/12/2021,596.00,6413-Professional Fees & Services,SUPPLIES & SERVICES,SERVICES,REVENUE
Walsall Council,http://opendatacommunities.org/id/metropolitan-district-council/walsall ,WC133-774,31.12.2021,ADULT SOCIAL CARE,REDACTED,08/12/2021,"4,749.90",6541-Direct Payment,THIRD PARTY PAYMENTS,PRIVATE CONTRACTOR,REVENUE
Walsall Council,http://opendatacommunities.org/id/metropolitan-district-council/walsall ,WC133-775,31.12.2021,CHILDRENS,BANYA FAMILY PLACEMENT AGENCY LTD,23/12/2021,"3,441.45",6223-Independent Foster Care-Oth Agency Provision,THIRD PARTY PAYMENTS,PRIVATE CONTRACTOR,REVENUE
Walsall Council,http://opendatacommunities.org/id/metropolitan-district-council/walsall ,WC133-776,31.12.2021,CHILDRENS,REDACTED,15/12/2021,364.29,6223-Internal Foster Carers-Carer Fees,TRANSFER PAYMENTS,CHILDREN SOCIAL SERVICES CLIENT,REVENUE
Walsall Council,http://opendatacommunities.org/id/metropolitan-district-council/walsall ,WC133-777,31.12.2021,"ECONOMY, ENVIRONMENT & COMMUNITIES",BARHALE CONSTRUCTION SERVICES LTD,13/12/2021,929.95,6313-Grants to Other Orgs,SUPPLIES & SERVICES,GRANTS (EXP) & SUBSCRIPTIONS,REVENUE
Walsall Council,http://opendatacommunities.org/id/metropolitan-district-council/walsall ,WC133-778,31.12.2021,"ECONOMY, ENVIRONMENT & COMMUNITIES",BARHALE CONSTRUCTION SERVICES LTD,13/12/2021,992.75,6313-Grants to Other Orgs,SUPPLIES & SERVICES,GRANTS (EXP) & SUBSCRIPTIONS,REVENUE
Walsall Council,http://opendatacommunities.org/id/metropolitan-district-council/walsall ,WC133-779,31.12.2021,"ECONOMY, ENVIRONMENT & COMMUNITIES",BARHALE CONSTRUCTION SERVICES LTD,13/12/2021,-419.97,6313-Grants to Other Orgs,SUPPLIES & SERVICES,GRANTS (EXP) & SUBSCRIPTIONS,REVENUE
Walsall Council,http://opendatacommunities.org/id/metropolitan-district-council/walsall ,WC133-780,31.12.2021,"ECONOMY, ENVIRONMENT & COMMUNITIES",BARHALE CONSTRUCTION SERVICES LTD,13/12/2021,419.97,6313-Grants to Other Orgs,SUPPLIES & SERVICES,GRANTS (EXP) & SUBSCRIPTIONS,REVENUE
Walsall Council,http://opendatacommunities.org/id/metropolitan-district-council/walsall ,WC133-781,31.12.2021,"ECONOMY, ENVIRONMENT & COMMUNITIES",BARHALE CONSTRUCTION SERVICES LTD,13/12/2021,996.75,6313-Grants to Other Orgs,SUPPLIES & SERVICES,GRANTS (EXP) & SUBSCRIPTIONS,REVENUE
Walsall Council,http://opendatacommunities.org/id/metropolitan-district-council/walsall ,WC133-782,31.12.2021,CHILDRENS,BARR BEACON SCHOOL TRUST,20/12/2021,"1,581.84",1220-Top Up Funding -Grants to Schools,SUPPLIES & SERVICES,GRANTS (EXP) & SUBSCRIPTIONS,REVENUE
Walsall Council,http://opendatacommunities.org/id/metropolitan-district-council/walsall ,WC133-783,31.12.2021,"ECONOMY, ENVIRONMENT & COMMUNITIES",BATLEYS,16/12/2021,"1,663.15",6414-Catering & Refreshments,SUPPLIES & SERVICES,CATERING,REVENUE
Walsall Council,http://opendatacommunities.org/id/metropolitan-district-council/walsall ,WC133-784,31.12.2021,"ECONOMY, ENVIRONMENT & COMMUNITIES",BATLEYS,16/12/2021,255.28,6414-Catering & Refreshments,SUPPLIES & SERVICES,CATERING,REVENUE
Walsall Council,http://opendatacommunities.org/id/metropolitan-district-council/walsall ,WC133-785,31.12.2021,"ECONOMY, ENVIRONMENT & COMMUNITIES",BATLEYS,30/12/2021,409.20,6414-Catering & Refreshments,SUPPLIES & SERVICES,CATERING,REVENUE
Walsall Council,http://opendatacommunities.org/id/metropolitan-district-council/walsall ,WC133-786,31.12.2021,CHILDRENS,BEACON CHILDCARE LTD,23/12/2021,"9,150.00",6223-External Residential Care-Oth Agency Provision,THIRD PARTY PAYMENTS,PRIVATE CONTRACTOR,REVENUE
Walsall Council,http://opendatacommunities.org/id/metropolitan-district-council/walsall ,WC133-787,31.12.2021,ADULT SOCIAL CARE,BEECHWOODCOURT LTD  T/A BEECHWOOD COLLEGE,16/12/2021,"15,022.43",6541-Residential,THIRD PARTY PAYMENTS,PRIVATE CONTRACTOR,REVENUE
Walsall Council,http://opendatacommunities.org/id/metropolitan-district-council/walsall ,WC133-788,31.12.2021,ADULT SOCIAL CARE,BELVIDERE COURT,21/12/2021,"2,895.88",6541-Residential,THIRD PARTY PAYMENTS,PRIVATE CONTRACTOR,REVENUE
Walsall Council,http://opendatacommunities.org/id/metropolitan-district-council/walsall ,WC133-789,31.12.2021,ADULT SOCIAL CARE,BELVIDERE COURT,21/12/2021,"2,419.96",6541-Nursing,THIRD PARTY PAYMENTS,PRIVATE CONTRACTOR,REVENUE
Walsall Council,http://opendatacommunities.org/id/metropolitan-district-council/walsall ,WC133-790,31.12.2021,ADULT SOCIAL CARE,BENEDON HEALTHCARE LTD,15/12/2021,"5,903.24",6541-Community Supported Living/Supported Accommodation,THIRD PARTY PAYMENTS,PRIVATE CONTRACTOR,REVENUE
Walsall Council,http://opendatacommunities.org/id/metropolitan-district-council/walsall ,WC133-791,31.12.2021,ADULT SOCIAL CARE,BENEDON HEALTHCARE LTD,15/12/2021,"1,395.84",6541-Community Supported Living/Supported Accommodation,THIRD PARTY PAYMENTS,PRIVATE CONTRACTOR,REVENUE
Walsall Council,http://opendatacommunities.org/id/metropolitan-district-council/walsall ,WC133-792,31.12.2021,ADULT SOCIAL CARE,REDACTED,08/12/2021,"3,580.90",6541-Direct Payment,THIRD PARTY PAYMENTS,PRIVATE CONTRACTOR,REVENUE
Walsall Council,http://opendatacommunities.org/id/metropolitan-district-council/walsall ,WC133-793,31.12.2021,CHILDRENS,BENTLEY CHILD CARE,06/12/2021,"2,368.00",6213-Professional Fees & Services,SUPPLIES & SERVICES,SERVICES,REVENUE
Walsall Council,http://opendatacommunities.org/id/metropolitan-district-council/walsall ,WC133-794,31.12.2021,CHILDRENS,BENTLEY CHILD CARE,22/12/2021,592.00,6213-Professional Fees & Services,SUPPLIES & SERVICES,SERVICES,REVENUE
Walsall Council,http://opendatacommunities.org/id/metropolitan-district-council/walsall ,WC133-795,31.12.2021,HOLDING ACCOUNTS,BERRYMANS LACE MAWER LLP,17/12/2021,"3,151.00",2877-Insurance Payment Claims,SUPPLIES & SERVICES,INSURANCE,REVENUE
Walsall Council,http://opendatacommunities.org/id/metropolitan-district-council/walsall ,WC133-796,31.12.2021,HOLDING ACCOUNTS,BERRYMANS LACE MAWER LLP,15/12/2021,"8,567.00",2877-Insurance Payment Claims,SUPPLIES & SERVICES,INSURANCE,REVENUE
Walsall Council,http://opendatacommunities.org/id/metropolitan-district-council/walsall ,WC133-797,31.12.2021,HOLDING ACCOUNTS,BERRYMANS LACE MAWER LLP,23/12/2021,885.50,2877-Insurance Payment Claims,SUPPLIES & SERVICES,INSURANCE,REVENUE
Walsall Council,http://opendatacommunities.org/id/metropolitan-district-council/walsall ,WC133-798,31.12.2021,HOLDING ACCOUNTS,BERRYMANS LACE MAWER LLP,23/12/2021,"3,250.00",2877-Insurance Payment Claims,SUPPLIES & SERVICES,INSURANCE,REVENUE
Walsall Council,http://opendatacommunities.org/id/metropolitan-district-council/walsall ,WC133-799,31.12.2021,ADULT SOCIAL CARE,REDACTED,08/12/2021,"2,414.60",6541-Direct Payment,THIRD PARTY PAYMENTS,PRIVATE CONTRACTOR,REVENUE
Walsall Council,http://opendatacommunities.org/id/metropolitan-district-council/walsall ,WC133-800,31.12.2021,"ECONOMY, ENVIRONMENT & COMMUNITIES",BESCOT STADIUM SUNDAY MARKET LTD,16/12/2021,"3,250.00",6410-Professional Services-Priv Contractor & Other Agencies,THIRD PARTY PAYMENTS,PRIVATE CONTRACTOR,REVENUE
Walsall Council,http://opendatacommunities.org/id/metropolitan-district-council/walsall ,WC133-801,31.12.2021,ADULT SOCIAL CARE,BESS CARE LIMITED,07/12/2021,354.29,6541-Domiciliary Care,THIRD PARTY PAYMENTS,PRIVATE CONTRACTOR,REVENUE
Walsall Council,http://opendatacommunities.org/id/metropolitan-district-council/walsall ,WC133-802,31.12.2021,ADULT SOCIAL CARE,BESS CARE LIMITED,07/12/2021,498.48,6541-Domiciliary Care,THIRD PARTY PAYMENTS,PRIVATE CONTRACTOR,REVENUE
Walsall Council,http://opendatacommunities.org/id/metropolitan-district-council/walsall ,WC133-803,31.12.2021,ADULT SOCIAL CARE,BESS CARE LIMITED,16/12/2021,354.29,6541-Domiciliary Care,THIRD PARTY PAYMENTS,PRIVATE CONTRACTOR,REVENUE
Walsall Council,http://opendatacommunities.org/id/metropolitan-district-council/walsall ,WC133-804,31.12.2021,ADULT SOCIAL CARE,BESS CARE LIMITED,16/12/2021,537.38,6541-Domiciliary Care,THIRD PARTY PAYMENTS,PRIVATE CONTRACTOR,REVENUE
Walsall Council,http://opendatacommunities.org/id/metropolitan-district-council/walsall ,WC133-805,31.12.2021,ADULT SOCIAL CARE,BESS CARE LIMITED,16/12/2021,257.02,6541-Domiciliary Care,THIRD PARTY PAYMENTS,PRIVATE CONTRACTOR,REVENUE
Walsall Council,http://opendatacommunities.org/id/metropolitan-district-council/walsall ,WC133-806,31.12.2021,ADULT SOCIAL CARE,BESS CARE LIMITED,16/12/2021,354.29,6541-Domiciliary Care,THIRD PARTY PAYMENTS,PRIVATE CONTRACTOR,REVENUE
